"Capital, Revenue or Balance Sheet",Directorate,SERCOP High Level Category,SERCOP Detailed Category,Transaction Number,Date,Service Area,Expenses Type,Amount,Supplier Name
Revenue,Adult Services,Adult Social Care,Learning Disability Suppt-adults (18-64),5105734332,15.02.2023,Learning Disability Residential 18-64,Charges from Independent Providers,"9,319.24",AITCH CARE HOMES (LONDON) LTD
Revenue,Adult Services,Adult Social Care,Learning Disability Suppt-adults (18-64),5105734349,15.02.2023,Learning Disability Residential 18-64,Charges from Independent Providers,"11,165.00",COMMUNITY HOMES IN INTENSIVE CARE
Revenue,Chief Executive,Adult Social Care,Social Support - Asylum Seeker Support,5105735904,24.02.2023,Ukraine - Host Payments,Grants to individuals,350,REDACTED PERSONAL DATA
Revenue,Chief Executive,Adult Social Care,Social Support - Asylum Seeker Support,5105735904,24.02.2023,Ukraine - Host Payments,Grants to individuals,200,REDACTED PERSONAL DATA
Revenue,Childrens Services,Children's & Education Services,Children Looked After,5105733531,03.02.2023,In-house Fostering,Support Children,50,REDACTED PERSONAL DATA
Revenue,Chief Executive,Adult Social Care,Social Support - Asylum Seeker Support,5105735855,24.02.2023,Ukraine - Host Payments,Grants to individuals,350,REDACTED PERSONAL DATA
Revenue,Chief Executive,Adult Social Care,Social Support - Asylum Seeker Support,5105735855,24.02.2023,Ukraine - Host Payments,Grants to individuals,200,REDACTED PERSONAL DATA
Revenue,Chief Executive,Adult Social Care,Social Support - Asylum Seeker Support,5105735920,24.02.2023,Ukraine - Host Payments,Grants to individuals,350,REDACTED PERSONAL DATA
Revenue,Chief Executive,Adult Social Care,Social Support - Asylum Seeker Support,5105735920,24.02.2023,Ukraine - Host Payments,Grants to individuals,200,REDACTED PERSONAL DATA
Revenue,Adult Services,Adult Social Care,Central Codes (to be reallocated),5105734444,15.02.2023,Gouldings Resource Centre,Consumable Cleaning Materials,258,A & M APPLIANCE CARE
Revenue,Adult Services,Adult Social Care,Learning Disab Supp (to be reallocated),5105733751,10.02.2023,Plean Dene,Consumable Cleaning Materials,144,A & M APPLIANCE CARE
Revenue,Adult Services,Adult Social Care,Learning Disab Supp (to be reallocated),5105733752,08.02.2023,Saxonbury,Minor Works,135,A & M APPLIANCE CARE
Revenue,Neighbourhoods,Cultural and Related Services,Open Spaces,5105734424,15.02.2023,Tree Felling / Replacement,Payment to Private Contractors,"1,340.00",A GUSTAR T/A IVY TREE CARE
Revenue,Neighbourhoods,Cultural and Related Services,Open Spaces,5105734424,15.02.2023,Tree Felling / Replacement,Payment to Private Contractors,"1,540.00",A GUSTAR T/A IVY TREE CARE
Revenue,Neighbourhoods,Cultural and Related Services,Open Spaces,5105734425,15.02.2023,Tree Felling / Replacement,Payment to Private Contractors,"3,916.00",A GUSTAR T/A IVY TREE CARE
Revenue,Neighbourhoods,Cultural and Related Services,Open Spaces,5105735114,22.02.2023,Tree Felling / Replacement,Payment to Private Contractors,"2,901.00",A GUSTAR T/A IVY TREE CARE
Revenue,Childrens Services,Children's & Education Services,Other Education and Community Budget,5105735238,22.02.2023,Non-Delegated Building Maintenance,Payment to Private Contractors,"1,459.00",A GUSTAR T/A IVY TREE CARE
Revenue,Neighbourhoods,Environmental & Regulatory Services,"Cemetery, Cremation & Mortuary Services",5105734417,15.02.2023,Crematorium,Grounds Maintenance,-221.78,C & J GROUND MAINTENANCE
Revenue,Neighbourhoods,Environmental & Regulatory Services,"Cemetery, Cremation & Mortuary Services",5105734601,15.02.2023,Crematorium,Grounds Maintenance,221.78,C & J GROUND MAINTENANCE
Revenue,Neighbourhoods,Environmental & Regulatory Services,"Cemetery, Cremation & Mortuary Services",5105734864,17.02.2023,Crematorium,Grounds Maintenance,221.78,C & J GROUND MAINTENANCE
Revenue,Childrens Services,Children's & Education Services,Other Education and Community Budget,5105734512,15.02.2023,Home to School SEN Transport (LA),Taxis - Contract Hire,"1,600.00",MICK'S TAXI
Revenue,Childrens Services,Children's & Education Services,Other Education and Community Budget,5105734644,17.02.2023,Home to School SEN Transport (LA),Taxis - Contract Hire,"1,575.00",CLARES CABS
Revenue,Childrens Services,Children's & Education Services,Safeguarding Children/Young Peoples Svs,5105733686,03.02.2023,Court Work & Consultancy Services,Professional Services,357,GARY TAYLOR ASSOCIATES LIMITED
Revenue,Childrens Services,Children's & Education Services,Other Education and Community Budget,5105734462,15.02.2023,Home to School SEN Transport (LA),Taxis - Contract Hire,"1,400.00",HAYLES TAXIS
Revenue,Childrens Services,Children's & Education Services,Other Education and Community Budget,5105734462,15.02.2023,Home to School SEN Transport (LA),Taxis - Contract Hire,"1,176.00",HAYLES TAXIS
Revenue,Childrens Services,Children's & Education Services,Other Education and Community Budget,5105734462,15.02.2023,Home to School SEN Transport (LA),Taxis - Contract Hire,"1,890.00",HAYLES TAXIS
Revenue,Resources,Central Services,Support Services,5105734859,17.02.2023,Litigation Costs,Legal Fees - Other Parties,525,"COLLEGE CHAMBERS, BARRISTERS"
Revenue,Childrens Services,Children's & Education Services,Management & Support Services,5105736014,24.02.2023,Direct Paymnts/Managed Educational Packages,Charges from Independent Providers,780,JOHN CATTLE'S SKATE CLUB
Revenue,Adult Services,Housing Services,Homelessness,5105735174,22.02.2023,Homelessness Support,Client Expenses,470.83,LEE ATKINS TRANSPORT
Revenue,Regeneration,Central Services,Support Services,5105735739,24.02.2023,"Westridge, Ryde",Property Services - Day to day Maintenance,100,LINSCH CONSULTANTS
Capital,Childrens Services,Capital,Capital,5105734490,15.02.2023,Schools Reorganisation,Payment to Contractors - Capital,350,LINSCH CONSULTANTS
Revenue,Adult Services,Adult Social Care,Social Care Activities,5105733793,08.02.2023,LSAB Conferences,Professional Services,"1,700.00",MAKING CONNECTIONS (IW) LTD
Capital,Place,Capital,Capital,5105735415,22.02.2023,Rights Of Way Capital Programme,Payment to Contractors - Capital,"1,000.00",REDACTED PERSONAL DATA
Capital,Place,Capital,Capital,5105735412,22.02.2023,Ryde THI,Payment to Contractors - Capital,"1,500.00",REDACTED PERSONAL DATA
Capital,Place,Capital,Capital,5105735417,22.02.2023,Ryde THI,Payment to Contractors - Capital,"2,500.00",REDACTED PERSONAL DATA
Capital,Place,Capital,Capital,5105734861,17.02.2023,Rights Of Way Capital Programme,Payment to Contractors - Capital,"4,650.00",REDACTED PERSONAL DATA
Capital,Place,Capital,Capital,5105734173,10.02.2023,Rights Of Way Capital Programme,Payment to Contractors - Capital,"15,450.00",REDACTED PERSONAL DATA
Capital,Place,Capital,Capital,5105734174,10.02.2023,Rights Of Way Capital Programme,Payment to Contractors - Capital,"1,500.00",REDACTED PERSONAL DATA
Capital,Place,Capital,Capital,5105734175,10.02.2023,Rights Of Way Capital Programme,Payment to Contractors - Capital,"4,850.00",REDACTED PERSONAL DATA
Capital,Place,Capital,Capital,5105734176,10.02.2023,Rights Of Way Capital Programme,Payment to Contractors - Capital,"1,925.00",REDACTED PERSONAL DATA
Capital,Place,Capital,Capital,5105734177,10.02.2023,Rights Of Way Capital Programme,Payment to Contractors - Capital,"5,800.00",REDACTED PERSONAL DATA
Revenue,Neighbourhoods,Cultural and Related Services,Open Spaces,5105734142,10.02.2023,Tree Felling / Replacement,Payment to Private Contractors,750,NIGEL EARLEY SERVICES LTD
Revenue,Neighbourhoods,Cultural and Related Services,Open Spaces,5105734143,10.02.2023,Tree Felling / Replacement,Payment to Private Contractors,"1,700.00",NIGEL EARLEY SERVICES LTD
Revenue,Neighbourhoods,Cultural and Related Services,Open Spaces,5105734145,10.02.2023,Tree Felling / Replacement,Payment to Private Contractors,600,NIGEL EARLEY SERVICES LTD
Revenue,Neighbourhoods,Cultural and Related Services,Open Spaces,5105735366,22.02.2023,Tree Felling / Replacement,Payment to Private Contractors,"1,000.00",NIGEL EARLEY SERVICES LTD
Revenue,Neighbourhoods,Cultural and Related Services,Open Spaces,5105735367,22.02.2023,Tree Felling / Replacement,Payment to Private Contractors,"8,500.00",NIGEL EARLEY SERVICES LTD
Revenue,Resources,Central Services,Support Services,5105734927,17.02.2023,Legal Services Section,Sundry Office Expenses,59.97,OD CONSULTANCY LTD
Revenue,Adult Services,Housing Services,Homelessness,5105735045,22.02.2023,Private Rented Sector Leasing Scheme,Accommodation Costs - Leaseholder Payments,695.89,REDACTED PERSONAL DATA
Revenue,Adult Services,Housing Services,Homelessness,5105735045,22.02.2023,Private Rented Sector Leasing Scheme,Accommodation Costs - Leaseholder Payments,695.89,REDACTED PERSONAL DATA
Revenue,Adult Services,Housing Services,Homelessness,5105735045,22.02.2023,Private Rented Sector Leasing Scheme,Accommodation Costs - Leaseholder Payments,695.89,REDACTED PERSONAL DATA
Revenue,Childrens Services,Children's & Education Services,Management & Support Services,5105735093,22.02.2023,Direct Paymnts/Managed Educational Packages,Charges from Independent Providers,"6,848.00",REDACTED PERSONAL DATA
Revenue,Childrens Services,Children's & Education Services,Management & Support Services,5105735089,22.02.2023,Direct Paymnts/Managed Educational Packages,Charges from Independent Providers,"2,574.00",REDACTED PERSONAL DATA
Revenue,Childrens Services,Children's & Education Services,Management & Support Services,5105735091,22.02.2023,Direct Paymnts/Managed Educational Packages,Charges from Independent Providers,"7,722.00",REDACTED PERSONAL DATA
Revenue,Childrens Services,Children's & Education Services,Management & Support Services,5105735092,22.02.2023,Direct Paymnts/Managed Educational Packages,Charges from Independent Providers,"2,970.00",REDACTED PERSONAL DATA
Revenue,Childrens Services,Children's & Education Services,Other Education and Community Budget,5105733809,15.02.2023,Home to School SEN Transport (LA),Taxis - Contract Hire,"1,575.00",ROUNSEVELLS TAXIS
Revenue,Childrens Services,Children's & Education Services,Other Education and Community Budget,5105733810,15.02.2023,Home to School SEN Transport (LA),Taxis - Contract Hire,693,ROUNSEVELLS TAXIS
Revenue,Childrens Services,Children's & Education Services,Other Education and Community Budget,5105733811,15.02.2023,Home to School Mainstream Transport,Taxis - Contract Hire,625.5,ROUNSEVELLS TAXIS
Revenue,Adult Services,Housing Services,Homelessness,5105735251,22.02.2023,Homelessness Support,Client Expenses,430,REDACTED PERSONAL DATA
Revenue,Childrens Services,Children's & Education Services,Children Looked After,5105735984,24.02.2023,Support for Looked After Children,Support Children,56,SCALLYWAGS FUN CLUB
Revenue,Childrens Services,Children's & Education Services,Family Support Services,5105734968,17.02.2023,S17 Disabled Children,Support Children,70,SCALLYWAGS FUN CLUB
Revenue,Neighbourhoods,Cultural and Related Services,Culture and Heritage,5105733899,10.02.2023,Medina Theatre,Payment to Private Contractors,85,REDACTED PERSONAL DATA
Revenue,Childrens Services,Children's & Education Services,Management & Support Services,5105735316,24.02.2023,Direct Paymnts/Managed Educational Packages,Charges from Independent Providers,"1,080.00",REDACTED PERSONAL DATA
Revenue,Childrens Services,Children's & Education Services,Management & Support Services,5105735318,24.02.2023,Direct Paymnts/Managed Educational Packages,Charges from Independent Providers,720,REDACTED PERSONAL DATA
Revenue,Childrens Services,Children's & Education Services,Management & Support Services,5105735320,24.02.2023,Direct Paymnts/Managed Educational Packages,Charges from Independent Providers,"1,920.00",REDACTED PERSONAL DATA
Revenue,Childrens Services,Children's & Education Services,Management & Support Services,5105735323,24.02.2023,Direct Paymnts/Managed Educational Packages,Charges from Independent Providers,"1,440.00",REDACTED PERSONAL DATA
Revenue,Childrens Services,Children's & Education Services,Management & Support Services,5105735342,22.02.2023,Direct Paymnts/Managed Educational Packages,Charges from Independent Providers,960,REDACTED PERSONAL DATA
Revenue,Childrens Services,Children's & Education Services,Management & Support Services,5105735359,22.02.2023,Direct Paymnts/Managed Educational Packages,Charges from Independent Providers,-960,REDACTED PERSONAL DATA
Revenue,Childrens Services,Children's & Education Services,Management & Support Services,5105735343,22.02.2023,Special Discretionary Grants,Charges from Independent Providers,360,REDACTED PERSONAL DATA
Revenue,Childrens Services,Children's & Education Services,Family Support Services,5105735326,22.02.2023,Short Breaks,Charges from Independent Providers,308.28,THE VECTIS RADIO 4PS TRAINING
Revenue,Childrens Services,Children's & Education Services,Other Education and Community Budget,5105734502,15.02.2023,Home to School SEN Transport (LA),Taxis - Contract Hire,"2,520.00",THOMPSON TAXI
Revenue,Childrens Services,Children's & Education Services,Other Education and Community Budget,5105735446,24.02.2023,Home to School Mainstream Transport,Taxis - Contract Hire,"3,150.00",THOMPSON TAXI
Revenue,Childrens Services,Children's & Education Services,Special Schools & Alternative Provision,5105735313,24.02.2023,Island Learning Centre,Bought in Prof Services - Curriculum (Schools),980,REDACTED PERSONAL DATA
Revenue,Childrens Services,Children's & Education Services,Other Education and Community Budget,5105735460,24.02.2023,Home to School SEN Transport (LA),Taxis - Contract Hire,"1,500.00",TOP MOPS LIMITED
Revenue,Childrens Services,Children's & Education Services,Other Education and Community Budget,5105735462,24.02.2023,Home to School SEN Transport (LA),Taxis - Contract Hire,"2,058.00",TOP MOPS LIMITED
Revenue,Adult Services,Adult Social Care,Social Support - Social Isolation/Other,5105721902,22.02.2023,Social Isolation/Other Other ST Support,Professional Services,343,TOP MOPS LIMITED
Revenue,Adult Services,Adult Social Care,Social Support - Social Isolation/Other,5105723786,24.02.2023,Social Isolation/Other Other ST Support,Professional Services,183.75,TOP MOPS LIMITED
Revenue,Adult Services,Adult Social Care,Social Support - Social Isolation/Other,5105724859,08.02.2023,Social Isolation/Other Other ST Support,Professional Services,612.5,TOP MOPS LIMITED
Revenue,Adult Services,Adult Social Care,Social Support - Social Isolation/Other,5105726748,08.02.2023,Social Isolation/Other Other ST Support,Professional Services,735,TOP MOPS LIMITED
Revenue,Adult Services,Adult Social Care,Social Support - Social Isolation/Other,5105728353,24.02.2023,Social Isolation/Other Other ST Support,Professional Services,784,TOP MOPS LIMITED
Revenue,Adult Services,Adult Social Care,Social Support - Social Isolation/Other,5105732451,08.02.2023,Social Isolation/Other Other ST Support,Professional Services,735,TOP MOPS LIMITED
Revenue,Adult Services,Adult Social Care,Social Support - Social Isolation/Other,5105732557,08.02.2023,Social Isolation/Other Other ST Support,Professional Services,-612.5,TOP MOPS LIMITED
Revenue,Childrens Services,Children's & Education Services,Other Education and Community Budget,5105735463,24.02.2023,Home to College Post 16 Transport,Taxis - Contract Hire,504,TOP MOPS LIMITED
Revenue,Childrens Services,Children's & Education Services,Special Schools & Alternative Provision,5105732576,08.02.2023,Island Learning Centre,Cleaning Contracts,416.36,TOP MOPS LIMITED
Revenue,Childrens Services,Children's & Education Services,Special Schools & Alternative Provision,5105732577,03.02.2023,Island Learning Centre,Cleaning Contracts,799.68,TOP MOPS LIMITED
Revenue,Childrens Services,Children's & Education Services,Other Education and Community Budget,5105735458,24.02.2023,Home to School Mainstream Transport,Taxis - Contract Hire,"2,300.00",TOP MOPS LIMITED
Revenue,Childrens Services,Children's & Education Services,Other Education and Community Budget,5105735459,24.02.2023,Home to School Mainstream Transport,Taxis - Contract Hire,"3,066.00",TOP MOPS LIMITED
Revenue,Childrens Services,Children's & Education Services,Other Education and Community Budget,5105735461,24.02.2023,Home to School Mainstream Transport,Taxis - Contract Hire,"2,700.00",TOP MOPS LIMITED
Revenue,Neighbourhoods,Highways and Transport Services,Management and Support Services,5105734363,17.02.2023,Ryde Transport Hub,Cleaning Contracts,600,TOP MOPS LIMITED
Revenue,Childrens Services,Children's & Education Services,Special Schools & Alternative Provision,5105735683,24.02.2023,Island Learning Centre,Cleaning Contracts,892.2,TOP MOPS LIMITED
Revenue,Childrens Services,Children's & Education Services,Special Schools & Alternative Provision,5105734976,17.02.2023,Island Learning Centre,Cleaning Contracts,147.42,TOP MOPS LIMITED
Revenue,Regeneration,Central Services,Support Services,5105735281,24.02.2023,IWC Vacant Sites,Security of Buildings,60,VECTIS GROUP SECURITY LTD
Revenue,Regeneration,Planning services,Economic Development,5105735684,24.02.2023,Victoria Quays,Security of Buildings,135,VECTIS GROUP SECURITY LTD
Revenue,Childrens Services,Children's & Education Services,Other Education and Community Budget,5105733332,01.02.2023,Barton Primary Sshool Disposal,Security of Buildings,15,VECTIS GROUP SECURITY LTD
Revenue,Childrens Services,Children's & Education Services,Other Education and Community Budget,5105733338,01.02.2023,Weston Academy Closure,Security of Buildings,115,VECTIS GROUP SECURITY LTD
Revenue,Childrens Services,Children's & Education Services,Other Education and Community Budget,5105734364,15.02.2023,Ex Studio School Grange Rd East Cowes,Security of Buildings,150,VECTIS GROUP SECURITY LTD
Revenue,Childrens Services,Children's & Education Services,Other Education and Community Budget,5105735649,24.02.2023,Ex Studio School Grange Rd East Cowes,Security of Buildings,135,VECTIS GROUP SECURITY LTD
Revenue,Childrens Services,Children's & Education Services,Support Services,5105735040,22.02.2023,Sandown Town Hall,Security of Buildings,195,VECTIS GROUP SECURITY LTD
Revenue,Childrens Services,Children's & Education Services,Special Schools & Alternative Provision,5105734946,24.02.2023,Island Learning Centre,Security of Buildings,15,VECTIS GROUP SECURITY LTD
Revenue,Childrens Services,Children's & Education Services,Other Education and Community Budget,5105733335,01.02.2023,Broadlea PS Berry Hill site (was 55909),Security of Buildings,30,VECTIS GROUP SECURITY LTD
Revenue,Childrens Services,Children's & Education Services,Other Education and Community Budget,5105733765,08.02.2023,Ex Yarmouth Primary School site,Security of Buildings,195,VECTIS GROUP SECURITY LTD
Revenue,Childrens Services,Children's & Education Services,Other Education and Community Budget,5105734499,15.02.2023,Home to School SEN Transport (LA),Taxis - Contract Hire,"3,045.00",W W CARS OF SEAVIEW
Revenue,Childrens Services,Children's & Education Services,Other Education and Community Budget,5105734500,15.02.2023,Home to School SEN Transport (LA),Taxis - Contract Hire,"1,500.00",W W CARS OF SEAVIEW
Revenue,Childrens Services,Children's & Education Services,Other Education and Community Budget,5105734501,15.02.2023,Home to School SEN Transport (LA),Taxis - Contract Hire,"1,575.00",W W CARS OF SEAVIEW
Capital,Childrens Services,Capital,Capital,5105733739,08.02.2023,Administration and Inspection Schemes,Professional Services,"114,960.71",WIGHT HEATING LTD
Revenue,Neighbourhoods,Cultural and Related Services,Culture and Heritage,5105735437,24.02.2023,Archives,Property Services - Day to day Maintenance,142.04,WIGHT HEATING LTD
Revenue,Neighbourhoods,Cultural and Related Services,Culture and Heritage,5105733854,08.02.2023,Archives,Property Services - Planned Maintenance,146.06,WIGHT HEATING LTD
Revenue,Adult Services,Adult Social Care,Central Codes (to be reallocated),5105733759,08.02.2023,Bluebell House,Minor Works,"16,319.96",WIGHT HEATING LTD
Revenue,Adult Services,Adult Social Care,Central Codes (to be reallocated),5105733760,08.02.2023,Bluebell House,Minor Works,637.12,WIGHT HEATING LTD
Revenue,Adult Services,Adult Social Care,Central Codes (to be reallocated),5105733761,08.02.2023,Bluebell House,Minor Works,"6,950.13",WIGHT HEATING LTD
Revenue,Adult Services,Adult Social Care,Central Codes (to be reallocated),5105735679,24.02.2023,Gouldings Resource Centre,Property Services - Day to day Maintenance,97.5,WIGHT HEATING LTD
Revenue,Childrens Services,Children's & Education Services,Support Services,5105733852,08.02.2023,Learning & Development Running Costs,Minor Works,207.86,WIGHT HEATING LTD
Revenue,Neighbourhoods,Cultural and Related Services,Recreation and Sport,5105734375,15.02.2023,Medina Leisure Centre,Property Services - Day to day Maintenance,258.46,WIGHT HEATING LTD
Revenue,Regeneration,Central Services,Support Services,5105733851,08.02.2023,Non-operational buildings,Property Services - Planned Maintenance,192.9,WIGHT HEATING LTD
Revenue,Regeneration,Central Services,Support Services,5105734378,15.02.2023,17 Fairlee Road,Transport of Clients,225.4,WIGHT HEATING LTD
Revenue,Childrens Services,Children's & Education Services,Children Looked After,5105735674,24.02.2023,Beaulieu House,Minor Works,200.2,WIGHT HEATING LTD
Revenue,Regeneration,Central Services,Support Services,5105734374,15.02.2023,"County Hall,Newport",Property Services - Day to day Maintenance,413.62,WIGHT HEATING LTD
Revenue,Neighbourhoods,Cultural and Related Services,Recreation and Sport,5105734379,15.02.2023,Westridge Squash Courts,Property Services - Day to day Maintenance,35,WIGHT HEATING LTD
Revenue,Neighbourhoods,Environmental & Regulatory Services,"Cemetery, Cremation & Mortuary Services",5105735678,24.02.2023,Crematorium,Property Services - Day to day Maintenance,167.5,WIGHT HEATING LTD
Revenue,Neighbourhoods,Cultural and Related Services,Recreation and Sport,5105735436,24.02.2023,The Heights,Property Services - Planned Maintenance,"3,902.73",WIGHT HEATING LTD
Revenue,Childrens Services,Children's & Education Services,Sure Start Children's Centres,5105735676,24.02.2023,Family Centres Maintenance,Minor Works,119.13,WIGHT HEATING LTD
Revenue,Childrens Services,Children's & Education Services,Sure Start Children's Centres,5105734369,15.02.2023,Family Centres Maintenance,Minor Works,141.45,WIGHT HEATING LTD
Revenue,Childrens Services,Children's & Education Services,Sure Start Children's Centres,5105733850,08.02.2023,Family Centres Maintenance,Minor Works,141.45,WIGHT HEATING LTD
Revenue,Adult Services,Housing Services,Homelessness,5105735057,22.02.2023,Private Rented Sector Leasing Scheme,Accommodation Costs - Leaseholder Payments,953.33,2K PROPERTY
Revenue,Neighbourhoods,Cultural and Related Services,Culture and Heritage,5105735713,24.02.2023,Medina Theatre,Operational Equipment,80,A & R WELDING
Revenue,Childrens Services,Children's & Education Services,Other Education and Community Budget,5105734989,22.02.2023,Home to School SEN Transport (LA),Taxis - Contract Hire,935,REDACTED PERSONAL DATA
Revenue,Childrens Services,Children's & Education Services,Children Looked After,5105734077,10.02.2023,Children placed with Family&Friends,Boarding Out Allowances,285.93,REDACTED PERSONAL DATA
Revenue,Childrens Services,Children's & Education Services,Children Looked After,5105734077,10.02.2023,Children placed with Family&Friends,Boarding Out Allowances,285.93,REDACTED PERSONAL DATA
Revenue,Childrens Services,Children's & Education Services,Children Looked After,5105734077,10.02.2023,Children placed with Family&Friends,Boarding Out Allowances,285.93,REDACTED PERSONAL DATA
Revenue,Childrens Services,Children's & Education Services,Children Looked After,5105733509,03.02.2023,Children placed with Family&Friends,Boarding Out Allowances,285.93,REDACTED PERSONAL DATA
Revenue,Childrens Services,Children's & Education Services,Children Looked After,5105733509,03.02.2023,Children placed with Family&Friends,Boarding Out Allowances,285.93,REDACTED PERSONAL DATA
Revenue,Childrens Services,Children's & Education Services,Children Looked After,5105733509,03.02.2023,Children placed with Family&Friends,Boarding Out Allowances,285.93,REDACTED PERSONAL DATA
Revenue,Childrens Services,Children's & Education Services,Children Looked After,5105734822,17.02.2023,Children placed with Family&Friends,Boarding Out Allowances,285.93,REDACTED PERSONAL DATA
Revenue,Childrens Services,Children's & Education Services,Children Looked After,5105734822,17.02.2023,Children placed with Family&Friends,Boarding Out Allowances,285.93,REDACTED PERSONAL DATA
Revenue,Childrens Services,Children's & Education Services,Children Looked After,5105734822,17.02.2023,Children placed with Family&Friends,Boarding Out Allowances,285.93,REDACTED PERSONAL DATA
Revenue,Childrens Services,Children's & Education Services,Children Looked After,5105735608,24.02.2023,Children placed with Family&Friends,Boarding Out Allowances,285.93,REDACTED PERSONAL DATA
Revenue,Childrens Services,Children's & Education Services,Children Looked After,5105735608,24.02.2023,Children placed with Family&Friends,Boarding Out Allowances,285.93,REDACTED PERSONAL DATA
Revenue,Childrens Services,Children's & Education Services,Children Looked After,5105735608,24.02.2023,Children placed with Family&Friends,Boarding Out Allowances,285.93,REDACTED PERSONAL DATA
Revenue,Childrens Services,Children's & Education Services,Children Looked After,5105733952,10.02.2023,In-house Fostering,Boarding Out Allowances,318.67,REDACTED PERSONAL DATA
Revenue,Childrens Services,Children's & Education Services,Children Looked After,5105733952,10.02.2023,In-house Fostering,Boarding Out Allowances,318.67,REDACTED PERSONAL DATA
Revenue,Childrens Services,Children's & Education Services,Children Looked After,5105735483,24.02.2023,In-house Fostering,Boarding Out Allowances,318.67,REDACTED PERSONAL DATA
Revenue,Childrens Services,Children's & Education Services,Children Looked After,5105735483,24.02.2023,In-house Fostering,Boarding Out Allowances,318.67,REDACTED PERSONAL DATA
Revenue,Childrens Services,Children's & Education Services,Children Looked After,5105734699,17.02.2023,In-house Fostering,Boarding Out Allowances,318.67,REDACTED PERSONAL DATA
Revenue,Childrens Services,Children's & Education Services,Children Looked After,5105734699,17.02.2023,In-house Fostering,Boarding Out Allowances,318.67,REDACTED PERSONAL DATA
Revenue,Childrens Services,Children's & Education Services,Children Looked After,5105733384,03.02.2023,In-house Fostering,Boarding Out Allowances,318.67,REDACTED PERSONAL DATA
Revenue,Childrens Services,Children's & Education Services,Children Looked After,5105733384,03.02.2023,In-house Fostering,Boarding Out Allowances,318.67,REDACTED PERSONAL DATA
Revenue,Childrens Services,Children's & Education Services,Children Looked After,5105735612,24.02.2023,Special Guardianship Order Costs,Support Children,100,REDACTED PERSONAL DATA
Revenue,Childrens Services,Children's & Education Services,Children Looked After,5105734081,10.02.2023,Special Guardianship Order Costs,Support Children,100,REDACTED PERSONAL DATA
Revenue,Childrens Services,Children's & Education Services,Children Looked After,5105733513,03.02.2023,Special Guardianship Order Costs,Support Children,100,REDACTED PERSONAL DATA
Revenue,Childrens Services,Children's & Education Services,Children Looked After,5105734826,17.02.2023,Special Guardianship Order Costs,Support Children,100,REDACTED PERSONAL DATA
Revenue,Adult Services,Housing Services,Homelessness,5105735054,22.02.2023,Private Rented Sector Leasing Scheme,Accommodation Costs - Leaseholder Payments,561.21,REDACTED PERSONAL DATA
Revenue,Adult Services,Housing Services,Homelessness,5105735054,22.02.2023,Private Rented Sector Leasing Scheme,Accommodation Costs - Leaseholder Payments,561.21,REDACTED PERSONAL DATA
Revenue,Adult Services,Housing Services,Homelessness,5105735054,22.02.2023,Private Rented Sector Leasing Scheme,Accommodation Costs - Leaseholder Payments,510.25,REDACTED PERSONAL DATA
Revenue,Adult Services,Housing Services,Homelessness,5105735054,22.02.2023,Private Rented Sector Leasing Scheme,Accommodation Costs - Leaseholder Payments,561.21,REDACTED PERSONAL DATA
Revenue,Adult Services,Housing Services,Homelessness,5105735054,22.02.2023,Private Rented Sector Leasing Scheme,Accommodation Costs - Leaseholder Payments,561.21,REDACTED PERSONAL DATA
Revenue,Adult Services,Housing Services,Homelessness,5105735054,22.02.2023,Private Rented Sector Leasing Scheme,Accommodation Costs - Leaseholder Payments,561.21,REDACTED PERSONAL DATA
Revenue,Adult Services,Housing Services,Homelessness,5105735054,22.02.2023,Private Rented Sector Leasing Scheme,Accommodation Costs - Leaseholder Payments,561.21,REDACTED PERSONAL DATA
Revenue,Adult Services,Housing Services,Homelessness,5105735054,22.02.2023,Private Rented Sector Leasing Scheme,Accommodation Costs - Leaseholder Payments,561.21,REDACTED PERSONAL DATA
Revenue,Childrens Services,Children's & Education Services,Children Looked After,5105733321,01.02.2023,Leaving Care Costs,Support Children,19.99,REDACTED PERSONAL DATA
Revenue,Childrens Services,Children's & Education Services,Children Looked After,5105735611,24.02.2023,Unaccompanied Asylum Seeker Children LC,Support Children,21.23,REDACTED PERSONAL DATA
Revenue,Childrens Services,Children's & Education Services,Children Looked After,5105733512,03.02.2023,Unaccompanied Asylum Seeker Children LC,Support Children,21.23,REDACTED PERSONAL DATA
Revenue,Childrens Services,Children's & Education Services,Children Looked After,5105733320,01.02.2023,Unaccompanied Asylum Seeker Children LC,Support Children,19.99,REDACTED PERSONAL DATA
Revenue,Childrens Services,Children's & Education Services,Children Looked After,5105734080,10.02.2023,Unaccompanied Asylum Seeker Children LC,Support Children,21.23,REDACTED PERSONAL DATA
Revenue,Childrens Services,Children's & Education Services,Children Looked After,5105734825,17.02.2023,Unaccompanied Asylum Seeker Children LC,Support Children,21.23,REDACTED PERSONAL DATA
Revenue,Adult Services,Adult Social Care,Assistive Equipment & Technology,5105734522,22.02.2023,BCF Community Equipment Store,Minor Works,245,A-1 GARAGE DOOR SPECIALISTS (IOW)
Revenue,Childrens Services,Children's & Education Services,Sure Start Children's Centres,5105735388,22.02.2023,Family Centres Maintenance,Minor Works,175,A-1 GARAGE DOOR SPECIALISTS (IOW)
Revenue,Resources,Central Services,Support Services,5105733092,08.02.2023,Specialist Cross-Council Training,Training,900,ABC FOOD LAW LTD
Revenue,Adult Services,Adult Social Care,Learning Disab Supp (to be reallocated),5105735076,22.02.2023,Carisbrooke House,Charges from Independent Providers,"12,682.04",TRACSCARE WELLCARE LIFESTYLES
Revenue,Adult Services,Adult Social Care,Learning Disab Supp (to be reallocated),5105735076,22.02.2023,"Greengates, Ryde",Charges from Independent Providers,"8,459.64",TRACSCARE WELLCARE LIFESTYLES
Revenue,Adult Services,Adult Social Care,Learning Disab Supp (to be reallocated),5105735076,22.02.2023,"41 Newport Road, Cowes",Charges from Independent Providers,"8,459.64",TRACSCARE WELLCARE LIFESTYLES
Revenue,Adult Services,Adult Social Care,Long Term Support,5105735076,22.02.2023,Seagulls,Charges from Independent Providers,"29,020.88",TRACSCARE WELLCARE LIFESTYLES
Revenue,Adult Services,Adult Social Care,Learning Disab Supp (to be reallocated),5105735076,22.02.2023,"Heath Road, Lake",Charges from Independent Providers,"7,241.40",TRACSCARE WELLCARE LIFESTYLES
Revenue,Adult Services,Adult Social Care,Learning Disab Supp (to be reallocated),5105735076,22.02.2023,"Winton Street, Ryde",Charges from Independent Providers,"8,459.64",TRACSCARE WELLCARE LIFESTYLES
Revenue,Adult Services,Adult Social Care,Learning Disab Supp (to be reallocated),5105735076,22.02.2023,Reeves Court Supported Living,Charges from Independent Providers,"45,088.68",TRACSCARE WELLCARE LIFESTYLES
Revenue,Adult Services,Adult Social Care,Long Term Support,5105735076,22.02.2023,40 Venner Avenue,Charges from Independent Providers,"30,296.56",TRACSCARE WELLCARE LIFESTYLES
Revenue,Adult Services,Adult Social Care,Learning Disability Suppt-adults (18-64),5105734315,15.02.2023,Learning Disability Residential 18-64,Charges from Independent Providers,"2,393.16",REGARD PARTNERSHIP
Revenue,Adult Services,Adult Social Care,Learning Disability Suppt-adults (18-64),5105734315,15.02.2023,Learning Disability Residential 18-64,Charges from Independent Providers,404.04,REGARD PARTNERSHIP
Revenue,Adult Services,Adult Social Care,Learning Disability Suppt-adults (18-64),5105734315,15.02.2023,Learning Disability Residential 18-64,Charges from Independent Providers,"3,306.52",REGARD PARTNERSHIP
Revenue,Adult Services,Adult Social Care,Learning Disability Suppt-adults (18-64),5105734315,15.02.2023,Learning Disability Residential 18-64,Charges from Independent Providers,329,REGARD PARTNERSHIP
Revenue,Adult Services,Adult Social Care,Learning Disability Suppt-adults (18-64),5105734315,15.02.2023,Learning Disability Residential 18-64,Charges from Independent Providers,"2,393.16",REGARD PARTNERSHIP
Revenue,Adult Services,Adult Social Care,Learning Disability Suppt-adults (18-64),5105734315,15.02.2023,Learning Disability Residential 18-64,Charges from Independent Providers,"2,282.00",REGARD PARTNERSHIP
Revenue,Adult Services,Adult Social Care,Learning Disability Suppt-adults (18-64),5105734315,15.02.2023,Learning Disability Residential 18-64,Charges from Independent Providers,404.04,REGARD PARTNERSHIP
Revenue,Adult Services,Adult Social Care,Learning Disability Suppt-adults (18-64),5105734315,15.02.2023,Learning Disability Residential 18-64,Charges from Independent Providers,"3,467.52",REGARD PARTNERSHIP
Revenue,Adult Services,Adult Social Care,Learning Disability Suppt-adults (18-64),5105734315,15.02.2023,Learning Disability Residential 18-64,Charges from Independent Providers,480.2,REGARD PARTNERSHIP
Revenue,Adult Services,Adult Social Care,Learning Disability Suppt-adults (18-64),5105734315,15.02.2023,Learning Disability Residential 18-64,Charges from Independent Providers,"3,467.52",REGARD PARTNERSHIP
Revenue,Adult Services,Adult Social Care,Learning Disability Suppt-adults (18-64),5105734315,15.02.2023,Learning Disability Residential 18-64,Charges from Independent Providers,"2,282.00",REGARD PARTNERSHIP
Revenue,Adult Services,Adult Social Care,Learning Disability Suppt-adults (18-64),5105734315,15.02.2023,Learning Disability Residential 18-64,Charges from Independent Providers,240.24,REGARD PARTNERSHIP
Revenue,Adult Services,Adult Social Care,Learning Disability Suppt-adults (18-64),5105734315,15.02.2023,Learning Disability Residential 18-64,Charges from Independent Providers,"2,282.00",REGARD PARTNERSHIP
Revenue,Adult Services,Adult Social Care,Learning Disability Suppt-adults (18-64),5105734315,15.02.2023,Learning Disability Residential 18-64,Charges from Independent Providers,480.2,REGARD PARTNERSHIP
Revenue,Adult Services,Adult Social Care,Learning Disability Suppt-adults (18-64),5105734315,15.02.2023,Learning Disability Residential 18-64,Charges from Independent Providers,"3,467.52",REGARD PARTNERSHIP
Revenue,Adult Services,Adult Social Care,Learning Disability Suppt-adults (18-64),5105734315,15.02.2023,Learning Disability Residential 18-64,Charges from Independent Providers,"2,282.00",REGARD PARTNERSHIP
Revenue,Adult Services,Adult Social Care,Learning Disability Suppt-adults (18-64),5105734315,15.02.2023,Learning Disability Residential 18-64,Charges from Independent Providers,462.84,REGARD PARTNERSHIP
Revenue,Adult Services,Adult Social Care,Learning Disability Suppt-adults (18-64),5105734315,15.02.2023,Learning Disability Residential 18-64,Charges from Independent Providers,"2,393.16",REGARD PARTNERSHIP
Revenue,Adult Services,Adult Social Care,Learning Disability Suppt-adults (18-64),5105734315,15.02.2023,Learning Disability Residential 18-64,Charges from Independent Providers,462.84,REGARD PARTNERSHIP
Revenue,Childrens Services,Children's & Education Services,Children Looked After,5105735170,22.02.2023,Purchased Residential,Charges from Independent Providers,"4,790.78",ACORN CARE AND EDUCATION LTD
Revenue,Childrens Services,Children's & Education Services,Children Looked After,5105735172,22.02.2023,Purchased Residential,Charges from Independent Providers,"4,777.64",ACORN CARE AND EDUCATION LTD
Revenue,Neighbourhoods,Highways and Transport Services,"Airports, Harbours & Toll Facilities",5105734890,17.02.2023,Ferry Operation,Operational Equipment,"1,022.00",ADAMS PRECISION HYDRAULICS LIMITED
Capital,Place,Capital,Capital,5105734874,17.02.2023,Cowes Floating Brdge,Payment to Contractors - Capital,"11,245.25",ADAMS PRECISION HYDRAULICS LIMITED
Revenue,Childrens Services,Children's & Education Services,Management & Support Services,5105735937,24.02.2023,Direct Paymnts/Managed Educational Packages,Charges from Independent Providers,456,A-DAY CONSULTANTS LTD
Revenue,Childrens Services,Children's & Education Services,Management & Support Services,5105735938,24.02.2023,Direct Paymnts/Managed Educational Packages,Charges from Independent Providers,228,A-DAY CONSULTANTS LTD
Revenue,Childrens Services,Children's & Education Services,Management & Support Services,5105735938,24.02.2023,Direct Paymnts/Managed Educational Packages,Charges from Independent Providers,55,A-DAY CONSULTANTS LTD
Revenue,Childrens Services,Children's & Education Services,Management & Support Services,5105735939,24.02.2023,Direct Paymnts/Managed Educational Packages,Charges from Independent Providers,342,A-DAY CONSULTANTS LTD
Revenue,Childrens Services,Children's & Education Services,Management & Support Services,5105733895,10.02.2023,Direct Paymnts/Managed Educational Packages,Charges from Independent Providers,570,A-DAY CONSULTANTS LTD
Revenue,Childrens Services,Children's & Education Services,Management & Support Services,5105733895,10.02.2023,Direct Paymnts/Managed Educational Packages,Charges from Independent Providers,689,A-DAY CONSULTANTS LTD
Revenue,Childrens Services,Children's & Education Services,Management & Support Services,5105733897,10.02.2023,Direct Paymnts/Managed Educational Packages,Charges from Independent Providers,342,A-DAY CONSULTANTS LTD
Revenue,Childrens Services,Children's & Education Services,Management & Support Services,5105733910,10.02.2023,Direct Paymnts/Managed Educational Packages,Charges from Independent Providers,345,A-DAY CONSULTANTS LTD
Revenue,Childrens Services,Children's & Education Services,Management & Support Services,5105733890,10.02.2023,Direct Paymnts/Managed Educational Packages,Charges from Independent Providers,55,A-DAY CONSULTANTS LTD
Revenue,Childrens Services,Children's & Education Services,Management & Support Services,5105733890,10.02.2023,Direct Paymnts/Managed Educational Packages,Charges from Independent Providers,228,A-DAY CONSULTANTS LTD
Revenue,Childrens Services,Children's & Education Services,Management & Support Services,5105733891,10.02.2023,Direct Paymnts/Managed Educational Packages,Charges from Independent Providers,570,A-DAY CONSULTANTS LTD
Revenue,Childrens Services,Children's & Education Services,Management & Support Services,5105733891,10.02.2023,Direct Paymnts/Managed Educational Packages,Charges from Independent Providers,456,A-DAY CONSULTANTS LTD
Revenue,Childrens Services,Children's & Education Services,Management & Support Services,5105733892,10.02.2023,Direct Paymnts/Managed Educational Packages,Charges from Independent Providers,342,A-DAY CONSULTANTS LTD
Revenue,Childrens Services,Children's & Education Services,Management & Support Services,5105733893,10.02.2023,Direct Paymnts/Managed Educational Packages,Charges from Independent Providers,228,A-DAY CONSULTANTS LTD
Revenue,Childrens Services,Children's & Education Services,Management & Support Services,5105734141,10.02.2023,Direct Paymnts/Managed Educational Packages,Charges from Independent Providers,460,A-DAY CONSULTANTS LTD
Revenue,Childrens Services,Children's & Education Services,Management & Support Services,5105734141,10.02.2023,Direct Paymnts/Managed Educational Packages,Charges from Independent Providers,570,A-DAY CONSULTANTS LTD
Revenue,Childrens Services,Children's & Education Services,Management & Support Services,5105733873,08.02.2023,Direct Paymnts/Managed Educational Packages,Charges from Independent Providers,570,A-DAY CONSULTANTS LTD
Revenue,Childrens Services,Children's & Education Services,Management & Support Services,5105733889,10.02.2023,Direct Paymnts/Managed Educational Packages,Charges from Independent Providers,460,A-DAY CONSULTANTS LTD
Revenue,Childrens Services,Children's & Education Services,Management & Support Services,5105734954,17.02.2023,Direct Paymnts/Managed Educational Packages,Charges from Independent Providers,460,A-DAY CONSULTANTS LTD
Revenue,Childrens Services,Children's & Education Services,Management & Support Services,5105734984,17.02.2023,Direct Paymnts/Managed Educational Packages,Charges from Independent Providers,689,A-DAY CONSULTANTS LTD
Revenue,Childrens Services,Children's & Education Services,Management & Support Services,5105735003,22.02.2023,Direct Paymnts/Managed Educational Packages,Charges from Independent Providers,342,A-DAY CONSULTANTS LTD
Revenue,Childrens Services,Children's & Education Services,Management & Support Services,5105735004,22.02.2023,Direct Paymnts/Managed Educational Packages,Charges from Independent Providers,342,A-DAY CONSULTANTS LTD
Revenue,Childrens Services,Children's & Education Services,Management & Support Services,5105735005,22.02.2023,Direct Paymnts/Managed Educational Packages,Charges from Independent Providers,230,A-DAY CONSULTANTS LTD
Revenue,Childrens Services,Children's & Education Services,Management & Support Services,5105734986,17.02.2023,Direct Paymnts/Managed Educational Packages,Charges from Independent Providers,342,A-DAY CONSULTANTS LTD
Revenue,Childrens Services,Children's & Education Services,Management & Support Services,5105735000,22.02.2023,Direct Paymnts/Managed Educational Packages,Charges from Independent Providers,228,A-DAY CONSULTANTS LTD
Revenue,Childrens Services,Children's & Education Services,Management & Support Services,5105735001,22.02.2023,Direct Paymnts/Managed Educational Packages,Charges from Independent Providers,228,A-DAY CONSULTANTS LTD
Revenue,Childrens Services,Children's & Education Services,Management & Support Services,5105735001,22.02.2023,Direct Paymnts/Managed Educational Packages,Charges from Independent Providers,55,A-DAY CONSULTANTS LTD
Revenue,Childrens Services,Children's & Education Services,Management & Support Services,5105735002,22.02.2023,Direct Paymnts/Managed Educational Packages,Charges from Independent Providers,570,A-DAY CONSULTANTS LTD
Revenue,Childrens Services,Children's & Education Services,Management & Support Services,5105735002,22.02.2023,Direct Paymnts/Managed Educational Packages,Charges from Independent Providers,456,A-DAY CONSULTANTS LTD
Revenue,Childrens Services,Children's & Education Services,Management & Support Services,5105734984,17.02.2023,Direct Paymnts/Managed Educational Packages,Charges from Independent Providers,570,A-DAY CONSULTANTS LTD
Revenue,Childrens Services,Children's & Education Services,Management & Support Services,5105736004,24.02.2023,Direct Paymnts/Managed Educational Packages,Charges from Independent Providers,570,A-DAY CONSULTANTS LTD
Revenue,Childrens Services,Children's & Education Services,Management & Support Services,5105736005,24.02.2023,Direct Paymnts/Managed Educational Packages,Charges from Independent Providers,228,A-DAY CONSULTANTS LTD
Revenue,Childrens Services,Children's & Education Services,Management & Support Services,5105736006,24.02.2023,Direct Paymnts/Managed Educational Packages,Charges from Independent Providers,342,A-DAY CONSULTANTS LTD
Revenue,Childrens Services,Children's & Education Services,Management & Support Services,5105735939,24.02.2023,Direct Paymnts/Managed Educational Packages,Charges from Independent Providers,114,A-DAY CONSULTANTS LTD
Revenue,Childrens Services,Children's & Education Services,Management & Support Services,5105735940,24.02.2023,Direct Paymnts/Managed Educational Packages,Charges from Independent Providers,114,A-DAY CONSULTANTS LTD
Revenue,Childrens Services,Children's & Education Services,Management & Support Services,5105735999,24.02.2023,Direct Paymnts/Managed Educational Packages,Charges from Independent Providers,456,A-DAY CONSULTANTS LTD
Revenue,Childrens Services,Children's & Education Services,Management & Support Services,5105736003,24.02.2023,Direct Paymnts/Managed Educational Packages,Charges from Independent Providers,4,A-DAY CONSULTANTS LTD
Revenue,Childrens Services,Children's & Education Services,Management & Support Services,5105736004,24.02.2023,Direct Paymnts/Managed Educational Packages,Charges from Independent Providers,570,A-DAY CONSULTANTS LTD
Revenue,Childrens Services,Children's & Education Services,Management & Support Services,5105735365,22.02.2023,Pupil Premium Managed Centrally,Professional Services,171,A-DAY CONSULTANTS LTD
Revenue,Childrens Services,Children's & Education Services,Management & Support Services,5105735368,22.02.2023,Pupil Premium Managed Centrally,Professional Services,171,A-DAY CONSULTANTS LTD
Revenue,Childrens Services,Children's & Education Services,Management & Support Services,5105735370,22.02.2023,Pupil Premium Managed Centrally,Professional Services,57,A-DAY CONSULTANTS LTD
Revenue,Childrens Services,Children's & Education Services,Special Schools & Alternative Provision,5105735249,22.02.2023,Island Learning Centre,Agency staff,"3,650.00",A-DAY CONSULTANTS LTD
Revenue,Childrens Services,Children's & Education Services,Special Schools & Alternative Provision,5105735781,24.02.2023,Island Learning Centre,Agency staff,"3,229.00",A-DAY CONSULTANTS LTD
Revenue,Childrens Services,Children's & Education Services,Special Schools & Alternative Provision,5105735782,24.02.2023,Island Learning Centre,Agency staff,"2,871.00",A-DAY CONSULTANTS LTD
Revenue,Childrens Services,Children's & Education Services,Special Schools & Alternative Provision,5105735248,22.02.2023,Island Learning Centre,Agency staff,"3,650.00",A-DAY CONSULTANTS LTD
Revenue,Childrens Services,Children's & Education Services,Special Schools & Alternative Provision,5105735707,24.02.2023,Island Learning Centre,Agency staff,"4,455.00",A-DAY CONSULTANTS LTD
Revenue,Childrens Services,Children's & Education Services,Special Schools & Alternative Provision,5105734151,10.02.2023,Island Learning Centre,Agency staff,"3,190.00",A-DAY CONSULTANTS LTD
Revenue,Childrens Services,Children's & Education Services,Other Education and Community Budget,5105733855,08.02.2023,Home to School SEN Transport (LA),Taxis - Contract Hire,"1,850.00",REDACTED PERSONAL DATA
Revenue,Childrens Services,Children's & Education Services,Other Education and Community Budget,5105733857,08.02.2023,Home to School SEN Transport (LA),Taxis - Contract Hire,"1,800.00",REDACTED PERSONAL DATA
Revenue,Childrens Services,Children's & Education Services,Other Education and Community Budget,5105733858,08.02.2023,Home to School SEN Transport (LA),Taxis - Contract Hire,"4,120.00",REDACTED PERSONAL DATA
Revenue,Childrens Services,Children's & Education Services,Other Education and Community Budget,5105733859,08.02.2023,Home to School SEN Transport (LA),Taxis - Contract Hire,"1,890.00",REDACTED PERSONAL DATA
Revenue,Childrens Services,Children's & Education Services,Other Education and Community Budget,5105733860,08.02.2023,Home to School SEN Transport (LA),Taxis - Contract Hire,"2,840.00",REDACTED PERSONAL DATA
Revenue,Childrens Services,Children's & Education Services,Other Education and Community Budget,5105733834,08.02.2023,Home to School SEN Transport (LA),Taxis - Contract Hire,"1,680.00",REDACTED PERSONAL DATA
Revenue,Childrens Services,Children's & Education Services,Other Education and Community Budget,5105733839,08.02.2023,Home to School SEN Transport (LA),Taxis - Contract Hire,"2,000.00",REDACTED PERSONAL DATA
Revenue,Childrens Services,Children's & Education Services,Other Education and Community Budget,5105733840,08.02.2023,Home to School SEN Transport (LA),Taxis - Contract Hire,"1,620.00",REDACTED PERSONAL DATA
Revenue,Childrens Services,Children's & Education Services,Other Education and Community Budget,5105733843,08.02.2023,Home to School SEN Transport (LA),Taxis - Contract Hire,"2,000.00",REDACTED PERSONAL DATA
Revenue,Childrens Services,Children's & Education Services,Other Education and Community Budget,5105733846,08.02.2023,Home to School SEN Transport (LA),Taxis - Contract Hire,"1,680.00",REDACTED PERSONAL DATA
Revenue,Childrens Services,Children's & Education Services,Other Education and Community Budget,5105733848,08.02.2023,Home to School SEN Transport (LA),Taxis - Contract Hire,"2,600.00",REDACTED PERSONAL DATA
Revenue,Childrens Services,Children's & Education Services,Management & Support Services,5105733829,08.02.2023,Special Discretionary Grants,Transport of Clients,"2,100.00",REDACTED PERSONAL DATA
Revenue,Childrens Services,Children's & Education Services,Management & Support Services,5105733839,08.02.2023,Special Discretionary Grants,Taxis - Contract Hire,400,REDACTED PERSONAL DATA
Revenue,Childrens Services,Children's & Education Services,Other Education and Community Budget,5105733841,08.02.2023,Home to College Post 16 Transport,Taxis - Contract Hire,"1,200.00",REDACTED PERSONAL DATA
Revenue,Childrens Services,Children's & Education Services,Other Education and Community Budget,5105733845,08.02.2023,Home to College Post 16 Transport,Taxis - Contract Hire,"1,080.00",REDACTED PERSONAL DATA
Revenue,Childrens Services,Children's & Education Services,Other Education and Community Budget,5105735028,22.02.2023,Home to School Mainstream Transport,Taxis - Contract Hire,"2,520.00",REDACTED PERSONAL DATA
Revenue,Childrens Services,Children's & Education Services,Other Education and Community Budget,5105733836,08.02.2023,Home to School Mainstream Transport,Taxis - Contract Hire,"1,680.00",REDACTED PERSONAL DATA
Revenue,Childrens Services,Children's & Education Services,Other Education and Community Budget,5105733842,08.02.2023,Home to School Mainstream Transport,Taxis - Contract Hire,"1,470.00",REDACTED PERSONAL DATA
Revenue,Childrens Services,Children's & Education Services,Other Education and Community Budget,5105733844,08.02.2023,Home to School Mainstream Transport,Taxis - Contract Hire,"4,725.00",REDACTED PERSONAL DATA
Revenue,Childrens Services,Children's & Education Services,Other Education and Community Budget,5105733847,08.02.2023,Home to School Mainstream Transport,Taxis - Contract Hire,"2,100.00",REDACTED PERSONAL DATA
Revenue,Childrens Services,Children's & Education Services,Other Education and Community Budget,5105733849,08.02.2023,Home to School Mainstream Transport,Taxis - Contract Hire,"1,050.00",REDACTED PERSONAL DATA
Revenue,Childrens Services,Children's & Education Services,Other Education and Community Budget,5105733856,08.02.2023,Home to School Mainstream Transport,Taxis - Contract Hire,"2,310.00",REDACTED PERSONAL DATA
Revenue,Childrens Services,Children's & Education Services,Special Schools & Alternative Provision,5105733831,08.02.2023,Island Learning Centre,Schools Catering Contract,320,REDACTED PERSONAL DATA
Revenue,Neighbourhoods,Cultural and Related Services,Recreation and Sport,5105733750,08.02.2023,Medina Leisure Centre,Security of Buildings,170.63,ADT FIRE AND SECURITY PLC
Revenue,Adult Services,Adult Social Care,Social Care Activities,5105720404,22.02.2023,DoLS/MCA,Professional Services,150,ADVOCACY FOR ALL
Revenue,Adult Services,Adult Social Care,Social Care Activities,5105720404,22.02.2023,DoLS/MCA,Professional Services,1.55,ADVOCACY FOR ALL
Revenue,Adult Services,Adult Social Care,Social Care Activities,5105720405,17.02.2023,DoLS/MCA,Professional Services,58.45,ADVOCACY FOR ALL
Revenue,Adult Services,Central Services,Emergency Planning,5105734463,15.02.2023,NHS C19 Nursing,Charges from Independent Providers,"5,800.20",AGINCARE HOMES HOLDINGS [SB]
Revenue,Adult Services,Central Services,Emergency Planning,5105734463,15.02.2023,NHS C19 Residential,Charges from Independent Providers,"4,600.12",AGINCARE HOMES HOLDINGS [SB]
Revenue,Adult Services,Central Services,Emergency Planning,5105734463,15.02.2023,NHS C19 Residential,Charges from Independent Providers,"5,200.16",AGINCARE HOMES HOLDINGS [SB]
Revenue,Adult Services,Adult Social Care,Support - Memory /Cognition-older people (65+),5105735346,22.02.2023,Memory & Cognition Nursing 65+,Charges from Independent Providers,"8,728.84",AGINCARE HOMES HOLDINGS [SB]
Revenue,Adult Services,Adult Social Care,Physical Support - older people (65+),5105735346,22.02.2023,Physical Support Nursing 65+,Charges from Independent Providers,"8,000.00",AGINCARE HOMES HOLDINGS [SB]
Revenue,Adult Services,Adult Social Care,Physical Support - older people (65+),5105734463,15.02.2023,Physical Support Nursing 65+,Charges from Independent Providers,"8,699.88",AGINCARE HOMES HOLDINGS [SB]
Revenue,Adult Services,Adult Social Care,Commissioning & Service Delivery,5105734974,17.02.2023,Group Manager Leaning Disability Homes,Publications,64.94,AGORA BUSINESS PUBLICATIONS LLP
Revenue,Resources,Housing Services,Housing Benefits Administration,5105734189,15.02.2023,Housing Benefit,Printing Costs,487.5,AIREY CONSULTANCY SERVICES LTD
Revenue,Resources,Central Services,Central Services to the Public,5105734189,15.02.2023,National Non Domestic Rates,Printing Costs,450,AIREY CONSULTANCY SERVICES LTD
Revenue,Adult Services,Adult Social Care,Central Codes (to be reallocated),5105733255,10.02.2023,Gouldings Resource Centre,Property Services - Day to day Maintenance,222,AIRTEK SERVICES IOW LTD
Revenue,Neighbourhoods,Cultural and Related Services,Library Service,5105733253,01.02.2023,Newport Library,Property Services - Day to day Maintenance,150,AIRTEK SERVICES IOW LTD
Revenue,Neighbourhoods,Cultural and Related Services,Library Service,5105734599,15.02.2023,Newport Library,Property Services - Day to day Maintenance,100,AIRTEK SERVICES IOW LTD
Revenue,Regeneration,Central Services,Support Services,5105734600,15.02.2023,"Westridge, Ryde",Property Services - Day to day Maintenance,100,AIRTEK SERVICES IOW LTD
Revenue,Regeneration,Central Services,Support Services,5105734370,15.02.2023,"County Hall,Newport",Property Services - Day to day Maintenance,100,AIRTEK SERVICES IOW LTD
Revenue,Childrens Services,Children's & Education Services,Other Education and Community Budget,5105735337,22.02.2023,Home to School SEN Transport (LA),Taxis - Contract Hire,"1,100.00",AKAR TAXIS
Revenue,Childrens Services,Children's & Education Services,Other Education and Community Budget,5105735339,22.02.2023,Home to School SEN Transport (LA),Taxis - Contract Hire,966,AKAR TAXIS
Revenue,Childrens Services,Children's & Education Services,Other Education and Community Budget,5105735340,22.02.2023,Home to School SEN Transport (LA),Taxis - Contract Hire,216,AKAR TAXIS
Revenue,Childrens Services,Children's & Education Services,Other Education and Community Budget,5105735341,22.02.2023,Home to School Mainstream Transport,Taxis - Contract Hire,"1,680.00",AKAR TAXIS
Revenue,Adult Services,Adult Social Care,Assistive Equipment & Technology,5105727438,17.02.2023,BCF Community Equipment Store,Professional Services,496.24,AKW MEDI-CARE LTD
Revenue,Adult Services,Adult Social Care,Assistive Equipment & Technology,5105732306,15.02.2023,BCF Community Equipment Store,Operational Equipment,237.25,AKW MEDI-CARE LTD
Revenue,Chief Executive,Adult Social Care,Social Support - Asylum Seeker Support,5105735877,24.02.2023,Ukraine - Host Payments,Grants to individuals,350,REDACTED PERSONAL DATA
Revenue,Chief Executive,Adult Social Care,Social Support - Asylum Seeker Support,5105735877,24.02.2023,Ukraine - Host Payments,Grants to individuals,200,REDACTED PERSONAL DATA
Revenue,Adult Services,Adult Social Care,Social Care Activities,5105734139,17.02.2023,LSAB Conferences,Professional Services,425,ALCOHOL CHANGE UK
Revenue,Adult Services,Adult Social Care,Social Care Activities,5105734136,10.02.2023,LSAB Conferences,Professional Services,425,ALCOHOL CHANGE UK
Revenue,Adult Services,Adult Social Care,Social Care Activities,5105734138,10.02.2023,LSAB Conferences,Professional Services,425,ALCOHOL CHANGE UK
Revenue,Childrens Services,Children's & Education Services,Other Education and Community Budget,5105734517,15.02.2023,Home to School SEN Transport (LA),Taxis - Contract Hire,"3,000.00",REDACTED PERSONAL DATA
Revenue,Childrens Services,Children's & Education Services,Other Education and Community Budget,5105734518,15.02.2023,Home to School SEN Transport (LA),Taxis - Contract Hire,"1,575.00",REDACTED PERSONAL DATA
Revenue,Childrens Services,Children's & Education Services,Other Education and Community Budget,5105734516,15.02.2023,Home to School Mainstream Transport,Taxis - Contract Hire,"1,995.00",REDACTED PERSONAL DATA
Revenue,Resources,Highways and Transport Services,Public Transport,5105734647,17.02.2023,Transport Fleet Administration,Vehicle Fuel Costs,"14,895.30",ALLSTAR BUSINESS SOLUTIONS LTD
Revenue,Childrens Services,Children's & Education Services,Other Education and Community Budget,5105735364,22.02.2023,Home to School SEN Transport (LA),Taxis - Contract Hire,"2,720.00",ALPHA (IOW) LTD
Revenue,Childrens Services,Children's & Education Services,Other Education and Community Budget,5105735364,22.02.2023,Home to School SEN Transport (LA),Taxis - Contract Hire,960,ALPHA (IOW) LTD
Revenue,Childrens Services,Children's & Education Services,Other Education and Community Budget,5105735364,22.02.2023,Home to School SEN Transport (LA),Taxis - Contract Hire,"1,120.00",ALPHA (IOW) LTD
Revenue,Childrens Services,Children's & Education Services,Other Education and Community Budget,5105735364,22.02.2023,Home to School SEN Transport (LA),Taxis - Contract Hire,"1,280.00",ALPHA (IOW) LTD
Revenue,Childrens Services,Children's & Education Services,Other Education and Community Budget,5105735364,22.02.2023,Home to School SEN Transport (LA),Taxis - Contract Hire,960,ALPHA (IOW) LTD
Revenue,Childrens Services,Children's & Education Services,Other Education and Community Budget,5105735364,22.02.2023,Home to School SEN Transport (LA),Taxis - Contract Hire,"2,700.00",ALPHA (IOW) LTD
Revenue,Childrens Services,Children's & Education Services,Other Education and Community Budget,5105735364,22.02.2023,Home to School SEN Transport (LA),Taxis - Contract Hire,700,ALPHA (IOW) LTD
Revenue,Childrens Services,Children's & Education Services,Other Education and Community Budget,5105735364,22.02.2023,Home to School SEN Transport (LA),Taxis - Contract Hire,960,ALPHA (IOW) LTD
Revenue,Childrens Services,Children's & Education Services,Other Education and Community Budget,5105735364,22.02.2023,Home to School SEN Transport (LA),Taxis - Contract Hire,"3,900.00",ALPHA (IOW) LTD
Revenue,Childrens Services,Children's & Education Services,Other Education and Community Budget,5105735364,22.02.2023,Home to School SEN Transport (LA),Taxis - Contract Hire,"1,760.00",ALPHA (IOW) LTD
Revenue,Childrens Services,Children's & Education Services,Other Education and Community Budget,5105735364,22.02.2023,Home to School SEN Transport (LA),Taxis - Contract Hire,"2,400.00",ALPHA (IOW) LTD
Revenue,Childrens Services,Children's & Education Services,Other Education and Community Budget,5105735364,22.02.2023,Home to School SEN Transport (LA),Taxis - Contract Hire,"1,920.00",ALPHA (IOW) LTD
Revenue,Childrens Services,Children's & Education Services,Children Looked After,5105734863,22.02.2023,Support for LAC CWD,Support Children,103.7,ALPHA (IOW) LTD
Revenue,Childrens Services,Children's & Education Services,Children Looked After,5105713855,15.02.2023,Support for Looked After Children,Transport of Clients,"1,448.80",ALPHA (IOW) LTD
Revenue,Childrens Services,Children's & Education Services,Children Looked After,5105734429,13.02.2023,Support for Looked After Children,Transport of Clients,-683.8,ALPHA (IOW) LTD
Revenue,Childrens Services,Children's & Education Services,Children Looked After,5105734431,13.02.2023,Support for Looked After Children,Transport of Clients,-765,ALPHA (IOW) LTD
Revenue,Childrens Services,Children's & Education Services,Children Looked After,5105734433,13.02.2023,Support for Looked After Children,Transport of Clients,683.8,ALPHA (IOW) LTD
Revenue,Childrens Services,Children's & Education Services,Children Looked After,5105734434,13.02.2023,Support for Looked After Children,Transport of Clients,765,ALPHA (IOW) LTD
Revenue,Childrens Services,Children's & Education Services,Children Looked After,5105734435,15.02.2023,Support for Looked After Children,Transport of Clients,-683.8,ALPHA (IOW) LTD
Revenue,Childrens Services,Children's & Education Services,Children Looked After,5105734438,15.02.2023,Support for Looked After Children,Transport of Clients,-765,ALPHA (IOW) LTD
Revenue,Childrens Services,Children's & Education Services,Other Education and Community Budget,5105735364,22.02.2023,Home to College Post 16 Transport,Taxis - Contract Hire,770,ALPHA (IOW) LTD
Revenue,Childrens Services,Children's & Education Services,Other Education and Community Budget,5105735364,22.02.2023,Home to College Post 16 Transport,Taxis - Contract Hire,525,ALPHA (IOW) LTD
Revenue,Childrens Services,Children's & Education Services,Other Education and Community Budget,5105735364,22.02.2023,Home to College Post 16 Transport,Taxis - Contract Hire,"1,150.00",ALPHA (IOW) LTD
Revenue,Childrens Services,Children's & Education Services,Other Education and Community Budget,5105735364,22.02.2023,Home to College Post 16 Transport,Taxis - Contract Hire,"1,040.00",ALPHA (IOW) LTD
Revenue,Childrens Services,Children's & Education Services,Other Education and Community Budget,5105735364,22.02.2023,Home to College Post 16 Transport,Taxis - Contract Hire,700,ALPHA (IOW) LTD
Revenue,Childrens Services,Children's & Education Services,Other Education and Community Budget,5105735364,22.02.2023,Home to School Mainstream Transport,Taxis - Contract Hire,"1,440.00",ALPHA (IOW) LTD
Revenue,Childrens Services,Children's & Education Services,Other Education and Community Budget,5105735364,22.02.2023,Home to School Mainstream Transport,Taxis - Contract Hire,"1,280.00",ALPHA (IOW) LTD
Revenue,Childrens Services,Children's & Education Services,Other Education and Community Budget,5105735364,22.02.2023,Home to School Mainstream Transport,Taxis - Contract Hire,"1,280.00",ALPHA (IOW) LTD
Revenue,Childrens Services,Children's & Education Services,Other Education and Community Budget,5105735364,22.02.2023,Home to School Mainstream Transport,Taxis - Contract Hire,800,ALPHA (IOW) LTD
Revenue,Childrens Services,Children's & Education Services,Other Education and Community Budget,5105735364,22.02.2023,Home to School Mainstream Transport,Taxis - Contract Hire,"1,920.00",ALPHA (IOW) LTD
Revenue,Childrens Services,Children's & Education Services,Other Education and Community Budget,5105735364,22.02.2023,Home to School Mainstream Transport,Taxis - Contract Hire,825,ALPHA (IOW) LTD
Revenue,Childrens Services,Children's & Education Services,Other Education and Community Budget,5105735364,22.02.2023,Home to School Mainstream Transport,Taxis - Contract Hire,825,ALPHA (IOW) LTD
Revenue,Adult Services,Adult Social Care,Learning Disability Suppt-adults (18-64),5105734298,15.02.2023,Learning Disability Residential 18-64,Charges from Independent Providers,"4,087.72",ALPHAGRANGE LTD
Revenue,Childrens Services,Children's & Education Services,Children Looked After,5105734024,10.02.2023,Children placed with Family&Friends,Boarding Out Allowances,231,REDACTED PERSONAL DATA
Revenue,Childrens Services,Children's & Education Services,Children Looked After,5105733456,03.02.2023,Children placed with Family&Friends,Boarding Out Allowances,231,REDACTED PERSONAL DATA
Revenue,Childrens Services,Children's & Education Services,Children Looked After,5105734770,17.02.2023,Children placed with Family&Friends,Boarding Out Allowances,231,REDACTED PERSONAL DATA
Revenue,Childrens Services,Children's & Education Services,Children Looked After,5105735554,24.02.2023,Children placed with Family&Friends,Boarding Out Allowances,231,REDACTED PERSONAL DATA
Revenue,Neighbourhoods,Cultural and Related Services,Recreation and Sport,5105734376,15.02.2023,"FairwaySC+Track,RydeSC,WWightSC Subsidy",Payment to Private Contractors,181.64,AMP HIRE LTD
Revenue,Neighbourhoods,Cultural and Related Services,Recreation and Sport,5105734493,24.02.2023,"FairwaySC+Track,RydeSC,WWightSC Subsidy",Payment to Private Contractors,50,AMP HIRE LTD
Revenue,Neighbourhoods,Cultural and Related Services,Recreation and Sport,5105733737,15.02.2023,"FairwaySC+Track,RydeSC,WWightSC Subsidy",Payment to Private Contractors,-210.32,AMP HIRE LTD
Revenue,Childrens Services,Children's & Education Services,Management & Support Services,5105734496,15.02.2023,Special Discretionary Grants,Operational Equipment,836,AMP HIRE LTD
Revenue,Resources,Central Services,Support Services,5105735647,24.02.2023,Litigation Costs,Legal Fees - Other Parties,"1,200.00","ANDREW BOND BARRISTER, PUMP COURT CHAMBERS, WINCHESTER"
Revenue,Chief Executive,Adult Social Care,Social Support - Asylum Seeker Support,5105735888,24.02.2023,Ukraine - Host Payments,Grants to individuals,350,REDACTED PERSONAL DATA
Revenue,Chief Executive,Adult Social Care,Social Support - Asylum Seeker Support,5105735888,24.02.2023,Ukraine - Host Payments,Grants to individuals,200,REDACTED PERSONAL DATA
Revenue,Childrens Services,Children's & Education Services,Other Education and Community Budget,5105734457,24.02.2023,Home to School SEN Transport (LA),Taxis - Contract Hire,"2,310.00",ANT'S TAXIS
Revenue,Adult Services,Adult Social Care,Assistive Equipment & Technology,5105734418,17.02.2023,Wightcare,Operational Equipment,600,ANYWHERE CARE LIMITED
Revenue,Adult Services,Adult Social Care,Assistive Equipment & Technology,5105734991,22.02.2023,Wightcare,Operational Equipment,"2,640.00",ANYWHERE CARE LIMITED
Revenue,Neighbourhoods,Cultural and Related Services,Recreation and Sport,5105733612,10.02.2023,Medina Leisure Centre,Stock Purchases,6.5,APG SPORTS GROUP LTD
Revenue,Neighbourhoods,Cultural and Related Services,Recreation and Sport,5105733613,03.02.2023,Medina Leisure Centre,Stock Purchases,93.6,APG SPORTS GROUP LTD
Revenue,Neighbourhoods,Cultural and Related Services,Recreation and Sport,5105733614,03.02.2023,Medina Leisure Centre,Stock Purchases,9.06,APG SPORTS GROUP LTD
Revenue,Neighbourhoods,Cultural and Related Services,Recreation and Sport,5105733607,03.02.2023,Medina Leisure Centre,Stock Purchases,51.96,APG SPORTS GROUP LTD
Revenue,Neighbourhoods,Cultural and Related Services,Recreation and Sport,5105733608,03.02.2023,Medina Leisure Centre,Stock Purchases,3.02,APG SPORTS GROUP LTD
Revenue,Neighbourhoods,Cultural and Related Services,Recreation and Sport,5105733611,03.02.2023,Medina Leisure Centre,Stock Purchases,108.7,APG SPORTS GROUP LTD
Revenue,Neighbourhoods,Cultural and Related Services,Recreation and Sport,5105733612,10.02.2023,Medina Leisure Centre,Stock Purchases,10,APG SPORTS GROUP LTD
Revenue,Neighbourhoods,Cultural and Related Services,Recreation and Sport,5105735990,24.02.2023,Medina Leisure Centre,Stock Purchases,201.04,APG SPORTS GROUP LTD
Revenue,Neighbourhoods,Cultural and Related Services,Recreation and Sport,5105735688,24.02.2023,Medina Leisure Centre,Stock Purchases,150,APG SPORTS GROUP LTD
Revenue,Neighbourhoods,Cultural and Related Services,Recreation and Sport,5105735173,22.02.2023,The Heights,Stock Purchases,154.16,APG SPORTS GROUP LTD
Revenue,Neighbourhoods,Cultural and Related Services,Recreation and Sport,5105735688,24.02.2023,The Heights,Stock Purchases,891.6,APG SPORTS GROUP LTD
Revenue,Neighbourhoods,Cultural and Related Services,Recreation and Sport,5105733544,03.02.2023,The Heights,Stock Purchases,187.2,APG SPORTS GROUP LTD
Revenue,Neighbourhoods,Cultural and Related Services,Recreation and Sport,5105733626,03.02.2023,The Heights,Stock Purchases,34,APG SPORTS GROUP LTD
Revenue,Neighbourhoods,Cultural and Related Services,Recreation and Sport,5105733627,03.02.2023,The Heights,Stock Purchases,51.96,APG SPORTS GROUP LTD
Revenue,Neighbourhoods,Cultural and Related Services,Recreation and Sport,5105733629,03.02.2023,The Heights,Stock Purchases,207.84,APG SPORTS GROUP LTD
Revenue,Neighbourhoods,Cultural and Related Services,Recreation and Sport,5105733715,22.02.2023,The Heights,Stock Purchases,60,APG SPORTS GROUP LTD
Revenue,Neighbourhoods,Cultural and Related Services,Recreation and Sport,5105733715,22.02.2023,The Heights,Stock Purchases,26,APG SPORTS GROUP LTD
Revenue,Neighbourhoods,Cultural and Related Services,Recreation and Sport,5105733716,08.02.2023,The Heights,Stock Purchases,551.04,APG SPORTS GROUP LTD
Revenue,Neighbourhoods,Environmental & Regulatory Services,Service Management and Support Services,5105734479,17.02.2023,Waste Contract Management,Professional Subscriptions,"2,280.00",APSE
Revenue,Neighbourhoods,Environmental & Regulatory Services,Service Management and Support Services,5105733801,10.02.2023,Environment officers,Clothing & Laundry,9.97,ARCO LTD
Revenue,Neighbourhoods,Highways and Transport Services,"Airports, Harbours & Toll Facilities",5105732106,01.02.2023,Ferry Operation,Clothing & Laundry,24.7,ARCO LTD
Revenue,Neighbourhoods,Highways and Transport Services,"Airports, Harbours & Toll Facilities",5105732453,03.02.2023,Ferry Operation,Clothing & Laundry,10.8,ARCO LTD
Revenue,Neighbourhoods,Highways and Transport Services,"Airports, Harbours & Toll Facilities",5105732453,03.02.2023,Ferry Operation,Clothing & Laundry,15.28,ARCO LTD
Revenue,Neighbourhoods,Highways and Transport Services,"Airports, Harbours & Toll Facilities",5105732453,03.02.2023,Ferry Operation,Clothing & Laundry,15.28,ARCO LTD
Revenue,Neighbourhoods,Highways and Transport Services,"Airports, Harbours & Toll Facilities",5105732453,03.02.2023,Ferry Operation,Clothing & Laundry,13.36,ARCO LTD
Revenue,Neighbourhoods,Highways and Transport Services,"Airports, Harbours & Toll Facilities",5105735211,22.02.2023,Ferry Operation,Clothing & Laundry,19.98,ARCO LTD
Revenue,Neighbourhoods,Highways and Transport Services,"Airports, Harbours & Toll Facilities",5105735211,22.02.2023,Ferry Operation,Clothing & Laundry,103.74,ARCO LTD
Revenue,Neighbourhoods,Highways and Transport Services,"Airports, Harbours & Toll Facilities",5105735211,22.02.2023,Ferry Operation,Clothing & Laundry,9.99,ARCO LTD
Revenue,Neighbourhoods,Highways and Transport Services,"Airports, Harbours & Toll Facilities",5105735211,22.02.2023,Ferry Operation,Clothing & Laundry,28.84,ARCO LTD
Revenue,Neighbourhoods,Highways and Transport Services,"Airports, Harbours & Toll Facilities",5105735211,22.02.2023,Ferry Operation,Clothing & Laundry,19.98,ARCO LTD
Revenue,Resources,Central Services,Support Services,5105734242,15.02.2023,Corporate Stores,Clothing & Laundry,30.86,ARCO LTD
Revenue,Resources,Central Services,Support Services,5105735010,24.02.2023,Corporate Stores,Clothing & Laundry,274.4,ARCO LTD
Revenue,Regeneration,Central Services,Support Services,5105734442,22.02.2023,"County Hall,Newport",Property Services - Planned Maintenance,201,ARJO UK LTD
Revenue,Adult Services,Adult Social Care,Central Codes (to be reallocated),5105735392,24.02.2023,Adelaide Resource Centre,Property Services - Planned Maintenance,89,ARJO UK LTD
Revenue,Corporate Items,Central Services,Corporate and Democratic Core,5105735215,22.02.2023,Corporate Management,Professional Services,"3,542.50",ARLINGCLOSE LIMITED
Revenue,Corporate Items,Central Services,Corporate and Democratic Core,5105735215,22.02.2023,Corporate Management,Professional Services,"3,542.50",ARLINGCLOSE LIMITED
Revenue,Neighbourhoods,Environmental & Regulatory Services,"Cemetery, Cremation & Mortuary Services",5105733233,01.02.2023,Cemeteries Administration,Professional Services,530.05,ARRETON PARISH COUNCIL
Revenue,Childrens Services,Children's & Education Services,Family Support Services,5105735640,24.02.2023,Supporting Families,Payments to Voluntary and Other Associations,750,ASPIRE RYDE
Revenue,Childrens Services,Children's & Education Services,Family Support Services,5105719196,17.02.2023,Supporting Families,Payments to Voluntary and Other Associations,"3,000.00",ASPIRE RYDE
Revenue,Childrens Services,Children's & Education Services,Family Support Services,5105734853,17.02.2023,Supporting Families,Payments to Voluntary and Other Associations,"-3,000.00",ASPIRE RYDE
Revenue,Adult Services,Adult Social Care,Commissioning & Service Delivery,5105735652,24.02.2023,BCF Early Help,Payment to Private Contractors,"58,758.33",ASPIRE RYDE
Revenue,Adult Services,Adult Social Care,Commissioning & Service Delivery,5105735034,22.02.2023,BCF Early Help,Payment to Private Contractors,"58,758.33",ASPIRE RYDE
Revenue,Childrens Services,Children's & Education Services,Special Schools & Alternative Provision,5105735778,24.02.2023,Island Learning Centre,Schools Examination Fees,20.6,ASSESSMENT & QUALIFICATION ALLIANCE
Revenue,Childrens Services,Children's & Education Services,Management & Support Services,5105735724,24.02.2023,Specialist Teacher Advisors,Training,353,ATKEY SOLUTIONS LTD
Revenue,Adult Services,Adult Social Care,Support - Memory /Cognition-older people (65+),5105734282,15.02.2023,Memory & Cognition Residential 65+,Charges from Independent Providers,"3,095.12",AUTUMN HOUSE CARE LTD
Revenue,Adult Services,Adult Social Care,Support - Memory /Cognition-older people (65+),5105734282,15.02.2023,Memory & Cognition Residential 65+,Charges from Independent Providers,"2,653.56",AUTUMN HOUSE CARE LTD
Revenue,Adult Services,Adult Social Care,Support - Memory /Cognition-older people (65+),5105734282,15.02.2023,Memory & Cognition Residential 65+,Charges from Independent Providers,"2,653.56",AUTUMN HOUSE CARE LTD
Revenue,Adult Services,Adult Social Care,Support - Memory /Cognition-older people (65+),5105734282,15.02.2023,Memory & Cognition Residential 65+,Charges from Independent Providers,"3,095.12",AUTUMN HOUSE CARE LTD
Revenue,Adult Services,Adult Social Care,Support - Memory /Cognition-older people (65+),5105734282,15.02.2023,Memory & Cognition Residential 65+,Charges from Independent Providers,"2,653.56",AUTUMN HOUSE CARE LTD
Revenue,Adult Services,Adult Social Care,Physical Support - adults (18-64),5105734282,15.02.2023,Physical Support Residential 18-64,Charges from Independent Providers,"2,653.56",AUTUMN HOUSE CARE LTD
Revenue,Adult Services,Adult Social Care,Support - Memory /Cognition-older people (65+),5105734282,15.02.2023,Memory & Cognition Residential 65+,Charges from Independent Providers,"2,950.64",AUTUMN HOUSE CARE LTD
Revenue,Adult Services,Adult Social Care,Support - Memory /Cognition-older people (65+),5105734282,15.02.2023,Memory & Cognition Residential 65+,Charges from Independent Providers,"2,653.56",AUTUMN HOUSE CARE LTD
Revenue,Adult Services,Adult Social Care,Support - Memory /Cognition-older people (65+),5105734282,15.02.2023,Memory & Cognition Residential 65+,Charges from Independent Providers,"2,653.56",AUTUMN HOUSE CARE LTD
Revenue,Adult Services,Adult Social Care,Support - Memory /Cognition-older people (65+),5105734282,15.02.2023,Memory & Cognition Residential 65+,Charges from Independent Providers,"3,240.16",AUTUMN HOUSE CARE LTD
Revenue,Adult Services,Adult Social Care,Support - Memory /Cognition-older people (65+),5105734282,15.02.2023,Memory & Cognition Residential 65+,Charges from Independent Providers,"2,653.56",AUTUMN HOUSE CARE LTD
Revenue,Adult Services,Adult Social Care,Support - Memory /Cognition-older people (65+),5105734282,15.02.2023,Memory & Cognition Residential 65+,Charges from Independent Providers,"3,095.12",AUTUMN HOUSE CARE LTD
Revenue,Adult Services,Adult Social Care,Social Support - Social Isolation/Other,5105734282,15.02.2023,Social Isolation/Other Residential,Charges from Independent Providers,"2,155.44",AUTUMN HOUSE CARE LTD
Revenue,Adult Services,Adult Social Care,Support - Memory /Cognition-older people (65+),5105734282,15.02.2023,Memory & Cognition Residential 65+,Charges from Independent Providers,"3,400.04",AUTUMN HOUSE CARE LTD
Revenue,Adult Services,Central Services,Emergency Planning,5105733362,03.02.2023,NHS C19 Residential,Charges from Independent Providers,"3,095.12",AUTUMN HOUSE CARE LTD
Revenue,Adult Services,Central Services,Emergency Planning,5105734466,15.02.2023,NHS C19 Residential,Charges from Independent Providers,"3,095.12",AUTUMN HOUSE CARE LTD
Revenue,Adult Services,Central Services,Emergency Planning,5105733865,15.02.2023,NHS C19 Residential,Charges from Independent Providers,"3,095.12",AUTUMN HOUSE CARE LTD
Revenue,Adult Services,Adult Social Care,Social Support - Social Isolation/Other,5105735120,22.02.2023,Social Isolation/Other Residential,Charges from Independent Providers,692.82,AUTUMN HOUSE CARE LTD
Revenue,Adult Services,Adult Social Care,Support - Memory /Cognition-older people (65+),5105735120,22.02.2023,Memory & Cognition Residential 65+,Charges from Independent Providers,"3,400.04",AUTUMN HOUSE CARE LTD
Revenue,Adult Services,Adult Social Care,Support - Memory /Cognition-older people (65+),5105735120,22.02.2023,Memory & Cognition Residential 65+,Charges from Independent Providers,"1,148.00",AUTUMN HOUSE CARE LTD
Revenue,Adult Services,Adult Social Care,Physical Support - older people (65+),5105734282,15.02.2023,Physical Support Residential 65+,Charges from Independent Providers,"2,653.56",AUTUMN HOUSE CARE LTD
Revenue,Adult Services,Adult Social Care,Physical Support - older people (65+),5105734282,15.02.2023,Physical Support Residential 65+,Charges from Independent Providers,"2,653.56",AUTUMN HOUSE CARE LTD
Revenue,Adult Services,Adult Social Care,Physical Support - older people (65+),5105734282,15.02.2023,Physical Support Residential 65+,Charges from Independent Providers,"2,653.56",AUTUMN HOUSE CARE LTD
Revenue,Adult Services,Adult Social Care,Physical Support - older people (65+),5105734282,15.02.2023,Physical Support Residential 65+,Charges from Independent Providers,"2,653.56",AUTUMN HOUSE CARE LTD
Revenue,Adult Services,Adult Social Care,Physical Support - older people (65+),5105734282,15.02.2023,Physical Support Residential 65+,Charges from Independent Providers,"2,653.56",AUTUMN HOUSE CARE LTD
Revenue,Adult Services,Adult Social Care,Physical Support - older people (65+),5105734282,15.02.2023,Physical Support Residential 65+,Charges from Independent Providers,"2,653.56",AUTUMN HOUSE CARE LTD
Revenue,Adult Services,Adult Social Care,Physical Support - older people (65+),5105734282,15.02.2023,Physical Support Residential 65+,Charges from Independent Providers,"2,653.56",AUTUMN HOUSE CARE LTD
Revenue,Adult Services,Adult Social Care,Physical Support - older people (65+),5105734282,15.02.2023,Physical Support Residential 65+,Charges from Independent Providers,"2,653.56",AUTUMN HOUSE CARE LTD
Revenue,Adult Services,Adult Social Care,Physical Support - older people (65+),5105734282,15.02.2023,Physical Support Residential 65+,Charges from Independent Providers,"3,566.64",AUTUMN HOUSE CARE LTD
Revenue,Adult Services,Adult Social Care,Physical Support - older people (65+),5105734282,15.02.2023,Physical Support Residential 65+,Charges from Independent Providers,"2,950.64",AUTUMN HOUSE CARE LTD
Revenue,Adult Services,Adult Social Care,Physical Support - older people (65+),5105734282,15.02.2023,Physical Support Residential 65+,Charges from Independent Providers,"2,653.56",AUTUMN HOUSE CARE LTD
Revenue,Adult Services,Adult Social Care,Physical Support - older people (65+),5105734282,15.02.2023,Physical Support Residential 65+,Charges from Independent Providers,"2,950.64",AUTUMN HOUSE CARE LTD
Revenue,Adult Services,Adult Social Care,Physical Support - older people (65+),5105734282,15.02.2023,Physical Support Residential 65+,Charges from Independent Providers,"2,653.56",AUTUMN HOUSE CARE LTD
Revenue,Adult Services,Adult Social Care,Physical Support - older people (65+),5105734282,15.02.2023,Physical Support Residential 65+,Charges from Independent Providers,"3,180.24",AUTUMN HOUSE CARE LTD
Revenue,Adult Services,Adult Social Care,Physical Support - older people (65+),5105734960,17.02.2023,Physical Support Residential 65+,Charges from Independent Providers,"2,307.07",AUTUMN HOUSE CARE LTD
Revenue,Resources,Central Services,Support Services,5105734498,15.02.2023,ICT Contracts,Computer Purchase & Rental,330,AVOIRA LIMITED
Revenue,Resources,Central Services,Support Services,5105734498,15.02.2023,ICT Contracts,Computer Purchase & Rental,30,AVOIRA LIMITED
Revenue,Neighbourhoods,Cultural and Related Services,Service Management and Support Services,5105734636,15.02.2023,Duke of Edingburgh Award,Operational Equipment,192,AWARD SCHEME LTD
Revenue,Neighbourhoods,Cultural and Related Services,Library Service,5105735088,22.02.2023,Sandown Library,Operational Equipment,239,AXIOMATIC TECHNOLOGY LTD
Revenue,Adult Services,Adult Social Care,Social Care Activities,5105733815,08.02.2023,DoLS/MCA,Professional Services,"2,299.83",AYASHMEDICAL SERVICES LTD
Revenue,Childrens Services,Children's & Education Services,Children Looked After,5105733948,10.02.2023,In-house Fostering,Boarding Out Allowances,561.77,REDACTED PERSONAL DATA
Revenue,Childrens Services,Children's & Education Services,Children Looked After,5105733948,10.02.2023,In-house Fostering,Boarding Out Allowances,722.28,REDACTED PERSONAL DATA
Revenue,Childrens Services,Children's & Education Services,Children Looked After,5105735479,24.02.2023,In-house Fostering,Boarding Out Allowances,561.77,REDACTED PERSONAL DATA
Revenue,Childrens Services,Children's & Education Services,Children Looked After,5105734695,17.02.2023,In-house Fostering,Boarding Out Allowances,561.77,REDACTED PERSONAL DATA
Revenue,Childrens Services,Children's & Education Services,Children Looked After,5105733380,03.02.2023,In-house Fostering,Boarding Out Allowances,561.77,REDACTED PERSONAL DATA
Revenue,Adult Services,Housing Services,Homelessness,5105735048,22.02.2023,Private Rented Sector Leasing Scheme,Accommodation Costs - Leaseholder Payments,953.33,REDACTED PERSONAL DATA
Revenue,Adult Services,Adult Social Care,Physical Support - older people (65+),5105735149,22.02.2023,Physical Support Residential 65+,Charges from Independent Providers,"4,320.12",B&M INVESTMENTS LIMITED
Revenue,Adult Services,Adult Social Care,Assistive Equipment & Technology,5105734956,17.02.2023,BCF Community Equipment Store,Operational Equipment,"1,425.25",B.E.S REHAB LTD
Revenue,Adult Services,Adult Social Care,Commissioning & Service Delivery,5105734347,15.02.2023,CHC Nursing Care,Charges from Independent Providers,"10,447.64",BAGSHOT PARK CARE CENTRE
Revenue,Adult Services,Adult Social Care,Assistive Equipment & Technology,5105731377,17.02.2023,BCF Community Equipment Store,Operational Equipment,"3,315.00",BAKARE BEDS LTD
Revenue,Childrens Services,Children's & Education Services,Children Looked After,5105735183,24.02.2023,Unaccompanied Asylum Seeker Children,Charges from Independent Providers,"4,061.00",BANYA FAMILY PLACEMENT AGENCY LTD
Revenue,Adult Services,Adult Social Care,Commissioning & Service Delivery,5105734359,15.02.2023,CHC Nursing Care,Charges from Independent Providers,"6,312.60",BARCHESTER HEALTHCARE
Revenue,Childrens Services,Children's & Education Services,Children Looked After,5105732677,15.02.2023,Local Authority Care Advocacy Contract,Grants to External Bodies,"9,875.00",BARNARDO'S
Revenue,Childrens Services,Children's & Education Services,Children Looked After,5105733788,10.02.2023,Adoption Support Fund,Charges from Independent Providers,840,BARNARDO'S
Revenue,Neighbourhoods,Cultural and Related Services,Recreation and Sport,5105734639,15.02.2023,Medina Leisure Centre,Consumable Cleaning Materials,11.12,LAKE CLEANING & CATERING SUPPLIES
Revenue,Neighbourhoods,Cultural and Related Services,Recreation and Sport,5105734639,15.02.2023,Medina Leisure Centre,Consumable Cleaning Materials,91.8,LAKE CLEANING & CATERING SUPPLIES
Revenue,Neighbourhoods,Cultural and Related Services,Recreation and Sport,5105734639,15.02.2023,Medina Leisure Centre,Consumable Cleaning Materials,7.4,LAKE CLEANING & CATERING SUPPLIES
Revenue,Neighbourhoods,Cultural and Related Services,Recreation and Sport,5105734638,15.02.2023,Medina Leisure Centre,Consumable Cleaning Materials,30,LAKE CLEANING & CATERING SUPPLIES
Revenue,Neighbourhoods,Cultural and Related Services,Recreation and Sport,5105734638,15.02.2023,Medina Leisure Centre,Consumable Cleaning Materials,17.4,LAKE CLEANING & CATERING SUPPLIES
Revenue,Neighbourhoods,Cultural and Related Services,Recreation and Sport,5105734638,15.02.2023,Medina Leisure Centre,Consumable Cleaning Materials,19.8,LAKE CLEANING & CATERING SUPPLIES
Revenue,Neighbourhoods,Cultural and Related Services,Recreation and Sport,5105734638,15.02.2023,Medina Leisure Centre,Consumable Cleaning Materials,19.44,LAKE CLEANING & CATERING SUPPLIES
Revenue,Neighbourhoods,Cultural and Related Services,Recreation and Sport,5105733633,03.02.2023,Medina Leisure Centre,Consumable Cleaning Materials,273.67,LAKE CLEANING & CATERING SUPPLIES
Revenue,Neighbourhoods,Cultural and Related Services,Recreation and Sport,5105733634,03.02.2023,Medina Leisure Centre,Consumable Cleaning Materials,212.74,LAKE CLEANING & CATERING SUPPLIES
Revenue,Neighbourhoods,Cultural and Related Services,Recreation and Sport,5105733635,03.02.2023,Medina Leisure Centre,Consumable Cleaning Materials,52.1,LAKE CLEANING & CATERING SUPPLIES
Revenue,Neighbourhoods,Cultural and Related Services,Recreation and Sport,5105734638,15.02.2023,Medina Leisure Centre,Consumable Cleaning Materials,11.16,LAKE CLEANING & CATERING SUPPLIES
Revenue,Neighbourhoods,Cultural and Related Services,Recreation and Sport,5105734638,15.02.2023,Medina Leisure Centre,Consumable Cleaning Materials,11.16,LAKE CLEANING & CATERING SUPPLIES
Revenue,Neighbourhoods,Cultural and Related Services,Recreation and Sport,5105734638,15.02.2023,Medina Leisure Centre,Consumable Cleaning Materials,7.59,LAKE CLEANING & CATERING SUPPLIES
Revenue,Neighbourhoods,Cultural and Related Services,Recreation and Sport,5105734639,15.02.2023,Medina Leisure Centre,Consumable Cleaning Materials,15.75,LAKE CLEANING & CATERING SUPPLIES
Revenue,Neighbourhoods,Cultural and Related Services,Recreation and Sport,5105734639,15.02.2023,Medina Leisure Centre,Consumable Cleaning Materials,18.6,LAKE CLEANING & CATERING SUPPLIES
Revenue,Neighbourhoods,Cultural and Related Services,Recreation and Sport,5105734638,15.02.2023,Medina Leisure Centre,Consumable Cleaning Materials,15.5,LAKE CLEANING & CATERING SUPPLIES
Revenue,Adult Services,Adult Social Care,Learning Disab Supp (to be reallocated),5105732952,03.02.2023,Plean Dene,Consumable Cleaning Materials,75.43,LAKE CLEANING & CATERING SUPPLIES
Revenue,Adult Services,Adult Social Care,Learning Disab Supp (to be reallocated),5105734226,15.02.2023,Plean Dene,Consumable Cleaning Materials,77.52,LAKE CLEANING & CATERING SUPPLIES
Revenue,Adult Services,Adult Social Care,Learning Disab Supp (to be reallocated),5105733735,22.02.2023,Plean Dene,Consumable Cleaning Materials,-12.54,LAKE CLEANING & CATERING SUPPLIES
Revenue,Childrens Services,Children's & Education Services,Children Looked After,5105733630,03.02.2023,Beaulieu House,General Materials,115.76,LAKE CLEANING & CATERING SUPPLIES
Revenue,Childrens Services,Children's & Education Services,Children Looked After,5105734977,22.02.2023,Beaulieu House,General Materials,345.85,LAKE CLEANING & CATERING SUPPLIES
Revenue,Childrens Services,Children's & Education Services,Children Looked After,5105734366,15.02.2023,Beaulieu House,General Materials,14.3,LAKE CLEANING & CATERING SUPPLIES
Revenue,Neighbourhoods,Cultural and Related Services,Recreation and Sport,5105733632,03.02.2023,Westridge Squash Courts,Consumable Cleaning Materials,37,LAKE CLEANING & CATERING SUPPLIES
Revenue,Neighbourhoods,Cultural and Related Services,Recreation and Sport,5105734197,10.02.2023,Westridge Squash Courts,Consumable Cleaning Materials,13,LAKE CLEANING & CATERING SUPPLIES
Revenue,Neighbourhoods,Cultural and Related Services,Recreation and Sport,5105733636,03.02.2023,Westridge Squash Courts,Consumable Cleaning Materials,94.54,LAKE CLEANING & CATERING SUPPLIES
Revenue,Neighbourhoods,Cultural and Related Services,Recreation and Sport,5105734198,10.02.2023,The Heights,Consumable Cleaning Materials,17.95,LAKE CLEANING & CATERING SUPPLIES
Revenue,Neighbourhoods,Cultural and Related Services,Recreation and Sport,5105733637,03.02.2023,The Heights,Consumable Cleaning Materials,35.4,LAKE CLEANING & CATERING SUPPLIES
Revenue,Neighbourhoods,Cultural and Related Services,Recreation and Sport,5105733638,03.02.2023,The Heights,Consumable Cleaning Materials,151.58,LAKE CLEANING & CATERING SUPPLIES
Revenue,Neighbourhoods,Cultural and Related Services,Culture and Heritage,5105735081,22.02.2023,Medina Theatre,Advertising & Publicity,100,BEACON MEDIA LIMITED
Revenue,Childrens Services,Children's & Education Services,Management & Support Services,5105735709,24.02.2023,Independent Schools Non-Special Educational Needs,Charges from Independent Providers,"1,800.00",BEECHFIELD EDUCATION LIMITED
Revenue,Childrens Services,Children's & Education Services,Other Education and Community Budget,5105735402,22.02.2023,Home to School SEN Transport (LA),Taxis - Contract Hire,"1,800.00",BEMBRIDGE TAXIS
Revenue,Childrens Services,Children's & Education Services,Children Looked After,5105733317,01.02.2023,Leaving Care Costs,Support Children,19.99,REDACTED PERSONAL DATA
Revenue,Childrens Services,Children's & Education Services,Children Looked After,5105734131,10.02.2023,Purchased Residential,Charges from Independent Providers,"3,850.00",BENECARE FOSTERING LTD
Revenue,Adult Services,Adult Social Care,Social Care Activities,5105735311,22.02.2023,DoLS/MCA,Professional Services,"1,500.00",REDACTED PERSONAL DATA
Revenue,Adult Services,Adult Social Care,Social Care Activities,5105732704,01.02.2023,DoLS/MCA,Professional Services,"1,500.00",REDACTED PERSONAL DATA
Revenue,Adult Services,Housing Services,Homelessness,5105734945,17.02.2023,B&B Properties,Accommodation Costs - Bed & Breakfast,"10,560.00",BERTRAM LODGE
Revenue,Adult Services,Adult Social Care,Assistive Equipment & Technology,5105734420,24.02.2023,BCF Community Equipment Store,Stationery,9.9,BETA PAK LTD
Revenue,Adult Services,Adult Social Care,Assistive Equipment & Technology,5105734420,24.02.2023,BCF Community Equipment Store,Stationery,25.18,BETA PAK LTD
Revenue,Adult Services,Adult Social Care,Assistive Equipment & Technology,5105734439,24.02.2023,BCF Community Equipment Store,Stationery,124.08,BETA PAK LTD
Revenue,Adult Services,Adult Social Care,Central Codes (to be reallocated),5105732975,08.02.2023,Bluebell House,Operational Equipment,15.81,BETA PAK LTD
Revenue,Adult Services,Adult Social Care,Central Codes (to be reallocated),5105733002,08.02.2023,Bluebell House,Operational Equipment,109.33,BETA PAK LTD
Revenue,Adult Services,Adult Social Care,Central Codes (to be reallocated),5105734509,15.02.2023,Bluebell House,Operational Equipment,54.6,BETA PAK LTD
Revenue,Adult Services,Adult Social Care,Central Codes (to be reallocated),5105735426,22.02.2023,Bluebell House,Operational Equipment,7.98,BETA PAK LTD
Revenue,Adult Services,Adult Social Care,Central Codes (to be reallocated),5105733774,08.02.2023,Bluebell House,Operational Equipment,130.08,BETA PAK LTD
Revenue,Adult Services,Adult Social Care,Central Codes (to be reallocated),5105735453,24.02.2023,Gouldings Resource Centre,Consumable Cleaning Materials,11.75,BETA PAK LTD
Revenue,Adult Services,Adult Social Care,Central Codes (to be reallocated),5105735668,24.02.2023,Gouldings Resource Centre,Consumable Cleaning Materials,94.55,BETA PAK LTD
Revenue,Adult Services,Adult Social Care,Central Codes (to be reallocated),5105734218,15.02.2023,Gouldings Resource Centre,Consumable Cleaning Materials,15.91,BETA PAK LTD
Revenue,Adult Services,Adult Social Care,Central Codes (to be reallocated),5105734167,10.02.2023,Gouldings Resource Centre,Consumable Cleaning Materials,39.49,BETA PAK LTD
Revenue,Adult Services,Adult Social Care,Central Codes (to be reallocated),5105734528,15.02.2023,Gouldings Resource Centre,Stationery,21.23,BETA PAK LTD
Revenue,Adult Services,Adult Social Care,Central Codes (to be reallocated),5105734528,15.02.2023,Gouldings Resource Centre,Stationery,2.63,BETA PAK LTD
Revenue,Adult Services,Adult Social Care,Central Codes (to be reallocated),5105734423,15.02.2023,Gouldings Resource Centre,Stationery,46.53,BETA PAK LTD
Revenue,Adult Services,Adult Social Care,Central Codes (to be reallocated),5105734528,15.02.2023,Gouldings Resource Centre,Stationery,3.23,BETA PAK LTD
Revenue,Adult Services,Adult Social Care,Central Codes (to be reallocated),5105735994,24.02.2023,Gouldings Resource Centre,Stationery,1.98,BETA PAK LTD
Revenue,Childrens Services,Children's & Education Services,Support Services,5105734554,17.02.2023,Learning & Development Running Costs,Stationery,12.86,BETA PAK LTD
Revenue,Childrens Services,Children's & Education Services,Support Services,5105734554,17.02.2023,Learning & Development Running Costs,Stationery,19.29,BETA PAK LTD
Revenue,Childrens Services,Children's & Education Services,Support Services,5105734230,15.02.2023,Learning & Development Running Costs,Catering Equipment,446.34,BETA PAK LTD
Revenue,Childrens Services,Children's & Education Services,Support Services,5105733071,01.02.2023,Learning & Development Running Costs,Catering Equipment,465.89,BETA PAK LTD
Revenue,Neighbourhoods,Cultural and Related Services,Service Management and Support Services,5105734428,22.02.2023,Leisure Management & Admin,Stationery,46.53,BETA PAK LTD
Revenue,Neighbourhoods,Cultural and Related Services,Recreation and Sport,5105734530,24.02.2023,Medina Leisure Centre,Stationery,18.57,BETA PAK LTD
Revenue,Neighbourhoods,Cultural and Related Services,Recreation and Sport,5105734530,24.02.2023,Medina Leisure Centre,Stationery,19.29,BETA PAK LTD
Revenue,Neighbourhoods,Cultural and Related Services,Recreation and Sport,5105734430,24.02.2023,Medina Leisure Centre,Stationery,31.02,BETA PAK LTD
Revenue,Adult Services,Adult Social Care,Learning Disab Supp (to be reallocated),5105733600,24.02.2023,Plean Dene,Operational Equipment,-276.48,BETA PAK LTD
Revenue,Adult Services,Adult Social Care,Learning Disab Supp (to be reallocated),5105733908,10.02.2023,Plean Dene,Operational Equipment,39.49,BETA PAK LTD
Revenue,Adult Services,Adult Social Care,Learning Disab Supp (to be reallocated),5105735669,24.02.2023,Saxonbury,Operational Equipment,2.29,BETA PAK LTD
Revenue,Adult Services,Adult Social Care,Learning Disab Supp (to be reallocated),5105733628,08.02.2023,Saxonbury,Operational Equipment,47.36,BETA PAK LTD
Revenue,Adult Services,Adult Social Care,Learning Disab Supp (to be reallocated),5105733109,08.02.2023,Saxonbury,Operational Equipment,16.46,BETA PAK LTD
Revenue,Adult Services,Adult Social Care,Learning Disab Supp (to be reallocated),5105733111,08.02.2023,Saxonbury,Operational Equipment,9.21,BETA PAK LTD
Revenue,Adult Services,Adult Social Care,Learning Disab Supp (to be reallocated),5105734513,15.02.2023,Saxonbury,Operational Equipment,264.19,BETA PAK LTD
Revenue,Adult Services,Adult Social Care,Social Support - Support for Carer,5105735992,24.02.2023,Westminster House,Operational Equipment,223.76,BETA PAK LTD
Revenue,Adult Services,Adult Social Care,Social Support - Support for Carer,5105734508,15.02.2023,Westminster House,Operational Equipment,6.89,BETA PAK LTD
Revenue,Childrens Services,Children's & Education Services,Other Education and Community Budget,5105733699,03.02.2023,Personal & Community Development Learning,General Materials,58,BETA PAK LTD
Revenue,Adult Services,Adult Social Care,Commissioning & Service Delivery,5105734165,22.02.2023,Group Manager Leaning Disability Homes,Stationery,29.25,BETA PAK LTD
Revenue,Adult Services,Adult Social Care,Commissioning & Service Delivery,5105734165,22.02.2023,Group Manager Leaning Disability Homes,Stationery,11.8,BETA PAK LTD
Revenue,Adult Services,Adult Social Care,Commissioning & Service Delivery,5105734510,22.02.2023,Group Manager Leaning Disability Homes,Stationery,4.25,BETA PAK LTD
Revenue,Adult Services,Adult Social Care,Commissioning & Service Delivery,5105734510,22.02.2023,Group Manager Leaning Disability Homes,Stationery,2.96,BETA PAK LTD
Revenue,Adult Services,Adult Social Care,Central Codes (to be reallocated),5105734540,15.02.2023,Community Reablement,Stationery,77.55,BETA PAK LTD
Revenue,Childrens Services,Children's & Education Services,Children Looked After,5105734547,17.02.2023,Beaulieu House,Stationery,38.8,BETA PAK LTD
Revenue,Childrens Services,Children's & Education Services,Children Looked After,5105734547,17.02.2023,Beaulieu House,Stationery,12.97,BETA PAK LTD
Revenue,Adult Services,Adult Social Care,Commissioning & Service Delivery,5105734549,22.02.2023,Group Manager Leaning Disability Homes,Stationery,4.42,BETA PAK LTD
Revenue,Adult Services,Adult Social Care,Commissioning & Service Delivery,5105734549,22.02.2023,Group Manager Leaning Disability Homes,Stationery,9.69,BETA PAK LTD
Revenue,Adult Services,Adult Social Care,Commissioning & Service Delivery,5105734549,22.02.2023,Group Manager Leaning Disability Homes,Stationery,15.3,BETA PAK LTD
Revenue,Adult Services,Adult Social Care,Commissioning & Service Delivery,5105734549,22.02.2023,Group Manager Leaning Disability Homes,Stationery,9.7,BETA PAK LTD
Revenue,Adult Services,Adult Social Care,Commissioning & Service Delivery,5105734549,22.02.2023,Group Manager Leaning Disability Homes,Stationery,1.98,BETA PAK LTD
Revenue,Adult Services,Adult Social Care,Commissioning & Service Delivery,5105734549,22.02.2023,Group Manager Leaning Disability Homes,Stationery,0.61,BETA PAK LTD
Revenue,Adult Services,Adult Social Care,Commissioning & Service Delivery,5105734551,15.02.2023,Group Manager Leaning Disability Homes,Stationery,9.68,BETA PAK LTD
Revenue,Adult Services,Adult Social Care,Commissioning & Service Delivery,5105734551,15.02.2023,Group Manager Leaning Disability Homes,Stationery,13.69,BETA PAK LTD
Revenue,Adult Services,Adult Social Care,Commissioning & Service Delivery,5105734551,15.02.2023,Group Manager Leaning Disability Homes,Stationery,0.59,BETA PAK LTD
Revenue,Adult Services,Adult Social Care,Commissioning & Service Delivery,5105734553,24.02.2023,Group Manager Leaning Disability Homes,Stationery,34.7,BETA PAK LTD
Revenue,Adult Services,Adult Social Care,Commissioning & Service Delivery,5105734426,22.02.2023,Group Manager Leaning Disability Homes,Stationery,15.51,BETA PAK LTD
Revenue,Childrens Services,Children's & Education Services,Safeguarding Children/Young Peoples Svs,5105733631,03.02.2023,Children's office costs,Stationery,13,BETA PAK LTD
Revenue,Adult Services,Adult Social Care,Commissioning & Service Delivery,5105734443,22.02.2023,Group Manager Leaning Disability Homes,Stationery,15.51,BETA PAK LTD
Revenue,Adult Services,Adult Social Care,Commissioning & Service Delivery,5105735187,24.02.2023,Group Manager Leaning Disability Homes,Stationery,40.3,BETA PAK LTD
Revenue,Adult Services,Adult Social Care,Commissioning & Service Delivery,5105735263,22.02.2023,Group Manager Leaning Disability Homes,Stationery,-2.96,BETA PAK LTD
Revenue,Resources,Central Services,Support Services,5105735702,24.02.2023,Revenues & Benefits Operational Support,Stationery,19.98,BETA PAK LTD
Revenue,Neighbourhoods,Environmental & Regulatory Services,Waste Collection,5105733000,03.02.2023,Waste Contract Income,Stationery,66.18,BETA PAK LTD
Revenue,Neighbourhoods,Cultural and Related Services,Library Service,5105733112,15.02.2023,Public Libraries Central,Stationery,62.04,BETA PAK LTD
Revenue,Neighbourhoods,Cultural and Related Services,Library Service,5105733112,15.02.2023,Public Libraries Central,Stationery,32.5,BETA PAK LTD
Revenue,Neighbourhoods,Cultural and Related Services,Library Service,5105733112,15.02.2023,Public Libraries Central,Stationery,42.72,BETA PAK LTD
Revenue,Neighbourhoods,Cultural and Related Services,Library Service,5105733112,15.02.2023,Public Libraries Central,Stationery,31.9,BETA PAK LTD
Revenue,Resources,Central Services,Support Services,5105734533,17.02.2023,ICT CCR,Stationery,1.61,BETA PAK LTD
Revenue,Neighbourhoods,Cultural and Related Services,Culture and Heritage,5105734554,17.02.2023,Historic Environment Record,Stationery,107.8,BETA PAK LTD
Revenue,Neighbourhoods,Cultural and Related Services,Library Service,5105735190,24.02.2023,Public Libraries Central,Stationery,0.62,BETA PAK LTD
Revenue,Adult Services,Adult Social Care,Commissioning & Service Delivery,5105733753,08.02.2023,ASC County Hall office costs,Stationery,54.93,BETA PAK LTD
Revenue,Neighbourhoods,Cultural and Related Services,Library Service,5105733772,08.02.2023,Public Libraries Central,Stationery,93.06,BETA PAK LTD
Revenue,Neighbourhoods,Cultural and Related Services,Library Service,5105733772,08.02.2023,Public Libraries Central,Stationery,48.5,BETA PAK LTD
Revenue,Childrens Services,Children's & Education Services,Special Schools & Alternative Provision,5105733775,22.02.2023,Island Learning Centre,Stationery,11.5,BETA PAK LTD
Revenue,Regeneration,Planning services,Economic Development,5105735721,24.02.2023,Wight Innovation ERDF,Catering Equipment,244.28,BETA PAK LTD
Revenue,Adult Services,Adult Social Care,Commissioning & Service Delivery,5105734421,15.02.2023,ASC County Hall office costs,Stationery,3.96,BETA PAK LTD
Revenue,Childrens Services,Children's & Education Services,Management & Support Services,5105734164,10.02.2023,Specialist Service Business Admin,Stationery,5.53,BETA PAK LTD
Revenue,Childrens Services,Children's & Education Services,Management & Support Services,5105734164,10.02.2023,Specialist Service Business Admin,Stationery,1.56,BETA PAK LTD
Revenue,Childrens Services,Children's & Education Services,Management & Support Services,5105734164,10.02.2023,Specialist Service Business Admin,Stationery,19.4,BETA PAK LTD
Revenue,Adult Services,Adult Social Care,Central Codes (to be reallocated),5105734166,10.02.2023,Adelaide Resource Centre,Operational Equipment,23.4,BETA PAK LTD
Revenue,Adult Services,Adult Social Care,Central Codes (to be reallocated),5105734219,15.02.2023,Adelaide Resource Centre,Operational Equipment,15.49,BETA PAK LTD
Revenue,Childrens Services,Children's & Education Services,Management & Support Services,5105735189,24.02.2023,Specialist Service Business Admin,Stationery,0.62,BETA PAK LTD
Revenue,Childrens Services,Children's & Education Services,Management & Support Services,5105735193,22.02.2023,Specialist Service Business Admin,Stationery,32.12,BETA PAK LTD
Revenue,Adult Services,Adult Social Care,Central Codes (to be reallocated),5105733777,08.02.2023,Adelaide Resource Centre,Stationery,15.51,BETA PAK LTD
Revenue,Childrens Services,Children's & Education Services,Youth Justice,5105734421,15.02.2023,Youth Offending Team,Stationery,1.98,BETA PAK LTD
Revenue,Neighbourhoods,Environmental & Regulatory Services,"Cemetery, Cremation & Mortuary Services",5105734437,22.02.2023,Crematorium,Stationery,6.5,BETA PAK LTD
Revenue,Neighbourhoods,Environmental & Regulatory Services,"Cemetery, Cremation & Mortuary Services",5105734437,22.02.2023,Crematorium,Stationery,46.53,BETA PAK LTD
Revenue,Neighbourhoods,Environmental & Regulatory Services,"Cemetery, Cremation & Mortuary Services",5105734437,22.02.2023,Crematorium,Stationery,17.58,BETA PAK LTD
Revenue,Neighbourhoods,Environmental & Regulatory Services,"Cemetery, Cremation & Mortuary Services",5105735661,24.02.2023,Crematorium,Stationery,16.02,BETA PAK LTD
Revenue,Neighbourhoods,Environmental & Regulatory Services,"Cemetery, Cremation & Mortuary Services",5105735800,24.02.2023,Crematorium,Stationery,-74.99,BETA PAK LTD
Revenue,Neighbourhoods,Environmental & Regulatory Services,"Cemetery, Cremation & Mortuary Services",5105735801,24.02.2023,Crematorium,Stationery,74.99,BETA PAK LTD
Revenue,Neighbourhoods,Environmental & Regulatory Services,"Cemetery, Cremation & Mortuary Services",5105734529,15.02.2023,Crematorium,Stationery,2.3,BETA PAK LTD
Revenue,Neighbourhoods,Environmental & Regulatory Services,"Cemetery, Cremation & Mortuary Services",5105734529,15.02.2023,Crematorium,Stationery,32.95,BETA PAK LTD
Revenue,Neighbourhoods,Environmental & Regulatory Services,"Cemetery, Cremation & Mortuary Services",5105734529,15.02.2023,Crematorium,Stationery,4.34,BETA PAK LTD
Revenue,Neighbourhoods,Environmental & Regulatory Services,"Cemetery, Cremation & Mortuary Services",5105734529,15.02.2023,Crematorium,Stationery,4.84,BETA PAK LTD
Revenue,Neighbourhoods,Environmental & Regulatory Services,"Cemetery, Cremation & Mortuary Services",5105734529,15.02.2023,Crematorium,Stationery,9.06,BETA PAK LTD
Revenue,Neighbourhoods,Environmental & Regulatory Services,"Cemetery, Cremation & Mortuary Services",5105734529,15.02.2023,Crematorium,Stationery,1.44,BETA PAK LTD
Revenue,Neighbourhoods,Environmental & Regulatory Services,"Cemetery, Cremation & Mortuary Services",5105734529,15.02.2023,Crematorium,Stationery,3.28,BETA PAK LTD
Revenue,Neighbourhoods,Environmental & Regulatory Services,"Cemetery, Cremation & Mortuary Services",5105734529,15.02.2023,Crematorium,Stationery,12.86,BETA PAK LTD
Revenue,Regeneration,Planning services,Management & Support Services,5105734533,17.02.2023,Planning Management,Stationery,15.12,BETA PAK LTD
Revenue,Regeneration,Planning services,Management & Support Services,5105734533,17.02.2023,Planning Management,Stationery,5.61,BETA PAK LTD
Revenue,Neighbourhoods,Central Services,Central Services to the Public,5105734533,17.02.2023,Coroner,Stationery,57.12,BETA PAK LTD
Revenue,Regeneration,Planning services,Management & Support Services,5105734533,17.02.2023,Planning Management,Stationery,35.38,BETA PAK LTD
Revenue,Adult Services,Adult Social Care,Central Codes (to be reallocated),5105734535,15.02.2023,Adelaide Resource Centre,Stationery,93.06,BETA PAK LTD
Revenue,Adult Services,Adult Social Care,Central Codes (to be reallocated),5105734535,15.02.2023,Adelaide Resource Centre,Stationery,5.53,BETA PAK LTD
Revenue,Adult Services,Adult Social Care,Central Codes (to be reallocated),5105734535,15.02.2023,Adelaide Resource Centre,Stationery,4.76,BETA PAK LTD
Revenue,Neighbourhoods,Cultural and Related Services,Recreation and Sport,5105734552,24.02.2023,The Heights,Stationery,7.82,BETA PAK LTD
Revenue,Neighbourhoods,Cultural and Related Services,Recreation and Sport,5105734552,24.02.2023,The Heights,Stationery,5.53,BETA PAK LTD
Revenue,Adult Services,Adult Social Care,Central Codes (to be reallocated),5105734557,15.02.2023,Adelaide Resource Centre,Operational Equipment,23.4,BETA PAK LTD
Revenue,Adult Services,Adult Social Care,Central Codes (to be reallocated),5105735429,22.02.2023,Adelaide Resource Centre,Stationery,113.34,BETA PAK LTD
Revenue,Adult Services,Adult Social Care,Central Codes (to be reallocated),5105735429,22.02.2023,Adelaide Resource Centre,Stationery,22.8,BETA PAK LTD
Revenue,Adult Services,Adult Social Care,Central Codes (to be reallocated),5105735429,22.02.2023,Adelaide Resource Centre,Stationery,3.96,BETA PAK LTD
Revenue,Adult Services,Adult Social Care,Central Codes (to be reallocated),5105735429,22.02.2023,Adelaide Resource Centre,Stationery,2.38,BETA PAK LTD
Revenue,Adult Services,Adult Social Care,Central Codes (to be reallocated),5105735429,22.02.2023,Adelaide Resource Centre,Stationery,1.66,BETA PAK LTD
Revenue,Adult Services,Adult Social Care,Central Codes (to be reallocated),5105735429,22.02.2023,Adelaide Resource Centre,Stationery,0.92,BETA PAK LTD
Revenue,Adult Services,Adult Social Care,Central Codes (to be reallocated),5105735429,22.02.2023,Adelaide Resource Centre,Stationery,5.31,BETA PAK LTD
Revenue,Adult Services,Adult Social Care,Central Codes (to be reallocated),5105735706,24.02.2023,Adelaide Resource Centre,Consumable Cleaning Materials,388.85,BETA PAK LTD
Revenue,Adult Services,Adult Social Care,Central Codes (to be reallocated),5105733906,10.02.2023,Adelaide Resource Centre,Consumable Cleaning Materials,66,BETA PAK LTD
Revenue,Neighbourhoods,Highways and Transport Services,Management and Support Services,5105735369,22.02.2023,Highways PFI Project,Legal Fees - Other Parties,988,BEVAN BRITTAN
Revenue,Neighbourhoods,Environmental & Regulatory Services,Service Management and Support Services,5105733913,10.02.2023,Waste Contract Management,Legal Fees - Other Parties,"83,759.50",BEVAN BRITTAN
Revenue,Neighbourhoods,Environmental & Regulatory Services,Service Management and Support Services,5105724825,10.02.2023,Waste Contract Management,Legal Fees - Other Parties,"3,975.00",BEVAN BRITTAN
Revenue,Neighbourhoods,Environmental & Regulatory Services,Service Management and Support Services,5105734192,10.02.2023,Waste Contract Management,Legal Fees - Other Parties,"82,680.50",BEVAN BRITTAN
Revenue,Regeneration,Planning services,Environmental Initiatives,5105733331,01.02.2023,Perpetuus Tidal Energy Centre (SOEC),Legal Fees - Other Parties,"1,642.50",BEVAN BRITTAN
Revenue,Regeneration,Planning services,Environmental Initiatives,5105733333,01.02.2023,Perpetuus Tidal Energy Centre (SOEC),Legal Fees - Other Parties,"3,015.00",BEVAN BRITTAN
Revenue,Corporate Items,Central Services,Corporate and Democratic Core,5105734178,10.02.2023,Corporate Management,Professional Services,"6,739.73",BCG BROKERS GP LIMITED
Revenue,Neighbourhoods,Cultural and Related Services,Library Service,5105735960,24.02.2023,Public Libraries Central,Stationery,100.24,BIBLIOTHECA LTD
Revenue,Public Health,Public Health,Miscellaneous Public Health Services,5105734643,17.02.2023,Domestic Abuse,Consultants Fees,"3,838.50",BIELEC CONSULTANCY
Revenue,Adult Services,Adult Social Care,Assistive Equipment & Technology,5105732666,03.02.2023,BCF Community Equipment Store,"Refuse Collection, Disposal and Recycling Costs",199.18,BIFFA WASTE SERVICES LTD
Revenue,Adult Services,Adult Social Care,Central Codes (to be reallocated),5105732666,03.02.2023,Gouldings Resource Centre,"Refuse Collection, Disposal and Recycling Costs",218.24,BIFFA WASTE SERVICES LTD
Revenue,Childrens Services,Children's & Education Services,Support Services,5105732666,03.02.2023,Learning & Development Running Costs,"Refuse Collection, Disposal and Recycling Costs",32.79,BIFFA WASTE SERVICES LTD
Revenue,Neighbourhoods,Cultural and Related Services,Recreation and Sport,5105732666,03.02.2023,Medina Leisure Centre,"Refuse Collection, Disposal and Recycling Costs",292.86,BIFFA WASTE SERVICES LTD
Revenue,Regeneration,Central Services,Support Services,5105732666,03.02.2023,Parklands,"Refuse Collection, Disposal and Recycling Costs",6.16,BIFFA WASTE SERVICES LTD
Revenue,Adult Services,Adult Social Care,Learning Disab Supp (to be reallocated),5105732666,03.02.2023,Plean Dene,"Refuse Collection, Disposal and Recycling Costs",211.8,BIFFA WASTE SERVICES LTD
Revenue,Childrens Services,Children's & Education Services,Other Education and Community Budget,5105732666,03.02.2023,SEND Independent Advice & Support,"Refuse Collection, Disposal and Recycling Costs",64.56,BIFFA WASTE SERVICES LTD
Revenue,Adult Services,Adult Social Care,Learning Disab Supp (to be reallocated),5105732666,03.02.2023,Saxonbury,"Refuse Collection, Disposal and Recycling Costs",112.44,BIFFA WASTE SERVICES LTD
Revenue,Neighbourhoods,Cultural and Related Services,Recreation and Sport,5105732666,03.02.2023,Seaclose Skate Park & Netball Courts,"Refuse Collection, Disposal and Recycling Costs","1,088.92",BIFFA WASTE SERVICES LTD
Revenue,Regeneration,Central Services,Support Services,5105732666,03.02.2023,"Westridge, Ryde","Refuse Collection, Disposal and Recycling Costs",141.16,BIFFA WASTE SERVICES LTD
Revenue,Neighbourhoods,Highways and Transport Services,"Airports, Harbours & Toll Facilities",5105732666,03.02.2023,Ferry Management,"Refuse Collection, Disposal and Recycling Costs",83.64,BIFFA WASTE SERVICES LTD
Revenue,Childrens Services,Children's & Education Services,Children Looked After,5105732666,03.02.2023,Beaulieu House,"Refuse Collection, Disposal and Recycling Costs",161.18,BIFFA WASTE SERVICES LTD
Revenue,Neighbourhoods,Environmental & Regulatory Services,Waste Disposal,5105734854,22.02.2023,Lynnbottom Leachate Treatment Works,Payment to Private Contractors,"14,934.84",BIFFA WASTE SERVICES LTD
Revenue,Neighbourhoods,Environmental & Regulatory Services,Waste Disposal,5105734855,22.02.2023,Lynnbottom Leachate Treatment Works,Payment to Private Contractors,"11,835.99",BIFFA WASTE SERVICES LTD
Revenue,Neighbourhoods,Environmental & Regulatory Services,Waste Disposal,5105734856,22.02.2023,Lynnbottom Leachate Treatment Works,Payment to Private Contractors,"14,018.40",BIFFA WASTE SERVICES LTD
Revenue,Neighbourhoods,Cultural and Related Services,Recreation and Sport,5105732666,03.02.2023,Westridge Squash Courts,"Refuse Collection, Disposal and Recycling Costs",4.76,BIFFA WASTE SERVICES LTD
Revenue,Neighbourhoods,Cultural and Related Services,Library Service,5105732666,03.02.2023,Public Libraries Central,"Refuse Collection, Disposal and Recycling Costs",158.81,BIFFA WASTE SERVICES LTD
Revenue,Regeneration,Central Services,Support Services,5105732666,03.02.2023,"Jubilee Stores, Newport","Refuse Collection, Disposal and Recycling Costs",71.19,BIFFA WASTE SERVICES LTD
Revenue,Neighbourhoods,Highways and Transport Services,"Airports, Harbours & Toll Facilities",5105732666,03.02.2023,Newport Harbour Account,"Refuse Collection, Disposal and Recycling Costs",137.32,BIFFA WASTE SERVICES LTD
Revenue,Regeneration,Central Services,Support Services,5105732666,03.02.2023,"County Hall,Newport","Refuse Collection, Disposal and Recycling Costs",477.48,BIFFA WASTE SERVICES LTD
Revenue,Regeneration,Planning services,Economic Development,5105732666,03.02.2023,Wight Innovation ERDF,"Refuse Collection, Disposal and Recycling Costs",74.26,BIFFA WASTE SERVICES LTD
Revenue,Childrens Services,Children's & Education Services,Management & Support Services,5105732666,03.02.2023,Specialist Service Business Admin,"Refuse Collection, Disposal and Recycling Costs",79.24,BIFFA WASTE SERVICES LTD
Revenue,Neighbourhoods,Environmental & Regulatory Services,"Cemetery, Cremation & Mortuary Services",5105732666,03.02.2023,Crematorium,"Refuse Collection, Disposal and Recycling Costs",189.06,BIFFA WASTE SERVICES LTD
Revenue,Neighbourhoods,Cultural and Related Services,Culture and Heritage,5105732666,03.02.2023,Dinosaur Isle Museum (Sandown Geology),"Refuse Collection, Disposal and Recycling Costs",32.9,BIFFA WASTE SERVICES LTD
Revenue,Neighbourhoods,Cultural and Related Services,Recreation and Sport,5105732666,03.02.2023,The Heights,"Refuse Collection, Disposal and Recycling Costs",184.56,BIFFA WASTE SERVICES LTD
Revenue,Neighbourhoods,Environmental & Regulatory Services,Waste Disposal,5105734854,22.02.2023,Lynnbottom Landfill Site,Payment to Private Contractors,496.62,BIFFA WASTE SERVICES LTD
Revenue,Neighbourhoods,Environmental & Regulatory Services,Waste Disposal,5105734855,22.02.2023,Lynnbottom Landfill Site,Payment to Private Contractors,321.28,BIFFA WASTE SERVICES LTD
Revenue,Neighbourhoods,Environmental & Regulatory Services,Waste Disposal,5105734856,22.02.2023,Lynnbottom Landfill Site,Payment to Private Contractors,434.4,BIFFA WASTE SERVICES LTD
Revenue,Childrens Services,Children's & Education Services,Children Looked After,5105735278,22.02.2023,Purchased Fostering,Charges from Independent Providers,"5,880.00",BLUE SKY FOSTERING LTD
Revenue,Adult Services,Adult Social Care,Support - Memory /Cognition-older people (65+),5105734354,15.02.2023,Memory & Cognition Nursing 65+,Charges from Independent Providers,"4,085.48",BLUEWATER CARE HOMES LTD
Revenue,Childrens Services,Children's & Education Services,Management & Support Services,5105734870,17.02.2023,Direct Paymnts/Managed Educational Packages,Charges from Independent Providers,168,BODSTER EQUINE ASSISTED LEARN CIC
Revenue,Childrens Services,Children's & Education Services,Special Schools & Alternative Provision,5105734919,24.02.2023,Island Learning Centre,Bought in Prof Services - Curriculum (Schools),168,BODSTER EQUINE ASSISTED LEARN CIC
Revenue,Childrens Services,Children's & Education Services,Special Schools & Alternative Provision,5105734933,24.02.2023,Island Learning Centre,Bought in Prof Services - Curriculum (Schools),168,BODSTER EQUINE ASSISTED LEARN CIC
Revenue,Childrens Services,Children's & Education Services,Special Schools & Alternative Provision,5105734978,24.02.2023,Island Learning Centre,Bought in Prof Services - Curriculum (Schools),168,BODSTER EQUINE ASSISTED LEARN CIC
Revenue,Childrens Services,Children's & Education Services,Family Support Services,5105735039,22.02.2023,Short Breaks,Charges from Independent Providers,225.25,BODSTER EQUINE ASSISTED LEARN CIC
Revenue,Adult Services,Adult Social Care,Central Codes (to be reallocated),5105733118,08.02.2023,Bluebell House,Catering Purchases,11.58,BOOKER CASH & CARRY LTD
Revenue,Adult Services,Adult Social Care,Central Codes (to be reallocated),5105733562,03.02.2023,Gouldings Resource Centre,Catering Purchases,105.91,BOOKER CASH & CARRY LTD
Revenue,Adult Services,Adult Social Care,Central Codes (to be reallocated),5105733562,03.02.2023,Gouldings Resource Centre,Catering Purchases,18.98,BOOKER CASH & CARRY LTD
Revenue,Adult Services,Adult Social Care,Learning Disab Supp (to be reallocated),5105735407,22.02.2023,Plean Dene,Catering Purchases,13.48,BOOKER CASH & CARRY LTD
Revenue,Adult Services,Adult Social Care,Learning Disab Supp (to be reallocated),5105735286,22.02.2023,Plean Dene,Catering Purchases,9.24,BOOKER CASH & CARRY LTD
Revenue,Adult Services,Adult Social Care,Learning Disab Supp (to be reallocated),5105733116,08.02.2023,Plean Dene,Catering Purchases,16.98,BOOKER CASH & CARRY LTD
Revenue,Adult Services,Adult Social Care,Learning Disab Supp (to be reallocated),5105735731,24.02.2023,Plean Dene,Catering Purchases,135.93,BOOKER CASH & CARRY LTD
Revenue,Adult Services,Adult Social Care,Learning Disab Supp (to be reallocated),5105735731,24.02.2023,Plean Dene,Catering Purchases,3.49,BOOKER CASH & CARRY LTD
Revenue,Adult Services,Adult Social Care,Learning Disab Supp (to be reallocated),5105735733,24.02.2023,Plean Dene,Catering Purchases,39.15,BOOKER CASH & CARRY LTD
Revenue,Adult Services,Adult Social Care,Learning Disab Supp (to be reallocated),5105733747,08.02.2023,Plean Dene,Catering Purchases,151.41,BOOKER CASH & CARRY LTD
Revenue,Adult Services,Adult Social Care,Learning Disab Supp (to be reallocated),5105733747,08.02.2023,Plean Dene,Catering Purchases,17.74,BOOKER CASH & CARRY LTD
Revenue,Adult Services,Adult Social Care,Learning Disab Supp (to be reallocated),5105732953,03.02.2023,Plean Dene,Catering Purchases,19.97,BOOKER CASH & CARRY LTD
Revenue,Adult Services,Adult Social Care,Learning Disab Supp (to be reallocated),5105734646,24.02.2023,Plean Dene,Catering Purchases,144.94,BOOKER CASH & CARRY LTD
Revenue,Adult Services,Adult Social Care,Learning Disab Supp (to be reallocated),5105735021,22.02.2023,Plean Dene,Catering Purchases,16.08,BOOKER CASH & CARRY LTD
Revenue,Childrens Services,Children's & Education Services,Management & Support Services,5105733787,15.02.2023,Special Discretionary Grants,Professional Services,471.83,BOSTICO INTERNATIONAL
Revenue,Adult Services,Housing Services,Homelessness,5105735066,22.02.2023,Private Rented Sector Leasing Scheme,Accommodation Costs - Leaseholder Payments,821.47,BRAMBLE LETTINGS
Revenue,Adult Services,Housing Services,Homelessness,5105735066,22.02.2023,Private Rented Sector Leasing Scheme,Accommodation Costs - Leaseholder Payments,821.47,BRAMBLE LETTINGS
Revenue,Adult Services,Housing Services,Homelessness,5105735066,22.02.2023,Private Rented Sector Leasing Scheme,Accommodation Costs - Leaseholder Payments,821.47,BRAMBLE LETTINGS
Revenue,Adult Services,Housing Services,Homelessness,5105735066,22.02.2023,Private Rented Sector Leasing Scheme,Accommodation Costs - Leaseholder Payments,821.47,BRAMBLE LETTINGS
Revenue,Adult Services,Housing Services,Homelessness,5105735066,22.02.2023,Private Rented Sector Leasing Scheme,Accommodation Costs - Leaseholder Payments,821.47,BRAMBLE LETTINGS
Revenue,Adult Services,Housing Services,Homelessness,5105735066,22.02.2023,Private Rented Sector Leasing Scheme,Accommodation Costs - Leaseholder Payments,821.47,BRAMBLE LETTINGS
Revenue,Adult Services,Housing Services,Homelessness,5105735066,22.02.2023,Private Rented Sector Leasing Scheme,Accommodation Costs - Leaseholder Payments,216.66,BRAMBLE LETTINGS
Revenue,Adult Services,Housing Services,Homelessness,5105735066,22.02.2023,Private Rented Sector Leasing Scheme,Accommodation Costs - Leaseholder Payments,821.47,BRAMBLE LETTINGS
Revenue,Adult Services,Housing Services,Homelessness,5105735066,22.02.2023,Private Rented Sector Leasing Scheme,Accommodation Costs - Leaseholder Payments,647.23,BRAMBLE LETTINGS
Revenue,Adult Services,Housing Services,Homelessness,5105735066,22.02.2023,Private Rented Sector Leasing Scheme,Accommodation Costs - Leaseholder Payments,821.47,BRAMBLE LETTINGS
Revenue,Adult Services,Housing Services,Homelessness,5105735066,22.02.2023,Private Rented Sector Leasing Scheme,Accommodation Costs - Leaseholder Payments,846.39,BRAMBLE LETTINGS
Revenue,Adult Services,Housing Services,Homelessness,5105735066,22.02.2023,Private Rented Sector Leasing Scheme,Accommodation Costs - Leaseholder Payments,821.47,BRAMBLE LETTINGS
Revenue,Adult Services,Housing Services,Homelessness,5105735066,22.02.2023,Private Rented Sector Leasing Scheme,Accommodation Costs - Leaseholder Payments,746.81,BRAMBLE LETTINGS
Revenue,Adult Services,Housing Services,Homelessness,5105735066,22.02.2023,Private Rented Sector Leasing Scheme,Accommodation Costs - Leaseholder Payments,588.38,BRAMBLE LETTINGS
Revenue,Adult Services,Housing Services,Homelessness,5105735066,22.02.2023,Private Rented Sector Leasing Scheme,Accommodation Costs - Leaseholder Payments,746.81,BRAMBLE LETTINGS
Revenue,Adult Services,Housing Services,Homelessness,5105735066,22.02.2023,Private Rented Sector Leasing Scheme,Accommodation Costs - Leaseholder Payments,588.38,BRAMBLE LETTINGS
Revenue,Adult Services,Housing Services,Homelessness,5105735066,22.02.2023,Private Rented Sector Leasing Scheme,Accommodation Costs - Leaseholder Payments,746.81,BRAMBLE LETTINGS
Revenue,Adult Services,Housing Services,Homelessness,5105735066,22.02.2023,Private Rented Sector Leasing Scheme,Accommodation Costs - Leaseholder Payments,281.66,BRAMBLE LETTINGS
Revenue,Adult Services,Housing Services,Homelessness,5105735066,22.02.2023,Private Rented Sector Leasing Scheme,Accommodation Costs - Leaseholder Payments,746.81,BRAMBLE LETTINGS
Revenue,Adult Services,Housing Services,Homelessness,5105735066,22.02.2023,Private Rented Sector Leasing Scheme,Accommodation Costs - Leaseholder Payments,588.38,BRAMBLE LETTINGS
Revenue,Adult Services,Housing Services,Homelessness,5105735066,22.02.2023,Private Rented Sector Leasing Scheme,Accommodation Costs - Leaseholder Payments,746.81,BRAMBLE LETTINGS
Revenue,Adult Services,Housing Services,Homelessness,5105735066,22.02.2023,Private Rented Sector Leasing Scheme,Accommodation Costs - Leaseholder Payments,588.38,BRAMBLE LETTINGS
Revenue,Adult Services,Housing Services,Homelessness,5105735066,22.02.2023,Private Rented Sector Leasing Scheme,Accommodation Costs - Leaseholder Payments,746.81,BRAMBLE LETTINGS
Revenue,Adult Services,Housing Services,Homelessness,5105735066,22.02.2023,Private Rented Sector Leasing Scheme,Accommodation Costs - Leaseholder Payments,588.38,BRAMBLE LETTINGS
Revenue,Chief Executive,Adult Social Care,Social Support - Asylum Seeker Support,5105735870,24.02.2023,Ukraine - Host Payments,Grants to individuals,350,REDACTED PERSONAL DATA
Revenue,Chief Executive,Adult Social Care,Social Support - Asylum Seeker Support,5105735870,24.02.2023,Ukraine - Host Payments,Grants to individuals,200,REDACTED PERSONAL DATA
Revenue,Resources,Central Services,Support Services,5105735850,24.02.2023,Staff Benefits,Payment to Private Contractors,35,KCT CHILDCARE LIMITED
Revenue,Adult Services,Adult Social Care,Learning Disability Suppt-adults (18-64),5105734270,15.02.2023,Learning Disability Residential 18-64,Charges from Independent Providers,"7,545.44",BROADHAM CARE LTD
Revenue,Childrens Services,Children's & Education Services,Children Looked After,5105735600,24.02.2023,Leaving Care Costs,Support Children,370.6,REDACTED PERSONAL DATA
Revenue,Childrens Services,Children's & Education Services,Children Looked After,5105734069,10.02.2023,Leaving Care Costs,Support Children,370.6,REDACTED PERSONAL DATA
Revenue,Childrens Services,Children's & Education Services,Children Looked After,5105733501,03.02.2023,Leaving Care Costs,Support Children,370.6,REDACTED PERSONAL DATA
Revenue,Childrens Services,Children's & Education Services,Children Looked After,5105734814,17.02.2023,Leaving Care Costs,Support Children,370.6,REDACTED PERSONAL DATA
Revenue,Public Health,Public Health,NHS Health Check Programme,5105733743,08.02.2023,NHS Health Check Programme P,Payment to Private Contractors,"2,212.00",BROOKSIDE HEALTH CENTRE
Revenue,Adult Services,Adult Social Care,Social Support -Substance Misuse Support,5105734580,15.02.2023,Substance Misuse Residential,Charges from Independent Providers,"2,251.44",BUCKLAND CARE LTD
Revenue,Adult Services,Adult Social Care,Social Support -Substance Misuse Support,5105734312,15.02.2023,Substance Misuse Residential,Charges from Independent Providers,"2,257.08",BUCKLAND CARE LTD
Balance Sheet,Adult Services,Balance Sheet,Balance Sheet,5105734312,15.02.2023,REDACTED PERSONAL DATA,Order Settlement to Bal Sht GL,"2,653.56",BUCKLAND CARE LTD
Revenue,Adult Services,Adult Social Care,Support - Memory /Cognition-older people (65+),5105733934,15.02.2023,Memory & Cognition Residential 65+,Charges from Independent Providers,"2,171.51",BUCKLAND CARE LTD
Revenue,Adult Services,Adult Social Care,Support - Memory /Cognition-older people (65+),5105734312,15.02.2023,Memory & Cognition Residential 65+,Charges from Independent Providers,"2,653.56",BUCKLAND CARE LTD
Revenue,Adult Services,Adult Social Care,Support - Memory /Cognition-older people (65+),5105734312,15.02.2023,Memory & Cognition Residential 65+,Charges from Independent Providers,"2,257.08",BUCKLAND CARE LTD
Revenue,Adult Services,Adult Social Care,Mental Health Support-older people (65+),5105734312,15.02.2023,Mental Health Residential 65+,Charges from Independent Providers,"2,257.08",BUCKLAND CARE LTD
Revenue,Adult Services,Adult Social Care,Mental Health Support-older people (65+),5105734312,15.02.2023,Mental Health Residential 65+,Charges from Independent Providers,"3,095.12",BUCKLAND CARE LTD
Revenue,Adult Services,Adult Social Care,Support - Memory /Cognition-older people (65+),5105734312,15.02.2023,Memory & Cognition Residential 65+,Charges from Independent Providers,"3,246.88",BUCKLAND CARE LTD
Revenue,Adult Services,Adult Social Care,Support - Memory /Cognition-older people (65+),5105734312,15.02.2023,Memory & Cognition Residential 65+,Charges from Independent Providers,"3,200.12",BUCKLAND CARE LTD
Revenue,Adult Services,Adult Social Care,Social Support - Social Isolation/Other,5105734312,15.02.2023,Social Isolation/Other Residential,Charges from Independent Providers,"1,371.48",BUCKLAND CARE LTD
Revenue,Adult Services,Adult Social Care,Support - Memory /Cognition-older people (65+),5105734312,15.02.2023,Memory & Cognition Residential 65+,Charges from Independent Providers,"3,200.12",BUCKLAND CARE LTD
Revenue,Adult Services,Central Services,Emergency Planning,5105733366,03.02.2023,NHS C19 Residential,Charges from Independent Providers,"3,300.08",BUCKLAND CARE LTD
Revenue,Adult Services,Central Services,Emergency Planning,5105733313,01.02.2023,NHS C19 Residential,Charges from Independent Providers,"3,200.12",BUCKLAND CARE LTD
Revenue,Adult Services,Central Services,Emergency Planning,5105733366,03.02.2023,NHS C19 Residential,Charges from Independent Providers,"3,300.08",BUCKLAND CARE LTD
Revenue,Adult Services,Central Services,Emergency Planning,5105734473,15.02.2023,NHS C19 Residential,Charges from Independent Providers,"3,200.12",BUCKLAND CARE LTD
Revenue,Adult Services,Adult Social Care,Mental Health Support-older people (65+),5105734580,15.02.2023,Mental Health Residential 65+,Charges from Independent Providers,"2,152.32",BUCKLAND CARE LTD
Revenue,Adult Services,Adult Social Care,Social Support - Social Isolation/Other,5105733667,03.02.2023,Social Isolation/Other Residential,Charges from Independent Providers,"3,642.90",BUCKLAND CARE LTD
Revenue,Adult Services,Adult Social Care,Social Support - Social Isolation/Other,5105735133,22.02.2023,Social Isolation/Other Residential,Charges from Independent Providers,"3,400.04",BUCKLAND CARE LTD
Revenue,Adult Services,Adult Social Care,Support - Memory /Cognition-older people (65+),5105735133,22.02.2023,Memory & Cognition Residential 65+,Charges from Independent Providers,"5,200.16",BUCKLAND CARE LTD
Revenue,Adult Services,Adult Social Care,Social Support - Social Isolation/Other,5105735133,22.02.2023,Social Isolation/Other Residential,Charges from Independent Providers,"3,200.12",BUCKLAND CARE LTD
Revenue,Adult Services,Adult Social Care,Social Support - Social Isolation/Other,5105735133,22.02.2023,Social Isolation/Other Residential,Charges from Independent Providers,"3,200.12",BUCKLAND CARE LTD
Revenue,Adult Services,Central Services,Emergency Planning,5105735841,24.02.2023,NHS C19 Residential,Charges from Independent Providers,"3,095.12",BUCKLAND CARE LTD
Revenue,Adult Services,Central Services,Emergency Planning,5105735841,24.02.2023,NHS C19 Residential,Charges from Independent Providers,"3,095.12",BUCKLAND CARE LTD
Revenue,Adult Services,Central Services,Emergency Planning,5105735841,24.02.2023,NHS C19 Residential,Charges from Independent Providers,"1,658.10",BUCKLAND CARE LTD
Revenue,Adult Services,Central Services,Emergency Planning,5105735841,24.02.2023,NHS C19 Residential,Charges from Independent Providers,"3,095.12",BUCKLAND CARE LTD
Revenue,Adult Services,Adult Social Care,Physical Support - older people (65+),5105734267,15.02.2023,Physical Support Residential 65+,Charges from Independent Providers,"7,768.04",BUCKLAND CARE LTD
Revenue,Adult Services,Adult Social Care,Physical Support - older people (65+),5105735133,22.02.2023,Physical Support Residential 65+,Charges from Independent Providers,"2,971.54",BUCKLAND CARE LTD
Revenue,Adult Services,Adult Social Care,Physical Support - older people (65+),5105735133,22.02.2023,Physical Support Residential 65+,Charges from Independent Providers,"3,314.41",BUCKLAND CARE LTD
Revenue,Adult Services,Adult Social Care,Physical Support - older people (65+),5105734312,15.02.2023,Physical Support Residential 65+,Charges from Independent Providers,"2,653.56",BUCKLAND CARE LTD
Revenue,Adult Services,Adult Social Care,Physical Support - older people (65+),5105734312,15.02.2023,Physical Support Residential 65+,Charges from Independent Providers,"2,155.44",BUCKLAND CARE LTD
Revenue,Adult Services,Adult Social Care,Physical Support - older people (65+),5105734312,15.02.2023,Physical Support Residential 65+,Charges from Independent Providers,"2,155.44",BUCKLAND CARE LTD
Revenue,Adult Services,Adult Social Care,Social Support - Support for Carer,5105734312,15.02.2023,Carers Residential,Charges from Independent Providers,"2,653.56",BUCKLAND CARE LTD
Revenue,Adult Services,Adult Social Care,Physical Support - older people (65+),5105734312,15.02.2023,Physical Support Residential 65+,Charges from Independent Providers,"2,653.56",BUCKLAND CARE LTD
Revenue,Adult Services,Adult Social Care,Physical Support - older people (65+),5105734312,15.02.2023,Physical Support Residential 65+,Charges from Independent Providers,"2,653.56",BUCKLAND CARE LTD
Revenue,Adult Services,Adult Social Care,Physical Support - older people (65+),5105734312,15.02.2023,Physical Support Residential 65+,Charges from Independent Providers,"2,653.56",BUCKLAND CARE LTD
Revenue,Adult Services,Adult Social Care,Social Support - Support for Carer,5105734312,15.02.2023,Carers Residential,Charges from Independent Providers,"2,653.56",BUCKLAND CARE LTD
Revenue,Adult Services,Adult Social Care,Physical Support - older people (65+),5105734312,15.02.2023,Physical Support Residential 65+,Charges from Independent Providers,"2,653.56",BUCKLAND CARE LTD
Revenue,Adult Services,Adult Social Care,Physical Support - older people (65+),5105734312,15.02.2023,Physical Support Residential 65+,Charges from Independent Providers,"2,257.08",BUCKLAND CARE LTD
Revenue,Adult Services,Adult Social Care,Physical Support - older people (65+),5105734312,15.02.2023,Physical Support Residential 65+,Charges from Independent Providers,"2,653.56",BUCKLAND CARE LTD
Revenue,Adult Services,Adult Social Care,Physical Support - older people (65+),5105734312,15.02.2023,Physical Support Residential 65+,Charges from Independent Providers,"3,200.12",BUCKLAND CARE LTD
Revenue,Adult Services,Adult Social Care,Physical Support - older people (65+),5105734312,15.02.2023,Physical Support Residential 65+,Charges from Independent Providers,"2,653.56",BUCKLAND CARE LTD
Revenue,Adult Services,Adult Social Care,Physical Support - older people (65+),5105734312,15.02.2023,Physical Support Residential 65+,Charges from Independent Providers,"3,400.04",BUCKLAND CARE LTD
Revenue,Adult Services,Adult Social Care,Physical Support - older people (65+),5105734312,15.02.2023,Physical Support Residential 65+,Charges from Independent Providers,"3,095.12",BUCKLAND CARE LTD
Revenue,Adult Services,Adult Social Care,Physical Support - older people (65+),5105735841,24.02.2023,Physical Support Residential 65+,Charges from Independent Providers,"2,857.25",BUCKLAND CARE LTD
Revenue,Adult Services,Adult Social Care,Physical Support - older people (65+),5105733366,03.02.2023,Physical Support Residential 65+,Charges from Independent Providers,"3,657.28",BUCKLAND CARE LTD
Revenue,Adult Services,Adult Social Care,Physical Support - older people (65+),5105735352,22.02.2023,Physical Support Residential 65+,Charges from Independent Providers,"5,485.92",BUCKLAND CARE LTD
Revenue,Adult Services,Adult Social Care,Physical Support - older people (65+),5105733869,15.02.2023,Physical Support Residential 65+,Charges from Independent Providers,114.28,BUCKLAND CARE LTD
Revenue,Adult Services,Adult Social Care,Physical Support - older people (65+),5105733667,03.02.2023,Physical Support Residential 65+,Charges from Independent Providers,"2,742.96",BUCKLAND CARE LTD
Revenue,Adult Services,Adult Social Care,Physical Support - older people (65+),5105734580,15.02.2023,Physical Support Residential 65+,Charges from Independent Providers,"4,571.60",BUCKLAND CARE LTD
Balance Sheet,Adult Services,Balance Sheet,Balance Sheet,5105734303,22.02.2023,REDACTED PERSONAL DATA,Order Settlement to Bal Sht GL,"2,954.56",BUCKLAND CARE LTD
Revenue,Adult Services,Central Services,Emergency Planning,5105735837,24.02.2023,NHS C19 Nursing,Charges from Independent Providers,"2,954.56",BUCKLAND CARE LTD
Revenue,Adult Services,Adult Social Care,Learning Disability Suppt-adults (18-64),5105734303,22.02.2023,Learning Disability Nursing 18-64,Charges from Independent Providers,"2,954.56",BUCKLAND CARE LTD
Revenue,Adult Services,Adult Social Care,Learning Disability Suppt-adults (18-64),5105734303,22.02.2023,Learning Disability Nursing 18-64,Charges from Independent Providers,"5,712.00",BUCKLAND CARE LTD
Revenue,Adult Services,Adult Social Care,Commissioning & Service Delivery,5105734303,22.02.2023,"Funded Nursing Care, Registered Nursing Care Contribution",Charges from Independent Providers,836.92,BUCKLAND CARE LTD
Revenue,Adult Services,Adult Social Care,Commissioning & Service Delivery,5105734303,22.02.2023,"Funded Nursing Care, Registered Nursing Care Contribution",Charges from Independent Providers,836.92,BUCKLAND CARE LTD
Revenue,Adult Services,Adult Social Care,Commissioning & Service Delivery,5105734303,22.02.2023,"Funded Nursing Care, Registered Nursing Care Contribution",Charges from Independent Providers,836.92,BUCKLAND CARE LTD
Revenue,Adult Services,Adult Social Care,Commissioning & Service Delivery,5105734578,22.02.2023,"Funded Nursing Care, Registered Nursing Care Contribution",Charges from Independent Providers,135.2,BUCKLAND CARE LTD
Revenue,Adult Services,Adult Social Care,Commissioning & Service Delivery,5105734578,22.02.2023,"Funded Nursing Care, Registered Nursing Care Contribution",Charges from Independent Providers,"1,146.10",BUCKLAND CARE LTD
Revenue,Adult Services,Adult Social Care,Commissioning & Service Delivery,5105735837,24.02.2023,FNC IWC funded clients,Charges from Independent Providers,836.92,BUCKLAND CARE LTD
Revenue,Adult Services,Adult Social Care,Commissioning & Service Delivery,5105734303,22.02.2023,FNC IWC funded clients,Charges from Independent Providers,836.92,BUCKLAND CARE LTD
Revenue,Adult Services,Adult Social Care,Commissioning & Service Delivery,5105734303,22.02.2023,FNC IWC funded clients,Charges from Independent Providers,836.92,BUCKLAND CARE LTD
Revenue,Adult Services,Adult Social Care,Commissioning & Service Delivery,5105734303,22.02.2023,FNC IWC funded clients,Charges from Independent Providers,836.92,BUCKLAND CARE LTD
Revenue,Adult Services,Adult Social Care,Commissioning & Service Delivery,5105734303,22.02.2023,FNC IWC funded clients,Charges from Independent Providers,836.92,BUCKLAND CARE LTD
Revenue,Adult Services,Adult Social Care,Commissioning & Service Delivery,5105734303,22.02.2023,FNC IWC funded clients,Charges from Independent Providers,836.92,BUCKLAND CARE LTD
Revenue,Adult Services,Adult Social Care,Commissioning & Service Delivery,5105734303,22.02.2023,FNC IWC funded clients,Charges from Independent Providers,836.92,BUCKLAND CARE LTD
Revenue,Adult Services,Adult Social Care,Commissioning & Service Delivery,5105734303,22.02.2023,FNC IWC funded clients,Charges from Independent Providers,836.92,BUCKLAND CARE LTD
Revenue,Adult Services,Adult Social Care,Commissioning & Service Delivery,5105734303,22.02.2023,FNC IWC funded clients,Charges from Independent Providers,836.92,BUCKLAND CARE LTD
Revenue,Adult Services,Adult Social Care,Commissioning & Service Delivery,5105734303,22.02.2023,FNC IWC funded clients,Charges from Independent Providers,836.92,BUCKLAND CARE LTD
Revenue,Adult Services,Adult Social Care,Commissioning & Service Delivery,5105734303,22.02.2023,FNC IWC funded clients,Charges from Independent Providers,836.92,BUCKLAND CARE LTD
Revenue,Adult Services,Adult Social Care,Commissioning & Service Delivery,5105734303,22.02.2023,FNC IWC funded clients,Charges from Independent Providers,836.92,BUCKLAND CARE LTD
Revenue,Adult Services,Adult Social Care,Commissioning & Service Delivery,5105734303,22.02.2023,FNC IWC funded clients,Regular Respite Care,750.4,BUCKLAND CARE LTD
Balance Sheet,Adult Services,Balance Sheet,Balance Sheet,5105734303,22.02.2023,REDACTED PERSONAL DATA,Order Settlement to Bal Sht GL,"2,954.56",BUCKLAND CARE LTD
Balance Sheet,Adult Services,Balance Sheet,Balance Sheet,5105734303,22.02.2023,REDACTED PERSONAL DATA,Order Settlement to Bal Sht GL,"1,416.52",BUCKLAND CARE LTD
Revenue,Adult Services,Adult Social Care,Support - Memory /Cognition-older people (65+),5105734303,22.02.2023,Memory & Cognition Nursing 65+,Regular Respite Care,"2,835.00",BUCKLAND CARE LTD
Balance Sheet,Adult Services,Balance Sheet,Balance Sheet,5105734303,22.02.2023,REDACTED PERSONAL DATA,Order Settlement to Bal Sht GL,"2,653.56",BUCKLAND CARE LTD
Balance Sheet,Adult Services,Balance Sheet,Balance Sheet,5105734303,22.02.2023,REDACTED PERSONAL DATA,Order Settlement to Bal Sht GL,"2,146.48",BUCKLAND CARE LTD
Revenue,Adult Services,Adult Social Care,Commissioning & Service Delivery,5105734303,22.02.2023,CHC Nursing Care,Charges from Independent Providers,"12,096.00",BUCKLAND CARE LTD
Revenue,Adult Services,Adult Social Care,Physical Support - older people (65+),5105734303,22.02.2023,Physical Support Nursing 65+,Charges from Independent Providers,"2,954.56",BUCKLAND CARE LTD
Revenue,Adult Services,Adult Social Care,Physical Support - older people (65+),5105734303,22.02.2023,Physical Support Nursing 65+,Charges from Independent Providers,"2,954.56",BUCKLAND CARE LTD
Revenue,Adult Services,Adult Social Care,Support - Memory /Cognition-older people (65+),5105734303,22.02.2023,Memory & Cognition Nursing 65+,Charges from Independent Providers,"2,954.56",BUCKLAND CARE LTD
Revenue,Adult Services,Adult Social Care,Commissioning & Service Delivery,5105734303,22.02.2023,CHC Nursing Care,Charges from Independent Providers,"3,791.48",BUCKLAND CARE LTD
Revenue,Adult Services,Adult Social Care,Commissioning & Service Delivery,5105734303,22.02.2023,CHC Nursing Care,Charges from Independent Providers,"14,488.32",BUCKLAND CARE LTD
Revenue,Adult Services,Adult Social Care,Physical Support - older people (65+),5105734303,22.02.2023,Physical Support Residential 65+,Charges from Independent Providers,"2,653.56",BUCKLAND CARE LTD
Revenue,Adult Services,Adult Social Care,Commissioning & Service Delivery,5105734303,22.02.2023,CHC Nursing Care,Charges from Independent Providers,"3,704.96",BUCKLAND CARE LTD
Revenue,Adult Services,Adult Social Care,Physical Support - older people (65+),5105734303,22.02.2023,Physical Support Residential 65+,Charges from Independent Providers,"2,653.56",BUCKLAND CARE LTD
Revenue,Adult Services,Adult Social Care,Physical Support - adults (18-64),5105734303,22.02.2023,Physical Support Nursing 18-64,Charges from Independent Providers,"2,954.56",BUCKLAND CARE LTD
Revenue,Adult Services,Adult Social Care,Physical Support - older people (65+),5105734303,22.02.2023,Physical Support Nursing 65+,Charges from Independent Providers,"2,954.56",BUCKLAND CARE LTD
Revenue,Adult Services,Adult Social Care,Physical Support - older people (65+),5105734303,22.02.2023,Physical Support Nursing 65+,Charges from Independent Providers,"2,954.56",BUCKLAND CARE LTD
Revenue,Adult Services,Adult Social Care,Physical Support - older people (65+),5105734303,22.02.2023,Physical Support Nursing 65+,Charges from Independent Providers,"3,409.28",BUCKLAND CARE LTD
Revenue,Adult Services,Adult Social Care,Physical Support - older people (65+),5105734303,22.02.2023,Physical Support Nursing 65+,Charges from Independent Providers,"2,954.56",BUCKLAND CARE LTD
Revenue,Adult Services,Adult Social Care,Physical Support - older people (65+),5105734303,22.02.2023,Physical Support Nursing 65+,Charges from Independent Providers,"3,409.28",BUCKLAND CARE LTD
Revenue,Adult Services,Adult Social Care,Physical Support - older people (65+),5105734303,22.02.2023,Physical Support Residential 65+,Charges from Independent Providers,"3,095.12",BUCKLAND CARE LTD
Revenue,Adult Services,Adult Social Care,Physical Support - older people (65+),5105734303,22.02.2023,Physical Support Residential 65+,Charges from Independent Providers,"3,316.95",BUCKLAND CARE LTD
Revenue,Adult Services,Adult Social Care,Physical Support - older people (65+),5105734303,22.02.2023,Physical Support Nursing 65+,Charges from Independent Providers,"2,954.56",BUCKLAND CARE LTD
Revenue,Adult Services,Adult Social Care,Commissioning & Service Delivery,5105734303,22.02.2023,CHC Nursing Care,Charges from Independent Providers,"3,704.96",BUCKLAND CARE LTD
Revenue,Adult Services,Adult Social Care,Physical Support - older people (65+),5105734303,22.02.2023,Physical Support Nursing 65+,Charges from Independent Providers,"2,954.56",BUCKLAND CARE LTD
Revenue,Adult Services,Adult Social Care,Commissioning & Service Delivery,5105734303,22.02.2023,CHC Nursing Care,Charges from Independent Providers,"3,704.96",BUCKLAND CARE LTD
Revenue,Adult Services,Adult Social Care,Commissioning & Service Delivery,5105734303,22.02.2023,CHC Nursing Care,Charges from Independent Providers,"3,704.96",BUCKLAND CARE LTD
Revenue,Adult Services,Adult Social Care,Commissioning & Service Delivery,5105734303,22.02.2023,CHC Nursing Care,Charges from Independent Providers,"3,704.96",BUCKLAND CARE LTD
Revenue,Adult Services,Adult Social Care,Commissioning & Service Delivery,5105734303,22.02.2023,CHC Nursing Care,Charges from Independent Providers,"3,791.48",BUCKLAND CARE LTD
Revenue,Adult Services,Adult Social Care,Physical Support - older people (65+),5105735128,22.02.2023,Physical Support Residential 65+,Charges from Independent Providers,844.16,BUCKLAND CARE LTD
Revenue,Adult Services,Adult Social Care,Physical Support - older people (65+),5105734469,22.02.2023,Physical Support Nursing 65+,Charges from Independent Providers,"2,954.56",BUCKLAND CARE LTD
Revenue,Adult Services,Adult Social Care,Physical Support - older people (65+),5105734469,22.02.2023,Physical Support Nursing 65+,Charges from Independent Providers,750.4,BUCKLAND CARE LTD
Revenue,Childrens Services,Children's & Education Services,Children Looked After,5105733723,08.02.2023,Supported Accommodation,Charges from Independent Providers,307.5,BUDWOOD LTD
Revenue,Childrens Services,Children's & Education Services,Children Looked After,5105733797,08.02.2023,Supported Accommodation,Charges from Independent Providers,307.5,BUDWOOD LTD
Revenue,Childrens Services,Children's & Education Services,Children Looked After,5105735171,22.02.2023,Supported Accommodation,Charges from Independent Providers,-307.5,BUDWOOD LTD
Revenue,Childrens Services,Children's & Education Services,Children Looked After,5105735344,22.02.2023,Supported Accommodation,Charges from Independent Providers,"16,383.00",BUDWOOD LTD
Revenue,Childrens Services,Children's & Education Services,Children Looked After,5105735743,24.02.2023,Supported Accommodation,Charges from Independent Providers,"-16,383.00",BUDWOOD LTD
Revenue,Childrens Services,Children's & Education Services,Children Looked After,5105735744,24.02.2023,Supported Accommodation,Charges from Independent Providers,"16,368.00",BUDWOOD LTD
Revenue,Adult Services,Adult Social Care,Commissioning & Service Delivery,5105734356,15.02.2023,CHC Nursing Care,Charges from Independent Providers,"5,200.16",BUPA CARE HOMES
Revenue,Childrens Services,Children's & Education Services,Children Looked After,5105734589,15.02.2023,Leaving Care Costs,Support Children,19.99,REDACTED PERSONAL DATA
Revenue,Childrens Services,Children's & Education Services,Children Looked After,5105735493,24.02.2023,Special Guardianship Order Costs,Support Children,199.98,REDACTED PERSONAL DATA
Revenue,Childrens Services,Children's & Education Services,Children Looked After,5105733394,03.02.2023,Special Guardianship Order Costs,Support Children,199.98,REDACTED PERSONAL DATA
Revenue,Childrens Services,Children's & Education Services,Children Looked After,5105733962,10.02.2023,Special Guardianship Order Costs,Support Children,199.98,REDACTED PERSONAL DATA
Revenue,Childrens Services,Children's & Education Services,Children Looked After,5105734709,17.02.2023,Special Guardianship Order Costs,Support Children,199.98,REDACTED PERSONAL DATA
Revenue,Childrens Services,Children's & Education Services,Children Looked After,5105733986,10.02.2023,Children placed with Family&Friends,Boarding Out Allowances,285.93,REDACTED PERSONAL DATA
Revenue,Childrens Services,Children's & Education Services,Children Looked After,5105733418,03.02.2023,Children placed with Family&Friends,Boarding Out Allowances,285.93,REDACTED PERSONAL DATA
Revenue,Childrens Services,Children's & Education Services,Children Looked After,5105734733,17.02.2023,Children placed with Family&Friends,Boarding Out Allowances,285.93,REDACTED PERSONAL DATA
Revenue,Childrens Services,Children's & Education Services,Children Looked After,5105735517,24.02.2023,Children placed with Family&Friends,Boarding Out Allowances,285.93,REDACTED PERSONAL DATA
Revenue,Childrens Services,Children's & Education Services,Children Looked After,5105735511,24.02.2023,Adoption Costs,Support Children,206.68,REDACTED PERSONAL DATA
Revenue,Childrens Services,Children's & Education Services,Children Looked After,5105733412,03.02.2023,Adoption Costs,Support Children,206.68,REDACTED PERSONAL DATA
Revenue,Childrens Services,Children's & Education Services,Children Looked After,5105733980,10.02.2023,Adoption Costs,Support Children,206.68,REDACTED PERSONAL DATA
Revenue,Childrens Services,Children's & Education Services,Children Looked After,5105734727,17.02.2023,Adoption Costs,Support Children,206.68,REDACTED PERSONAL DATA
Revenue,Childrens Services,Children's & Education Services,Children Looked After,5105735501,24.02.2023,Special Guardianship Order Costs,Support Children,160.64,REDACTED PERSONAL DATA
Revenue,Childrens Services,Children's & Education Services,Children Looked After,5105733402,03.02.2023,Special Guardianship Order Costs,Support Children,160.64,REDACTED PERSONAL DATA
Revenue,Childrens Services,Children's & Education Services,Children Looked After,5105733970,10.02.2023,Special Guardianship Order Costs,Support Children,160.64,REDACTED PERSONAL DATA
Revenue,Childrens Services,Children's & Education Services,Children Looked After,5105734717,17.02.2023,Special Guardianship Order Costs,Support Children,160.64,REDACTED PERSONAL DATA
Revenue,Childrens Services,Children's & Education Services,Children Looked After,5105733984,10.02.2023,In-house Fostering,Boarding Out Allowances,285.93,REDACTED PERSONAL DATA
Revenue,Childrens Services,Children's & Education Services,Children Looked After,5105733984,10.02.2023,In-house Fostering,Boarding Out Allowances,285.93,REDACTED PERSONAL DATA
Revenue,Childrens Services,Children's & Education Services,Children Looked After,5105735515,24.02.2023,In-house Fostering,Boarding Out Allowances,285.93,REDACTED PERSONAL DATA
Revenue,Childrens Services,Children's & Education Services,Children Looked After,5105735515,24.02.2023,In-house Fostering,Boarding Out Allowances,285.93,REDACTED PERSONAL DATA
Revenue,Childrens Services,Children's & Education Services,Children Looked After,5105734731,17.02.2023,In-house Fostering,Boarding Out Allowances,285.93,REDACTED PERSONAL DATA
Revenue,Childrens Services,Children's & Education Services,Children Looked After,5105734731,17.02.2023,In-house Fostering,Boarding Out Allowances,285.93,REDACTED PERSONAL DATA
Revenue,Childrens Services,Children's & Education Services,Children Looked After,5105733416,03.02.2023,In-house Fostering,Boarding Out Allowances,285.93,REDACTED PERSONAL DATA
Revenue,Childrens Services,Children's & Education Services,Children Looked After,5105733416,03.02.2023,In-house Fostering,Boarding Out Allowances,285.93,REDACTED PERSONAL DATA
Revenue,Childrens Services,Children's & Education Services,Children Looked After,5105733416,03.02.2023,In-house Fostering,Boarding Out Allowances,285.93,REDACTED PERSONAL DATA
Revenue,Childrens Services,Children's & Education Services,Children Looked After,5105735525,24.02.2023,Special Guardianship Order Costs,Support Children,220.07,REDACTED PERSONAL DATA
Revenue,Childrens Services,Children's & Education Services,Children Looked After,5105733426,03.02.2023,Special Guardianship Order Costs,Support Children,220.07,REDACTED PERSONAL DATA
Revenue,Childrens Services,Children's & Education Services,Children Looked After,5105733994,10.02.2023,Special Guardianship Order Costs,Support Children,220.07,REDACTED PERSONAL DATA
Revenue,Childrens Services,Children's & Education Services,Children Looked After,5105734741,17.02.2023,Special Guardianship Order Costs,Support Children,220.07,REDACTED PERSONAL DATA
Revenue,Childrens Services,Children's & Education Services,Children Looked After,5105733956,10.02.2023,In-house Fostering,Boarding Out Allowances,318.67,REDACTED PERSONAL DATA
Revenue,Childrens Services,Children's & Education Services,Children Looked After,5105735487,24.02.2023,In-house Fostering,Boarding Out Allowances,318.67,REDACTED PERSONAL DATA
Revenue,Childrens Services,Children's & Education Services,Children Looked After,5105734703,17.02.2023,In-house Fostering,Boarding Out Allowances,318.67,REDACTED PERSONAL DATA
Revenue,Childrens Services,Children's & Education Services,Children Looked After,5105733388,03.02.2023,In-house Fostering,Boarding Out Allowances,318.67,REDACTED PERSONAL DATA
Revenue,Childrens Services,Children's & Education Services,Children Looked After,5105735480,24.02.2023,Leaving Care Costs,Support Children,320.85,REDACTED PERSONAL DATA
Revenue,Childrens Services,Children's & Education Services,Children Looked After,5105733949,10.02.2023,Leaving Care Costs,Support Children,320.85,REDACTED PERSONAL DATA
Revenue,Childrens Services,Children's & Education Services,Children Looked After,5105733381,03.02.2023,Leaving Care Costs,Support Children,320.85,REDACTED PERSONAL DATA
Revenue,Childrens Services,Children's & Education Services,Children Looked After,5105734696,17.02.2023,Leaving Care Costs,Support Children,320.85,REDACTED PERSONAL DATA
Revenue,Childrens Services,Children's & Education Services,Children Looked After,5105735491,24.02.2023,Adoption Costs,Support Children,207.13,REDACTED PERSONAL DATA
Revenue,Childrens Services,Children's & Education Services,Children Looked After,5105733392,03.02.2023,Adoption Costs,Support Children,207.13,REDACTED PERSONAL DATA
Revenue,Childrens Services,Children's & Education Services,Children Looked After,5105733960,10.02.2023,Adoption Costs,Support Children,207.13,REDACTED PERSONAL DATA
Revenue,Childrens Services,Children's & Education Services,Children Looked After,5105734707,17.02.2023,Adoption Costs,Support Children,207.13,REDACTED PERSONAL DATA
Revenue,Childrens Services,Children's & Education Services,Support Services,5105734152,15.02.2023,Learning & Development Running Costs,Operational Equipment,14.71,CALOR GAS LIMITED
Revenue,Childrens Services,Children's & Education Services,Children Looked After,5105734199,10.02.2023,Purchased Residential,Charges from Independent Providers,"18,600.12",CAMBIAN CHILDCARE LTD
Revenue,Childrens Services,Children's & Education Services,Children Looked After,5105734202,10.02.2023,Purchased Residential,Charges from Independent Providers,"21,636.00",CAMBIAN CHILDCARE LTD
Revenue,Childrens Services,Children's & Education Services,Children Looked After,5105734205,10.02.2023,Purchased Residential,Charges from Independent Providers,"20,200.00",CAMBIAN CHILDCARE LTD
Revenue,Childrens Services,Children's & Education Services,Children Looked After,5105734211,10.02.2023,Purchased Residential,Charges from Independent Providers,"23,800.00",CAMBIAN CHILDCARE LTD
Revenue,Childrens Services,Children's & Education Services,Children Looked After,5105734214,10.02.2023,Purchased Residential,Charges from Independent Providers,"18,200.00",CAMBIAN CHILDCARE LTD
Revenue,Childrens Services,Children's & Education Services,Children Looked After,5105734666,17.02.2023,Purchased Residential,Charges from Independent Providers,"3,190.68",CAMERON & COOPER
Revenue,Childrens Services,Children's & Education Services,Children Looked After,5105734668,17.02.2023,Purchased Residential,Charges from Independent Providers,"22,952.41",CAMERON & COOPER
Revenue,Childrens Services,Children's & Education Services,Safeguarding Children/Young Peoples Svs,5105735403,22.02.2023,Court Work & Consultancy Services,Professional Services,489.75,CANSFORD LABORATORIES LTD
Revenue,Regeneration,Planning services,Economic Development,5105732986,03.02.2023,Shademakers-dept,Professional Services,"2,892.40",CAPSTICKS SOLICITORS LLP
Revenue,Adult Services,Adult Social Care,Assistive Equipment & Technology,5105735396,22.02.2023,BCF Community Equipment Store,Operational Equipment,349.5,CARE & INDEPENDENCE LTD
Revenue,Childrens Services,Children's & Education Services,Management & Support Services,5105735105,22.02.2023,Direct Paymnts/Managed Educational Packages,Charges from Independent Providers,"2,259.50",CARE CONNECT IOW CIC
Revenue,Childrens Services,Children's & Education Services,Management & Support Services,5105735106,22.02.2023,Direct Paymnts/Managed Educational Packages,Charges from Independent Providers,"2,454.00",CARE CONNECT IOW CIC
Revenue,Childrens Services,Children's & Education Services,Management & Support Services,5105735108,22.02.2023,Direct Paymnts/Managed Educational Packages,Charges from Independent Providers,"1,553.50",CARE CONNECT IOW CIC
Revenue,Childrens Services,Children's & Education Services,Family Support Services,5105735107,22.02.2023,S17 Disabled Children,Support Children,418.5,CARE CONNECT IOW CIC
Revenue,Resources,Central Services,Support Services,5105735831,24.02.2023,Staff Benefits,Payment to Private Contractors,50,CARISBROOKE CEP SCHOOL
Capital,Childrens Services,Capital,Capital,5105735966,24.02.2023,Administration and Inspection Schemes,Payment to Contractors - Capital,106,CATER WIGHT
Revenue,Childrens Services,Children's & Education Services,Children Looked After,5105734511,15.02.2023,Beaulieu House,Minor Works,162.5,CATER WIGHT
Revenue,Childrens Services,Children's & Education Services,Other Education and Community Budget,5105734504,15.02.2023,Non-Delegated Building Maintenance,Public Transport Fares,50.21,CATERING EQUIPMENT SUPPORT LTD
Revenue,Neighbourhoods,Cultural and Related Services,Recreation and Sport,5105733343,01.02.2023,The Heights,Gas,"14,986.67",COMBINED POWER LTD
Revenue,Neighbourhoods,Cultural and Related Services,Library Service,5105735095,22.02.2023,Cowes Library,Property Services - Day to day Maintenance,66,CHANT LOCK & SECURITY SERVICE
Revenue,Adult Services,Adult Social Care,Social Support - Support for Carer,5105734899,17.02.2023,Westminster House,Property Services - Day to day Maintenance,65,CHANT LOCK & SECURITY SERVICE
Revenue,Neighbourhoods,Highways and Transport Services,"Airports, Harbours & Toll Facilities",5105734889,17.02.2023,Ferry Operation,Operational Equipment,35,CHANT LOCK & SECURITY SERVICE
Revenue,Childrens Services,Children's & Education Services,Special Schools & Alternative Provision,5105735696,24.02.2023,Island Learning Centre,Delegated Minor Maintenance,297.77,CHANT LOCK & SECURITY SERVICE
Revenue,Childrens Services,Children's & Education Services,Sure Start Children's Centres,5105734456,15.02.2023,Family Centres Maintenance,Minor Works,66,CHANT LOCK & SECURITY SERVICE
Revenue,Adult Services,Adult Social Care,Central Codes (to be reallocated),5105733596,03.02.2023,Gouldings Resource Centre,Catering Purchases,43.6,CHAPEL NURSERIES
Revenue,Adult Services,Adult Social Care,Central Codes (to be reallocated),5105733576,03.02.2023,Gouldings Resource Centre,Catering Purchases,84.2,CHAPEL NURSERIES
Revenue,Adult Services,Adult Social Care,Central Codes (to be reallocated),5105733578,03.02.2023,Gouldings Resource Centre,Catering Purchases,76.5,CHAPEL NURSERIES
Revenue,Adult Services,Adult Social Care,Learning Disab Supp (to be reallocated),5105733355,03.02.2023,Plean Dene,Catering Purchases,37.7,CHAPEL NURSERIES
Revenue,Adult Services,Adult Social Care,Learning Disab Supp (to be reallocated),5105735243,22.02.2023,Saxonbury,Catering Purchases,14.4,CHAPEL NURSERIES
Revenue,Adult Services,Adult Social Care,Learning Disab Supp (to be reallocated),5105735244,22.02.2023,Saxonbury,Catering Purchases,26.7,CHAPEL NURSERIES
Revenue,Adult Services,Adult Social Care,Learning Disab Supp (to be reallocated),5105735245,22.02.2023,Saxonbury,Catering Purchases,16.9,CHAPEL NURSERIES
Revenue,Adult Services,Adult Social Care,Support - Memory /Cognition-older people (65+),5105734331,15.02.2023,Memory & Cognition Residential 65+,Charges from Independent Providers,"3,552.08",CHD CARE LTD
Revenue,Neighbourhoods,Highways and Transport Services,"Airports, Harbours & Toll Facilities",5105735824,24.02.2023,Ventnor Haven - General,Payment to Private Contractors,"8,596.25",CHEETAH MARINE LLP
Revenue,Neighbourhoods,Highways and Transport Services,"Airports, Harbours & Toll Facilities",5105735825,24.02.2023,Ventnor Haven - General,Payment to Private Contractors,"8,596.25",CHEETAH MARINE LLP
Revenue,Childrens Services,Children's & Education Services,Children Looked After,5105735585,24.02.2023,Special Guardianship Order Costs,Support Children,47.16,REDACTED PERSONAL DATA
Revenue,Childrens Services,Children's & Education Services,Children Looked After,5105734054,10.02.2023,Special Guardianship Order Costs,Support Children,47.16,REDACTED PERSONAL DATA
Revenue,Childrens Services,Children's & Education Services,Children Looked After,5105733486,03.02.2023,Special Guardianship Order Costs,Support Children,47.16,REDACTED PERSONAL DATA
Revenue,Childrens Services,Children's & Education Services,Children Looked After,5105734799,17.02.2023,Special Guardianship Order Costs,Support Children,47.16,REDACTED PERSONAL DATA
Revenue,Adult Services,Adult Social Care,Support - Memory /Cognition-older people (65+),5105734281,15.02.2023,Memory & Cognition Residential 65+,Charges from Independent Providers,"2,653.56",CHERRY TREES I.W. LTD
Revenue,Adult Services,Adult Social Care,Support - Memory /Cognition-older people (65+),5105734281,15.02.2023,Memory & Cognition Residential 65+,Charges from Independent Providers,"3,095.12",CHERRY TREES I.W. LTD
Revenue,Adult Services,Adult Social Care,Physical Support - adults (18-64),5105733656,03.02.2023,Physical Support Residential 18-64,Charges from Independent Providers,"2,558.79",CHERRY TREES I.W. LTD
Revenue,Adult Services,Central Services,Emergency Planning,5105734678,17.02.2023,NHS C19 Residential,Charges from Independent Providers,"3,095.12",CHERRY TREES I.W. LTD
Revenue,Adult Services,Central Services,Emergency Planning,5105733864,08.02.2023,NHS C19 Residential,Charges from Independent Providers,"3,095.12",CHERRY TREES I.W. LTD
Revenue,Adult Services,Adult Social Care,Physical Support - adults (18-64),5105735119,22.02.2023,Physical Support Residential 18-64,Charges from Independent Providers,"1,705.86",CHERRY TREES I.W. LTD
Revenue,Adult Services,Adult Social Care,Physical Support - older people (65+),5105734281,15.02.2023,Physical Support Residential 65+,Charges from Independent Providers,"2,155.44",CHERRY TREES I.W. LTD
Revenue,Adult Services,Adult Social Care,Physical Support - older people (65+),5105734281,15.02.2023,Physical Support Residential 65+,Charges from Independent Providers,"2,155.44",CHERRY TREES I.W. LTD
Revenue,Adult Services,Adult Social Care,Physical Support - older people (65+),5105734281,15.02.2023,Physical Support Residential 65+,Charges from Independent Providers,"2,257.08",CHERRY TREES I.W. LTD
Revenue,Adult Services,Adult Social Care,Physical Support - older people (65+),5105734281,15.02.2023,Physical Support Residential 65+,Charges from Independent Providers,300.16,CHERRY TREES I.W. LTD
Revenue,Adult Services,Adult Social Care,Physical Support - older people (65+),5105734281,15.02.2023,Physical Support Residential 65+,Charges from Independent Providers,"2,155.44",CHERRY TREES I.W. LTD
Revenue,Adult Services,Adult Social Care,Physical Support - older people (65+),5105734281,15.02.2023,Physical Support Residential 65+,Charges from Independent Providers,"2,653.56",CHERRY TREES I.W. LTD
Revenue,Adult Services,Adult Social Care,Physical Support - older people (65+),5105734281,15.02.2023,Physical Support Residential 65+,Charges from Independent Providers,"2,653.56",CHERRY TREES I.W. LTD
Revenue,Adult Services,Adult Social Care,Physical Support - older people (65+),5105734281,15.02.2023,Physical Support Residential 65+,Charges from Independent Providers,"3,095.12",CHERRY TREES I.W. LTD
Revenue,Adult Services,Adult Social Care,Physical Support - older people (65+),5105734281,15.02.2023,Physical Support Residential 65+,Charges from Independent Providers,"3,095.12",CHERRY TREES I.W. LTD
Revenue,Adult Services,Adult Social Care,Physical Support - older people (65+),5105734281,15.02.2023,Physical Support Residential 65+,Charges from Independent Providers,"2,653.56",CHERRY TREES I.W. LTD
Revenue,Adult Services,Adult Social Care,Physical Support - older people (65+),5105734281,15.02.2023,Physical Support Residential 65+,Charges from Independent Providers,"2,653.56",CHERRY TREES I.W. LTD
Revenue,Adult Services,Adult Social Care,Physical Support - older people (65+),5105734257,15.02.2023,Physical Support Residential 65+,Charges from Independent Providers,"1,895.40",CHERRY TREES I.W. LTD
Revenue,Adult Services,Adult Social Care,Physical Support - older people (65+),5105735119,22.02.2023,Physical Support Residential 65+,Charges from Independent Providers,"1,990.17",CHERRY TREES I.W. LTD
Revenue,Adult Services,Adult Social Care,Physical Support - older people (65+),5105735119,22.02.2023,Physical Support Residential 65+,Charges from Independent Providers,110.54,CHERRY TREES I.W. LTD
Revenue,Adult Services,Adult Social Care,Physical Support - older people (65+),5105735119,22.02.2023,Physical Support Residential 65+,Charges from Independent Providers,840,CHERRY TREES I.W. LTD
Revenue,Adult Services,Adult Social Care,Physical Support - older people (65+),5105735835,24.02.2023,Physical Support Residential 65+,Charges from Independent Providers,"3,316.95",CHERRY TREES I.W. LTD
Revenue,Adult Services,Adult Social Care,Physical Support - older people (65+),5105733309,01.02.2023,Physical Support Residential 65+,Charges from Independent Providers,"3,570.00",CHERRY TREES I.W. LTD
Revenue,Adult Services,Adult Social Care,Physical Support - older people (65+),5105733656,03.02.2023,Physical Support Residential 65+,Charges from Independent Providers,"3,411.72",CHERRY TREES I.W. LTD
Revenue,Adult Services,Adult Social Care,Physical Support - older people (65+),5105733864,08.02.2023,Physical Support Residential 65+,Charges from Independent Providers,"1,421.55",CHERRY TREES I.W. LTD
Revenue,Childrens Services,Children's & Education Services,Children Looked After,5105735103,22.02.2023,Purchased Residential,Charges from Independent Providers,"24,800.00",CHILDHOOD FIRST
Revenue,Resources,Highways and Transport Services,Off Street Parking,5105735239,22.02.2023,Parking Services,Payment to Private Contractors,54.1,CHIPSIDE LIMITED
Revenue,Adult Services,Adult Social Care,Commissioning & Service Delivery,5105734346,15.02.2023,CHC Residential Care,Charges from Independent Providers,"11,924.08",CHOICE CARE (WOODLANDS)
Revenue,Adult Services,Adult Social Care,Learning Disability Suppt-adults (18-64),5105734333,15.02.2023,Learning Disability Residential 18-64,Charges from Independent Providers,"10,044.16",CHOICE LTD
Capital,Childrens Services,Capital,Capital,5105733921,10.02.2023,Administration and Inspection Schemes,Payment to Contractors - Capital,"6,000.00",CHRIST THE KING COLLEGE
Revenue,Resources,Central Services,Support Services,5105735087,22.02.2023,Financial Management Overheads,Publications,"1,500.00",CIPFA BUSINESS LTD
Revenue,Neighbourhoods,Environmental & Regulatory Services,Regulatory Services,5105735759,24.02.2023,Environmental Health - Environmental Regulation & Protection,Professional Services,30,CIRRUS RESEARCH PLC
Revenue,Neighbourhoods,Environmental & Regulatory Services,Regulatory Services,5105734155,17.02.2023,Environmental Health - Environmental Regulation & Protection,Professional Services,30,CIRRUS RESEARCH PLC
Revenue,Neighbourhoods,Environmental & Regulatory Services,Regulatory Services,5105733781,08.02.2023,Environmental Health - Environmental Regulation & Protection,Operational Equipment,"8,790.00",CIRRUS RESEARCH PLC
Revenue,Childrens Services,Children's & Education Services,Other Education and Community Budget,5105735987,24.02.2023,Adult Community Learning,Licences,9.75,CITY AND GUILDS
Revenue,Childrens Services,Children's & Education Services,Other Education and Community Budget,5105735989,24.02.2023,Adult Community Learning,Licences,9.75,CITY AND GUILDS
Revenue,Childrens Services,Children's & Education Services,Other Education and Community Budget,5105734875,17.02.2023,Adult Community Learning,Licences,375,CITY AND GUILDS
Revenue,Childrens Services,Children's & Education Services,Other Education and Community Budget,5105734875,17.02.2023,Adult Community Learning,Licences,375,CITY AND GUILDS
Revenue,Childrens Services,Children's & Education Services,Other Education and Community Budget,5105734875,17.02.2023,Adult Community Learning,Licences,375,CITY AND GUILDS
Revenue,Resources,Central Services,Central Services to the Public,5105735247,22.02.2023,Electoral Registration Canvassing,Printing Costs,"4,510.17",ELECTORAL REFORM SERVICES
Revenue,Resources,Central Services,Central Services to the Public,5105734869,17.02.2023,Electoral Registration Office,Printing Costs,"1,091.89",ELECTORAL REFORM SERVICES
Revenue,Resources,Central Services,Central Services to the Public,5105733690,03.02.2023,Elections,Printing Costs,280,ELECTORAL REFORM SERVICES
Revenue,Adult Services,Housing Services,Homelessness,5105734111,10.02.2023,Housing Needs Team,Computer Maintenance,"18,440.00",CIVICA UK LTD
Capital,Place,Capital,Capital,5105734605,15.02.2023,Ryde THI,Payment to Contractors - Capital,"3,750.00",CLIFFORD J. MATTHEWS LTD
Revenue,Resources,Central Services,Support Services,5105734657,17.02.2023,Corporate Stores,Furniture and Fittings,"6,638.00",COI TOTAL INTERIORS LTD
Revenue,Resources,Central Services,Support Services,5105734657,17.02.2023,Corporate Stores,Furniture and Fittings,455,COI TOTAL INTERIORS LTD
Revenue,Childrens Services,Adult Social Care,Social Care Activities,5105734882,17.02.2023,Adult Social Care ASYE,Training,"1,500.00",REDACTED PERSONAL DATA
Revenue,Neighbourhoods,Cultural and Related Services,Service Management and Support Services,5105735175,22.02.2023,Leisure Management & Admin,Agency staff,"7,024.50",COLIN READ ASSOCIATES
Capital,Adult Services,Capital,Capital,5105735280,24.02.2023,Specialist Housing Schemes,External Design and Supervision Fees,"1,922.43",COMMUNITY ACTION ISLE OF WIGHT
Revenue,Chief Executive,Adult Social Care,Social Support - Asylum Seeker Support,5105730921,03.02.2023,HM Gov Refugee Schemes (UKRS),Grants to External Bodies,"10,732.50",COMMUNITY ACTION ISLE OF WIGHT
Revenue,Chief Executive,Adult Social Care,Social Support - Asylum Seeker Support,5105730922,03.02.2023,HM Gov Refugee Schemes (UKRS),Grants to External Bodies,"10,732.50",COMMUNITY ACTION ISLE OF WIGHT
Revenue,Chief Executive,Adult Social Care,Social Support - Asylum Seeker Support,5105730923,03.02.2023,HM Gov Refugee Schemes (UKRS),Grants to External Bodies,"10,732.50",COMMUNITY ACTION ISLE OF WIGHT
Revenue,Chief Executive,Adult Social Care,Social Support - Asylum Seeker Support,5105732442,03.02.2023,HM Gov Refugee Schemes (UKRS),Grants to External Bodies,"-10,732.50",COMMUNITY ACTION ISLE OF WIGHT
Revenue,Chief Executive,Adult Social Care,Social Support - Asylum Seeker Support,5105732447,03.02.2023,HM Gov Refugee Schemes (UKRS),Grants to External Bodies,"-10,732.50",COMMUNITY ACTION ISLE OF WIGHT
Revenue,Chief Executive,Adult Social Care,Social Support - Asylum Seeker Support,5105732559,03.02.2023,HM Gov Refugee Schemes (UKRS),Grants to External Bodies,"-10,732.50",COMMUNITY ACTION ISLE OF WIGHT
Revenue,Chief Executive,Adult Social Care,Social Support - Asylum Seeker Support,5105733603,03.02.2023,HM Gov Refugee Schemes (UKRS),Grants to External Bodies,"10,732.50",COMMUNITY ACTION ISLE OF WIGHT
Revenue,Childrens Services,Children's & Education Services,Services for Young People,5105733090,01.02.2023,Resilience Around the Family Team,Support Children,15,COMMUNITY ACTION ISLE OF WIGHT
Revenue,Adult Services,Adult Social Care,Commissioning & Service Delivery,5105729552,08.02.2023,Shared Lives Management,Rent of Buildings and Rooms,750,COMMUNITY ACTION ISLE OF WIGHT
Revenue,Adult Services,Adult Social Care,Learning Disability Suppt-adults (18-64),5105735144,22.02.2023,Learning Disability Residential 18-64,Charges from Independent Providers,"8,414.56",COMMUNITY HOMES OF INTENSIVE CARE
Revenue,Neighbourhoods,Cultural and Related Services,Recreation and Sport,5400003330,24.02.2023,Medina Leisure Centre,Consumable Cleaning Materials,31.46,COMPLETE POOL CONTROLS LTD
Revenue,Neighbourhoods,Cultural and Related Services,Recreation and Sport,5105735362,24.02.2023,Medina Leisure Centre,Consumable Cleaning Materials,"2,839.34",COMPLETE POOL CONTROLS LTD
Revenue,Neighbourhoods,Cultural and Related Services,Recreation and Sport,5105729700,03.02.2023,The Heights,Operational Equipment,619,COMPLETE POOL CONTROLS LTD
Revenue,Neighbourhoods,Environmental & Regulatory Services,Coast Protection,5105734223,15.02.2023,Coast Protection,Payment to Private Contractors,793.2,HARRIER PNEUMATICS LIMITED
Revenue,Adult Services,Adult Social Care,Central Codes (to be reallocated),5105735735,24.02.2023,Bluebell House,Clothing & Laundry,9.59,CONTEGO SAFETY SOLUTIONS LTD
Revenue,Adult Services,Adult Social Care,Central Codes (to be reallocated),5105735735,24.02.2023,Bluebell House,Clothing & Laundry,67.13,CONTEGO SAFETY SOLUTIONS LTD
Revenue,Adult Services,Adult Social Care,Central Codes (to be reallocated),5105735735,24.02.2023,Bluebell House,Clothing & Laundry,28.77,CONTEGO SAFETY SOLUTIONS LTD
Revenue,Adult Services,Adult Social Care,Central Codes (to be reallocated),5105735735,24.02.2023,Bluebell House,Clothing & Laundry,9.59,CONTEGO SAFETY SOLUTIONS LTD
Revenue,Adult Services,Adult Social Care,Central Codes (to be reallocated),5105735735,24.02.2023,Bluebell House,Clothing & Laundry,19.18,CONTEGO SAFETY SOLUTIONS LTD
Revenue,Adult Services,Adult Social Care,Central Codes (to be reallocated),5105735735,24.02.2023,Bluebell House,Clothing & Laundry,20.86,CONTEGO SAFETY SOLUTIONS LTD
Revenue,Neighbourhoods,Cultural and Related Services,Recreation and Sport,5105730030,08.02.2023,Medina Leisure Centre,Clothing & Laundry,43.26,CONTEGO SAFETY SOLUTIONS LTD
Revenue,Adult Services,Adult Social Care,Central Codes (to be reallocated),5105734153,10.02.2023,Community Reablement,Clothing & Laundry,171.3,CONTEGO SAFETY SOLUTIONS LTD
Revenue,Childrens Services,Children's & Education Services,Children Looked After,5105733776,15.02.2023,Support for LAC CWD,Professional Services,329.5,CORAM VOICE
Revenue,Adult Services,Central Services,Emergency Planning,5105733932,10.02.2023,NHS C19 Residential,Charges from Independent Providers,"3,095.12",CORNELIA MANOR
Revenue,Adult Services,Adult Social Care,Support - Memory /Cognition-older people (65+),5105734306,15.02.2023,Memory & Cognition Residential 65+,Charges from Independent Providers,"2,257.08",CORNELIA MANOR
Revenue,Adult Services,Adult Social Care,Support - Memory /Cognition-older people (65+),5105734306,15.02.2023,Memory & Cognition Residential 65+,Charges from Independent Providers,"2,653.56",CORNELIA MANOR
Revenue,Adult Services,Central Services,Emergency Planning,5105733365,03.02.2023,NHS C19 Residential,Charges from Independent Providers,"3,095.12",CORNELIA MANOR
Revenue,Adult Services,Central Services,Emergency Planning,5105733365,03.02.2023,NHS C19 Residential,Charges from Independent Providers,"3,095.12",CORNELIA MANOR
Revenue,Adult Services,Adult Social Care,Social Support - Social Isolation/Other,5105734579,15.02.2023,Social Isolation/Other Residential,Charges from Independent Providers,"3,885.57",CORNELIA MANOR
Revenue,Adult Services,Central Services,Emergency Planning,5105733867,10.02.2023,NHS C19 Residential,Charges from Independent Providers,"2,984.58",CORNELIA MANOR
Revenue,Adult Services,Central Services,Emergency Planning,5105733867,10.02.2023,NHS C19 Residential,Charges from Independent Providers,"3,095.12",CORNELIA MANOR
Revenue,Adult Services,Adult Social Care,Social Support - Social Isolation/Other,5105735130,22.02.2023,Social Isolation/Other Residential,Charges from Independent Providers,"2,653.56",CORNELIA MANOR
Revenue,Adult Services,Central Services,Emergency Planning,5105735839,24.02.2023,NHS C19 Residential,Charges from Independent Providers,"3,095.12",CORNELIA MANOR
Revenue,Adult Services,Adult Social Care,Physical Support - older people (65+),5105734306,15.02.2023,Physical Support Residential 65+,Charges from Independent Providers,"2,653.56",CORNELIA MANOR
Revenue,Adult Services,Adult Social Care,Physical Support - older people (65+),5105734306,15.02.2023,Physical Support Residential 65+,Charges from Independent Providers,"2,653.56",CORNELIA MANOR
Revenue,Adult Services,Adult Social Care,Physical Support - older people (65+),5105734306,15.02.2023,Physical Support Residential 65+,Charges from Independent Providers,"2,155.44",CORNELIA MANOR
Revenue,Adult Services,Adult Social Care,Mental Health Support - adults (18-64),5105734306,15.02.2023,Mental Health Residential 18-64,Charges from Independent Providers,"2,653.56",CORNELIA MANOR
Revenue,Adult Services,Adult Social Care,Physical Support - older people (65+),5105734306,15.02.2023,Physical Support Residential 65+,Charges from Independent Providers,"2,257.08",CORNELIA MANOR
Revenue,Adult Services,Adult Social Care,Physical Support - older people (65+),5105734306,15.02.2023,Physical Support Residential 65+,Charges from Independent Providers,"4,400.20",CORNELIA MANOR
Revenue,Adult Services,Adult Social Care,Physical Support - older people (65+),5105735130,22.02.2023,Physical Support Residential 65+,Charges from Independent Providers,284.31,CORNELIA MANOR
Revenue,Adult Services,Adult Social Care,Physical Support - older people (65+),5105735130,22.02.2023,Physical Support Residential 65+,Charges from Independent Providers,271.42,CORNELIA MANOR
Revenue,Adult Services,Adult Social Care,Physical Support - older people (65+),5105734471,15.02.2023,Physical Support Residential 65+,Charges from Independent Providers,"5,343.10",CORNELIA MANOR
Revenue,Adult Services,Adult Social Care,Commissioning & Service Delivery,5105735145,22.02.2023,CHC Nursing Care,Charges from Independent Providers,"9,512.16",CORNERSTONE HEALTHCARE
Revenue,Adult Services,Adult Social Care,Commissioning & Service Delivery,5105733679,03.02.2023,CHC Nursing Care,Charges from Independent Providers,"7,560.00",CORNERSTONE HEALTHCARE
Revenue,Neighbourhoods,Cultural and Related Services,Recreation and Sport,5105733602,03.02.2023,Medina Leisure Centre,Payment to Private Contractors,"13,500.00",COURTSHIP LIMITED
Capital,Childrens Services,Capital,Capital,5105735184,22.02.2023,Administration and Inspection Schemes,Payment to Contractors - Capital,500,COWAN CONSULTANCY LTD
Revenue,Childrens Services,Children's & Education Services,Support Services,5105735182,22.02.2023,Sandown Town Hall,Property Services - Day to day Maintenance,600,COWAN CONSULTANCY LTD
Revenue,Neighbourhoods,Highways and Transport Services,"Airports, Harbours & Toll Facilities",5105733540,03.02.2023,Newport Harbour Account,Payment to Private Contractors,70.8,COWES HARBOUR COMMISSION
Revenue,Adult Services,Adult Social Care,Commissioning & Service Delivery,5105735806,24.02.2023,Director of Adult Social Services,Hire of facilities,750,COWES YACHT HAVEN LTD
Revenue,Childrens Services,Children's & Education Services,Other Education and Community Budget,5105734981,17.02.2023,Home to School SEN Transport (LA),Taxis - Contract Hire,840,CRISS CROSS CABS
Revenue,Childrens Services,Children's & Education Services,Other Education and Community Budget,5105734878,17.02.2023,Home to School SEN Transport (LA),Taxis - Contract Hire,"1,008.00",CRISS CROSS CABS
Revenue,Neighbourhoods,Highways and Transport Services,"Airports, Harbours & Toll Facilities",5105734590,15.02.2023,Whitegates Pontoons,Rent of Buildings and Rooms,-525,CROWN ESTATE COMMISSIONERS
Revenue,Neighbourhoods,Highways and Transport Services,"Airports, Harbours & Toll Facilities",5105734677,17.02.2023,Whitegates Pontoons,Rent of Buildings and Rooms,525,CROWN ESTATE COMMISSIONERS
Revenue,Neighbourhoods,Highways and Transport Services,"Airports, Harbours & Toll Facilities",5105734591,15.02.2023,Newport Harbour Account,Licences,"-1,000.00",CROWN ESTATE COMMISSIONERS
Capital,Place,Capital,Capital,5105733701,03.02.2023,Highway Structures Capital,External Design and Supervision Fees,"-6,390.00",CROWNPARK BUILDERS LTD
Capital,Place,Capital,Capital,5105733702,03.02.2023,Highway Structures Capital,External Design and Supervision Fees,"6,390.00",CROWNPARK BUILDERS LTD
Revenue,Childrens Services,Children's & Education Services,Management & Support Services,5105733794,08.02.2023,Hospital Education,Charges from Independent Providers,"1,881.00",CYGNET HEALTH CARE (SURREY) LTD
Revenue,Adult Services,Adult Social Care,Physical Support - adults (18-64),5105734266,15.02.2023,Physical Support Residential 18-64,Charges from Independent Providers,"7,243.56",CYGNET LEARNING DISABILITIES
Revenue,Adult Services,Adult Social Care,Physical Support - adults (18-64),5105735143,22.02.2023,Physical Support Residential 18-64,Charges from Independent Providers,"3,431.16",CYGNET LEARNING DISABILITIES
Revenue,Childrens Services,Children's & Education Services,Children Looked After,5105734003,10.02.2023,Children placed with Family&Friends,Boarding Out Allowances,318.67,REDACTED PERSONAL DATA
Revenue,Childrens Services,Children's & Education Services,Children Looked After,5105734003,10.02.2023,Children placed with Family&Friends,Boarding Out Allowances,285.93,REDACTED PERSONAL DATA
Revenue,Childrens Services,Children's & Education Services,Children Looked After,5105734003,10.02.2023,Children placed with Family&Friends,Boarding Out Allowances,370.6,REDACTED PERSONAL DATA
Revenue,Childrens Services,Children's & Education Services,Children Looked After,5105733435,03.02.2023,Children placed with Family&Friends,Boarding Out Allowances,318.67,REDACTED PERSONAL DATA
Revenue,Childrens Services,Children's & Education Services,Children Looked After,5105733435,03.02.2023,Children placed with Family&Friends,Boarding Out Allowances,285.93,REDACTED PERSONAL DATA
Revenue,Childrens Services,Children's & Education Services,Children Looked After,5105733435,03.02.2023,Children placed with Family&Friends,Boarding Out Allowances,370.6,REDACTED PERSONAL DATA
Revenue,Childrens Services,Children's & Education Services,Children Looked After,5105734750,17.02.2023,Children placed with Family&Friends,Boarding Out Allowances,318.67,REDACTED PERSONAL DATA
Revenue,Childrens Services,Children's & Education Services,Children Looked After,5105734750,17.02.2023,Children placed with Family&Friends,Boarding Out Allowances,285.93,REDACTED PERSONAL DATA
Revenue,Childrens Services,Children's & Education Services,Children Looked After,5105734750,17.02.2023,Children placed with Family&Friends,Boarding Out Allowances,370.6,REDACTED PERSONAL DATA
Revenue,Childrens Services,Children's & Education Services,Children Looked After,5105735534,24.02.2023,Children placed with Family&Friends,Boarding Out Allowances,318.67,REDACTED PERSONAL DATA
Revenue,Childrens Services,Children's & Education Services,Children Looked After,5105735534,24.02.2023,Children placed with Family&Friends,Boarding Out Allowances,285.93,REDACTED PERSONAL DATA
Revenue,Childrens Services,Children's & Education Services,Children Looked After,5105735534,24.02.2023,Children placed with Family&Friends,Boarding Out Allowances,370.6,REDACTED PERSONAL DATA
Revenue,Adult Services,Housing Services,Homelessness,5105735047,22.02.2023,Private Rented Sector Leasing Scheme,Accommodation Costs - Leaseholder Payments,945.97,REDACTED PERSONAL DATA
Revenue,Neighbourhoods,Cultural and Related Services,Library Service,5105734184,10.02.2023,Sandown Library,Property Services - Day to day Maintenance,525,5 STAR PEST CONTROL
Revenue,Childrens Services,Children's & Education Services,Children Looked After,5105735481,24.02.2023,Adoption Costs,Support Children,207.73,REDACTED PERSONAL DATA
Revenue,Childrens Services,Children's & Education Services,Children Looked After,5105733382,03.02.2023,Adoption Costs,Support Children,207.73,REDACTED PERSONAL DATA
Revenue,Childrens Services,Children's & Education Services,Children Looked After,5105733950,10.02.2023,Adoption Costs,Support Children,207.73,REDACTED PERSONAL DATA
Revenue,Childrens Services,Children's & Education Services,Children Looked After,5105734697,17.02.2023,Adoption Costs,Support Children,207.73,REDACTED PERSONAL DATA
Revenue,Adult Services,Housing Services,Homelessness,5105735049,22.02.2023,Private Rented Sector Leasing Scheme,Accommodation Costs - Leaseholder Payments,867.53,REDACTED PERSONAL DATA
Revenue,Childrens Services,Children's & Education Services,Children Looked After,5105735470,24.02.2023,Adoption Costs,Support Children,207.13,REDACTED PERSONAL DATA
Revenue,Childrens Services,Children's & Education Services,Children Looked After,5105733371,03.02.2023,Adoption Costs,Support Children,207.13,REDACTED PERSONAL DATA
Revenue,Childrens Services,Children's & Education Services,Children Looked After,5105733939,10.02.2023,Adoption Costs,Support Children,207.13,REDACTED PERSONAL DATA
Revenue,Childrens Services,Children's & Education Services,Children Looked After,5105734686,17.02.2023,Adoption Costs,Support Children,207.13,REDACTED PERSONAL DATA
Revenue,Childrens Services,Children's & Education Services,Children Looked After,5105734032,10.02.2023,In-house Fostering,Boarding Out Allowances,318.67,REDACTED PERSONAL DATA
Revenue,Childrens Services,Children's & Education Services,Children Looked After,5105734032,10.02.2023,In-house Fostering,Boarding Out Allowances,252.13,REDACTED PERSONAL DATA
Revenue,Childrens Services,Children's & Education Services,Children Looked After,5105734032,10.02.2023,In-house Fostering,Boarding Out Allowances,285.93,REDACTED PERSONAL DATA
Revenue,Childrens Services,Children's & Education Services,Children Looked After,5105733464,03.02.2023,In-house Fostering,Boarding Out Allowances,318.67,REDACTED PERSONAL DATA
Revenue,Childrens Services,Children's & Education Services,Children Looked After,5105733464,03.02.2023,In-house Fostering,Boarding Out Allowances,252.13,REDACTED PERSONAL DATA
Revenue,Childrens Services,Children's & Education Services,Children Looked After,5105733464,03.02.2023,In-house Fostering,Boarding Out Allowances,285.93,REDACTED PERSONAL DATA
Revenue,Childrens Services,Children's & Education Services,Children Looked After,5105735562,24.02.2023,In-house Fostering,Boarding Out Allowances,318.67,REDACTED PERSONAL DATA
Revenue,Childrens Services,Children's & Education Services,Children Looked After,5105735562,24.02.2023,In-house Fostering,Boarding Out Allowances,252.13,REDACTED PERSONAL DATA
Revenue,Childrens Services,Children's & Education Services,Children Looked After,5105735562,24.02.2023,In-house Fostering,Boarding Out Allowances,285.93,REDACTED PERSONAL DATA
Revenue,Childrens Services,Children's & Education Services,Children Looked After,5105734778,17.02.2023,In-house Fostering,Boarding Out Allowances,318.67,REDACTED PERSONAL DATA
Revenue,Childrens Services,Children's & Education Services,Children Looked After,5105734778,17.02.2023,In-house Fostering,Boarding Out Allowances,252.13,REDACTED PERSONAL DATA
Revenue,Childrens Services,Children's & Education Services,Children Looked After,5105734778,17.02.2023,In-house Fostering,Boarding Out Allowances,285.93,REDACTED PERSONAL DATA
Revenue,Resources,Central Services,Support Services,5105734992,22.02.2023,Litigation Costs,Legal Fees - Other Parties,600,"COLLEGE CHAMBERS, BARRISTERS"
Revenue,Neighbourhoods,Cultural and Related Services,Open Spaces,5105731433,10.02.2023,Rights of Way Operations,Payment to Private Contractors,223.75,DARES LTD
Revenue,Neighbourhoods,Cultural and Related Services,Open Spaces,5105733738,10.02.2023,Rights of Way Operations,Payment to Private Contractors,-180,DARES LTD
Revenue,Neighbourhoods,Cultural and Related Services,Open Spaces,5105734626,17.02.2023,Fort Victoria,Property Services - Planned Maintenance,460,DARES LTD
Revenue,Regeneration,Central Services,Support Services,5105733692,08.02.2023,"County Hall,Newport",Property Services - Day to day Maintenance,60,DARES LTD
Revenue,Neighbourhoods,Cultural and Related Services,Open Spaces,5105733720,10.02.2023,Fort Victoria,Property Services - Planned Maintenance,230,DARES LTD
Revenue,Adult Services,Adult Social Care,Assistive Equipment & Technology,5105734996,22.02.2023,BCF Community Equipment Store,Vehicle Maintenance Costs,10,DASHWITNESS LTD
Revenue,Adult Services,Adult Social Care,Assistive Equipment & Technology,5105734996,22.02.2023,BCF Community Equipment Store,Vehicle Maintenance Costs,10,DASHWITNESS LTD
Revenue,Adult Services,Adult Social Care,Assistive Equipment & Technology,5105734996,22.02.2023,BCF Community Equipment Store,Vehicle Maintenance Costs,10,DASHWITNESS LTD
Revenue,Adult Services,Adult Social Care,Assistive Equipment & Technology,5105734996,22.02.2023,BCF Community Equipment Store,Vehicle Maintenance Costs,10,DASHWITNESS LTD
Revenue,Adult Services,Adult Social Care,Assistive Equipment & Technology,5105734996,22.02.2023,BCF Community Equipment Store,Vehicle Maintenance Costs,10,DASHWITNESS LTD
Revenue,Adult Services,Adult Social Care,Assistive Equipment & Technology,5105734996,22.02.2023,BCF Community Equipment Store,Vehicle Maintenance Costs,10,DASHWITNESS LTD
Revenue,Resources,Central Services,Support Services,5105734996,22.02.2023,County Hall Central Mail Room,Vehicle Maintenance Costs,10,DASHWITNESS LTD
Revenue,Neighbourhoods,Cultural and Related Services,Open Spaces,5105734996,22.02.2023,Client Management Unit - Grounds Maintenance,Vehicle Maintenance Costs,10,DASHWITNESS LTD
Revenue,Neighbourhoods,Cultural and Related Services,Open Spaces,5105734996,22.02.2023,Client Management Unit - Grounds Maintenance,Vehicle Maintenance Costs,10,DASHWITNESS LTD
Revenue,Regeneration,Planning services,Development Control,5105734996,22.02.2023,Development Management,Vehicle Maintenance Costs,10,DASHWITNESS LTD
Revenue,Adult Services,Adult Social Care,Central Codes (to be reallocated),5105734996,22.02.2023,Gouldings Resource Centre,Vehicle Maintenance Costs,10,DASHWITNESS LTD
Revenue,Adult Services,Adult Social Care,Central Codes (to be reallocated),5105734996,22.02.2023,Gouldings Resource Centre,Vehicle Maintenance Costs,10,DASHWITNESS LTD
Revenue,Neighbourhoods,Highways and Transport Services,Management and Support Services,5105734996,22.02.2023,Highways PFI Project,Vehicle Maintenance Costs,10,DASHWITNESS LTD
Revenue,Neighbourhoods,Highways and Transport Services,Management and Support Services,5105734996,22.02.2023,Highways PFI Project,Vehicle Maintenance Costs,10,DASHWITNESS LTD
Revenue,Neighbourhoods,Highways and Transport Services,Management and Support Services,5105734996,22.02.2023,Highways PFI Project,Vehicle Maintenance Costs,10,DASHWITNESS LTD
Revenue,Neighbourhoods,Cultural and Related Services,Recreation and Sport,5105734996,22.02.2023,Medina Leisure Centre,Vehicle Maintenance Costs,10,DASHWITNESS LTD
Revenue,Neighbourhoods,Cultural and Related Services,Open Spaces,5105734996,22.02.2023,Rights of Way Operations,Vehicle Maintenance Costs,10,DASHWITNESS LTD
Revenue,Neighbourhoods,Cultural and Related Services,Open Spaces,5105734996,22.02.2023,Rights of Way Operations,Vehicle Maintenance Costs,10,DASHWITNESS LTD
Revenue,Neighbourhoods,Cultural and Related Services,Open Spaces,5105734996,22.02.2023,Rights of Way Operations,Vehicle Maintenance Costs,10,DASHWITNESS LTD
Revenue,Neighbourhoods,Cultural and Related Services,Open Spaces,5105734996,22.02.2023,Rights of Way Operations,Vehicle Maintenance Costs,10,DASHWITNESS LTD
Revenue,Adult Services,Adult Social Care,Social Support - Support for Carer,5105734996,22.02.2023,Westminster House,Vehicle Maintenance Costs,10,DASHWITNESS LTD
Revenue,Adult Services,Adult Social Care,Central Codes (to be reallocated),5105734996,22.02.2023,Community Outreach,Vehicle Maintenance Costs,10,DASHWITNESS LTD
Revenue,Neighbourhoods,Environmental & Regulatory Services,Service Management and Support Services,5105734996,22.02.2023,Environment officers,Vehicle Maintenance Costs,10,DASHWITNESS LTD
Revenue,Neighbourhoods,Environmental & Regulatory Services,Service Management and Support Services,5105734996,22.02.2023,Environment officers,Vehicle Maintenance Costs,10,DASHWITNESS LTD
Revenue,Adult Services,Adult Social Care,Central Codes (to be reallocated),5105734996,22.02.2023,Community Reablement,Vehicle Maintenance Costs,10,DASHWITNESS LTD
Revenue,Adult Services,Adult Social Care,Central Codes (to be reallocated),5105734996,22.02.2023,Community Reablement,Vehicle Maintenance Costs,10,DASHWITNESS LTD
Revenue,Adult Services,Adult Social Care,Central Codes (to be reallocated),5105734996,22.02.2023,Community Reablement,Vehicle Maintenance Costs,10,DASHWITNESS LTD
Revenue,Adult Services,Adult Social Care,Central Codes (to be reallocated),5105734996,22.02.2023,Community Outreach,Vehicle Maintenance Costs,10,DASHWITNESS LTD
Revenue,Adult Services,Adult Social Care,Central Codes (to be reallocated),5105734996,22.02.2023,Community Reablement,Vehicle Maintenance Costs,10,DASHWITNESS LTD
Revenue,Adult Services,Adult Social Care,Central Codes (to be reallocated),5105734996,22.02.2023,Community Reablement,Vehicle Maintenance Costs,10,DASHWITNESS LTD
Revenue,Adult Services,Adult Social Care,Central Codes (to be reallocated),5105734996,22.02.2023,Community Outreach,Vehicle Maintenance Costs,10,DASHWITNESS LTD
Revenue,Adult Services,Adult Social Care,Central Codes (to be reallocated),5105734996,22.02.2023,Community Outreach,Vehicle Maintenance Costs,10,DASHWITNESS LTD
Revenue,Adult Services,Adult Social Care,Central Codes (to be reallocated),5105734996,22.02.2023,Community Reablement,Vehicle Maintenance Costs,10,DASHWITNESS LTD
Revenue,Adult Services,Adult Social Care,Central Codes (to be reallocated),5105734996,22.02.2023,Community Reablement,Vehicle Maintenance Costs,10,DASHWITNESS LTD
Revenue,Adult Services,Adult Social Care,Central Codes (to be reallocated),5105734996,22.02.2023,Community Reablement,Vehicle Maintenance Costs,10,DASHWITNESS LTD
Revenue,Adult Services,Adult Social Care,Central Codes (to be reallocated),5105734996,22.02.2023,Community Reablement,Vehicle Maintenance Costs,10,DASHWITNESS LTD
Revenue,Adult Services,Adult Social Care,Central Codes (to be reallocated),5105734996,22.02.2023,Community Reablement,Vehicle Maintenance Costs,10,DASHWITNESS LTD
Revenue,Childrens Services,Children's & Education Services,Children Looked After,5105734996,22.02.2023,Beaulieu House,Vehicle Maintenance Costs,10,DASHWITNESS LTD
Revenue,Childrens Services,Children's & Education Services,Children Looked After,5105734996,22.02.2023,Beaulieu House,Vehicle Maintenance Costs,10,DASHWITNESS LTD
Revenue,Childrens Services,Children's & Education Services,Children Looked After,5105734996,22.02.2023,Beaulieu House,Vehicle Maintenance Costs,10,DASHWITNESS LTD
Revenue,Adult Services,Adult Social Care,Assistive Equipment & Technology,5105734996,22.02.2023,Wightcare,Vehicle Maintenance Costs,10,DASHWITNESS LTD
Revenue,Adult Services,Adult Social Care,Assistive Equipment & Technology,5105734996,22.02.2023,Wightcare,Vehicle Maintenance Costs,10,DASHWITNESS LTD
Revenue,Neighbourhoods,Environmental & Regulatory Services,Service Management and Support Services,5105734996,22.02.2023,Environment officers,Vehicle Maintenance Costs,10,DASHWITNESS LTD
Revenue,Neighbourhoods,Environmental & Regulatory Services,Service Management and Support Services,5105734996,22.02.2023,Environment officers,Vehicle Maintenance Costs,10,DASHWITNESS LTD
Revenue,Adult Services,Adult Social Care,Central Codes (to be reallocated),5105734996,22.02.2023,Community Reablement,Vehicle Maintenance Costs,10,DASHWITNESS LTD
Revenue,Adult Services,Adult Social Care,Central Codes (to be reallocated),5105734996,22.02.2023,Community Reablement,Vehicle Maintenance Costs,10,DASHWITNESS LTD
Revenue,Adult Services,Adult Social Care,Central Codes (to be reallocated),5105734996,22.02.2023,Community Reablement,Vehicle Maintenance Costs,10,DASHWITNESS LTD
Revenue,Resources,Central Services,Central Services to the Public,5105734996,22.02.2023,National Non Domestic Rates,Vehicle Maintenance Costs,10,DASHWITNESS LTD
Revenue,Adult Services,Adult Social Care,Central Codes (to be reallocated),5105734996,22.02.2023,Community Reablement,Vehicle Maintenance Costs,10,DASHWITNESS LTD
Revenue,Adult Services,Adult Social Care,Central Codes (to be reallocated),5105734996,22.02.2023,Community Reablement,Vehicle Maintenance Costs,10,DASHWITNESS LTD
Revenue,Adult Services,Adult Social Care,Assistive Equipment & Technology,5105734996,22.02.2023,Wightcare,Vehicle Maintenance Costs,10,DASHWITNESS LTD
Revenue,Adult Services,Adult Social Care,Assistive Equipment & Technology,5105734996,22.02.2023,Wightcare,Vehicle Maintenance Costs,10,DASHWITNESS LTD
Revenue,Adult Services,Adult Social Care,Central Codes (to be reallocated),5105734996,22.02.2023,Community Reablement,Vehicle Maintenance Costs,10,DASHWITNESS LTD
Revenue,Childrens Services,Children's & Education Services,Children Looked After,5105734996,22.02.2023,Beaulieu House,Vehicle Maintenance Costs,10,DASHWITNESS LTD
Revenue,Resources,Highways and Transport Services,Public Transport,5105734996,22.02.2023,Fleet Income,Vehicle Maintenance Costs,10,DASHWITNESS LTD
Revenue,Adult Services,Adult Social Care,Central Codes (to be reallocated),5105734996,22.02.2023,Community Reablement,Vehicle Maintenance Costs,10,DASHWITNESS LTD
Revenue,Adult Services,Adult Social Care,Central Codes (to be reallocated),5105734996,22.02.2023,Community Reablement,Vehicle Maintenance Costs,10,DASHWITNESS LTD
Revenue,Adult Services,Adult Social Care,Central Codes (to be reallocated),5105734996,22.02.2023,Community Reablement,Vehicle Maintenance Costs,10,DASHWITNESS LTD
Revenue,Adult Services,Adult Social Care,Central Codes (to be reallocated),5105734996,22.02.2023,Community Reablement,Vehicle Maintenance Costs,10,DASHWITNESS LTD
Revenue,Resources,Highways and Transport Services,Public Transport,5105734996,22.02.2023,Transport Fleet Administration,Vehicle Maintenance Costs,10,DASHWITNESS LTD
Revenue,Resources,Highways and Transport Services,Public Transport,5105734996,22.02.2023,Transport Fleet Administration,Vehicle Maintenance Costs,10,DASHWITNESS LTD
Revenue,Regeneration,Planning services,Building Control,5105734996,22.02.2023,Building Control chargeable,Vehicle Maintenance Costs,10,DASHWITNESS LTD
Revenue,Regeneration,Planning services,Building Control,5105734996,22.02.2023,Building Control chargeable,Vehicle Maintenance Costs,10,DASHWITNESS LTD
Revenue,Resources,Highways and Transport Services,Public Transport,5105734996,22.02.2023,Transport Fleet Administration,Vehicle Maintenance Costs,10,DASHWITNESS LTD
